Workbook

Sheet Liesmich
A1: Benutzerhinweise
A3: Das Programm benötigt die Aktivierung der Solver- Funktion in Microsoft Excel. Eine Beschreibung zur Aktivierung ist unter nachfolgendem Link verfügbar:
A4: https://support.office.com/de-de/article/herunterladen-des-solver-add-ins-in-excel-612926fc-d53b-46b4-872c-e24772f078ca
A5: Hinweis: Zur Aktivierung des Solvers sind eventuell Administratorrechte erforderlich. Nach der Aktvierung sollte die Arbeitsmappe geschlossen und neu geöffnet werden. Ist der Solver nicht korrekt installiert bzw. aktiviert, werden die Abflusskurven nicht richtig generiert.
A6: Weiters muss der Verwendung von Makros in dieser Arbeitsmappe zugestimmt werden.
A7: Programmsteuerung
A9: Allgemeines
A10: Alle Eingaben sind im Tabellenblatt "Eingabe" zu tätigen (grün: erforderliche Felder; gelb+ orange: optionale Felder; grau: zu belassende Felder).
A11: Die Tabellenblätter "Diagrammausgabe" und "Listenausgabe" sollten nicht verändert werden.
A12: Die Tabellenblätter C1, C2 und C3 sind programminterne Berechnungstabellen und dürfen nicht geändert werden.
A14: Dimensionierung- Eingabe
A15: Die Einstauhöhe hS [m] ist der Höhenunterschied zwischen dem höchsten anstehenden erosionsfesten Urgelände und dem Stauziel. Das Einstauvolumen VS [m³] definiert den durch die Einstauhöhe hS abgegrenzten Wasserkörper (hellblau markiert). Dabei sind im Wesentlichen 3 verschiedene Szenarien zu unterscheiden:
A37: Als maßgebende Bruchstelle ist dabei jener Bereich der Anlage zu wählen, bei dem hS bzw. VS maximal ist.
A38: Die Zeitschrittweite steuert das Zeitintervall bei der Listenausgabe, diese ist standardmäßig auf 1 Sekunde gesetzt. Nach der ersten Berechnung der Abflusskurven wird die empfohlene maximale Zeitschrittweite neu berechnet, diese sollte zur Erhaltung der Ergebnisqualität nicht überschritten werden.
A39: Im Feld Projektname wird der Titel für die Ausgabediagramme eingetragen.
A40: Die Streubreite [%] ermöglicht die Ausweisung von 3 unterschiedlichen Szenarien anhand einer angenommenen Streuung (+-) des Spitzenabflusses.
A41: Wird der Wert bei Manuelle Eingabe Spitzenwert auf 1 gesetzt, so können beliebige Szenarien mit frei wählbaren Spitzenabflusswerten auf Basis der Charakteristischen Abflusskurve durchgespielt werden.
A43: Berechnungsparameter- Eingabekontrolle
A44: Die vorliegende Programmkonfiguration basiert auf skalierten Versuchsergebnissen, welche in einem gewissen Vertrauensbereich zu betrachten sind. Der Dammfaktor ist das Produkt aus Einstauhöhe und Einstauvolumen. Die zu untersuchende Anlage sollte nicht zu groß sein (Skalierbegrenzung Dammfaktor). Die Berechnung von Anlaufwellen bei Anlagen oberhalb der Skalierbegrenzung ist möglich, die Ergebnisse sind jedoch vergleichsweise konservativer.
A45: Die Modellparameter zeigen die mit dem Maßstabsfaktor λ rückgerechneten Dimensionen des zugrundeliegenden Modellversuchs (Modelleinstauhöhe hS_m, Modelleinstauvolumen VS_m und Spitzenabfluss im Modellversuch Qp_m).
A46: Das Verhältnis von Einstauhöhe zu Einstauvolumen wird mit dem dimensionsfreien Einstauvolumen VS*=VS/hS³ charakterisiert. Dieses sollte im Bereich der zugrundeliegenden Modellversuchsreihen liegen (VS*- Bedingung).
A47: Liegt die zu untersuchende Anlage innerhalb des Vertrauensbereiches, so sind die Kontrollfelder mit "OK" markiert, andernfalls erscheint ein Warnhinweis. Berechnungen außerhalb der Grenzen sind möglich, die Ergebnisse sollten auf Plausibilität geprüft werden.
A49: Programmausgabe
A50: Der Erwartungswert für den Spitzenabfluss Qmax wird mit der aus den Erkenntnissen der hydraulischen Modellversuche gewonnen Gleichung (0.0415*(hS*Vs)^0.626)) berechnet. Die untere bzw. obere Grenze ergibt sich aus der Wahl der Streubreite bei der Eingabe. Die Werte sind unmittelbar nach der Eingabe von Einstauvolumen und Einstauhöhe im letzten Block des "Eingabe"- Tabellenblattes zu entnehmen.
A51: Die Schaltfläche "Abflusskurve berechnen" erstellt die Kurvendiagramme bzw. die Listenausgabe. Die Berechnung kann einige Zeit in Anspruch nehmen.
A52: Die Ausweisung der Kurven als Diagramm erfolgt im Tabellenblatt "Diagrammausgabe". Für die weitere Verwendung der Kurven in hydraulischen Modellen sind die 3 Szenarien als Zeit-Abfluss- Tabellen im Tabellenblatt "Listenausgabe" zu entnehmen. Die Spaltenpaare (gesamte Spalten markieren) können je nach Programmanforderungen mit beliebigen Trennzeichen als ASCII- Datei exportiert werden.
A53: Zusätzlich wird das Volumen der Dammbresche am Ende des Bruchvorganges bzw. der Materialaustrag auf Basis der Erkenntnisse aus den Modellversuchen abgeschätzt. Für diesen Wert ist nur eine eingeschränkte Datenbasis verfügbar, es sollte deswegen immer eine Plausibilitätskontrolle durchgeführt werden.
A55: Impressum
A56: Das vorliegende Berechnungsschema basiert auf zwei Modellversuchsreihen (Wallner 2014 und Rüdisser 2017- Unter der Leitung von Hrn. Prof. Dr. Peter Tschernutter) des Institutes für Wasserbau und Ingenieurhydrologie an der TU Wien. Weiters fließen die Erkenntnisse aus der Arbeit von Frank (2016) der VAW (ETH Zürich) mit ein. Dank ergeht an alle beteiligten Personen.
A57: Quellen:
A58: Frank, P.J. (2016): Hydraulics of Spatial Dike Breaches. VAW Mitteilungen 236, Herausgeber: R. Boes, ETH Zürich.
A59: Ruedisser, B. (2017): Einfluss der Kornverteilung des Schüttmaterials und einer Oberflächendichtung auf die Breschenentwicklung und die Abflusskurve beim Versagen eines Schüttdammes durch Überströmen. Dissertation, Technische Universität Wien
A60: Ruedisser, B. und Tschernutter, P. (2018), Failure of Embankment Dams due to Overtopping- Experimental Study and Hydrograph Prediction. In Proceedings of the 26th ICOLD World Congress, Symposium Hydro Engineering, 2.- 3. Juli 2018, Wien, S. 2629- 2639.
A61: Wallner, S. (2014): Einfluss von Speichergeometrie und Speichergröße auf die Flutwelle beim Dammerosionsbruch durch Überströmen. Dissertation, Technische Universität Wien.
A62: Version 20240314
A63: © Burkhard Rüdisser, 2024

Sheet Eingabe
A1: Einstauhöhe hS [m] | B1: 10
A2: Einstauvolumen VS [m³] | B2: 90000
A3: Zeitschrittweite [s] | B3: 1
A4: Projektname | B4: Speicher 1
A5: empfohlene max. Schrittweite [s] | B5: =ROUND('C3'!I13,0) -> 4
A6: Streubreite [%] | B6: 15
A8: Manuelle Eingabe Spitzenwert
A9: ja (1) nein (0) | B9: 0
A10: Spitzenwert manuell [m³/s] | B10: 100
B11: =IF(B9=1,"ACHTUNG MANUELLER SPITZENABFLUSS","") -> 
A13: Berechnungsparameter
A14: Dammfaktor | B14: =B1*B2 -> 900000 | C14: m4
A15: Skaliergrenze- Dammfaktor | B15: 1000000000 | C15: m4
A16: Skaliergrenzbedingung: | B16: =IF(B1*B2<B15,"OK","überschritten") -> OK
A18: Modellparameter
A19: Maßstabsfaktor λ | B19: =B1/0.3 -> 33.33333333 | C19: -
A20: Modelleinstauhöhe hS_m | B20: =B1/B19 -> 0.3 | C20: m
A21: Modelleinstauvolumen VS_m | B21: =B2/(B19^3) -> 2.43 | C21: m³
A22: Spitzenabfluss Modell Qp_m | B22: =B28/(B19^2.5) -> 0.03453083215 | C22: m³/s
A23: VS* | B23: =B2/(B1^3) -> 90 | C23: -
A24: VS*- Bedingung | B24: =IF(B23>2000,"Außerhalb des Vertrauensbereichs",IF(B23<20,"Anlage im unteren Grenzbereich","OK")) -> OK
A26: Ausgabe | B26: =B11 -> 
A27: Erwartung
A28: Q_max | B28: =IF(B9=1,B10,0.0415*(B1*B2)^0.626) -> 221.5153915 | C28: m³/s
A29: Untere Grenze
A30: Q_max | B30: =B28*(1-B6/100) -> 188.2880828 | C30: m³/s
A31: Obere Grenze
A32: Q_max | B32: =B28*(1+B6/100) -> 254.7427002 | C32: m³/s
A38: Zusatz Breschenvolumen (Beta): | B38: Breschenvolumen untere Grenze: | C38: =(19.4*B23^0.3778/1000)*B19^3 -> 3933.243067 | D38: m³
B39: Breschenvolumen obere Grenze: | C39: =(31.04*B23^0.3778/1000)*B19^3 -> 6293.188907 | D39: m³

Sheet Diagrammausgabe

Sheet Listenausgabe
A1: Zeit t [s] | B1: Erwartung | C1: ='C2'!Z1 -> 0 | D1: ='C2'!AA1 -> 0 | F1: Unterer Grenze | G1: ='C1'!Z1 -> 0 | H1: ='C1'!AA1 -> 0 | J1: Obere Grenze | K1: ='C3'!Z1 -> 0 | L1: ='C3'!AA1 -> 0
A2: Abfluss Q [m³/s] | B2: =Eingabe!B4 -> Speicher 1 | C2: ='C2'!Z2 -> 1 | D2: ='C2'!AA2 -> 0.9664471288 | F2: =Eingabe!B4 -> Speicher 1 | G2: ='C1'!Z2 -> 1 | H2: ='C1'!AA2 -> 0.6982580505 | J2: =Eingabe!B4 -> Speicher 1 | K2: ='C3'!Z2 -> 1 | L2: ='C3'!AA2 -> 1.278126328
B3: Qmax [m³/s] | C3: ='C2'!Z3 -> 2 | D3: ='C2'!AA3 -> 1.932894258 | F3: Qmax [m³/s] | G3: ='C1'!Z3 -> 2 | H3: ='C1'!AA3 -> 1.396516101 | J3: Qmax [m³/s] | K3: ='C3'!Z3 -> 2 | L3: ='C3'!AA3 -> 2.556252656
B4: ='C2'!I1 -> 221.5153915 | C4: ='C2'!Z4 -> 3 | D4: ='C2'!AA4 -> 2.899341386 | F4: ='C1'!I1 -> 188.2880828 | G4: ='C1'!Z4 -> 3 | H4: ='C1'!AA4 -> 2.094774152 | J4: ='C3'!I1 -> 254.7427002 | K4: ='C3'!Z4 -> 3 | L4: ='C3'!AA4 -> 3.834378983
B5: tQmax [s] | C5: ='C2'!Z5 -> 4 | D5: ='C2'!AA5 -> 3.865788515 | F5: tQmax [s] | G5: ='C1'!Z5 -> 4 | H5: ='C1'!AA5 -> 2.793032202 | J5: tQmax [s] | K5: ='C3'!Z5 -> 4 | L5: ='C3'!AA5 -> 5.112505311
B6: ='C2'!I4 -> 211.1022856 | C6: ='C2'!Z6 -> 5 | D6: ='C2'!AA6 -> 4.788145351 | F6: ='C1'!I4 -> 248.3556301 | G6: ='C1'!Z6 -> 5 | H6: ='C1'!AA6 -> 3.491290253 | J6: ='C3'!I4 -> 183.5672049 | K6: ='C3'!Z6 -> 5 | L6: ='C3'!AA6 -> 6.15187652
C7: ='C2'!Z7 -> 6 | D7: ='C2'!AA7 -> 5.536562008 | G7: ='C1'!Z7 -> 6 | H7: ='C1'!AA7 -> 4.133538964 | K7: ='C3'!Z7 -> 6 | L7: ='C3'!AA7 -> 7.141657548
C8: ='C2'!Z8 -> 7 | D8: ='C2'!AA8 -> 6.284978664 | G8: ='C1'!Z8 -> 7 | H8: ='C1'!AA8 -> 4.674269999 | K8: ='C3'!Z8 -> 7 | L8: ='C3'!AA8 -> 8.131438577
C9: ='C2'!Z9 -> 8 | D9: ='C2'!AA9 -> 7.033395321 | G9: ='C1'!Z9 -> 8 | H9: ='C1'!AA9 -> 5.215001033 | K9: ='C3'!Z9 -> 8 | L9: ='C3'!AA9 -> 9.121219605
C10: ='C2'!Z10 -> 9 | D10: ='C2'!AA10 -> 7.781811977 | G10: ='C1'!Z10 -> 9 | H10: ='C1'!AA10 -> 5.755732067 | K10: ='C3'!Z10 -> 9 | L10: ='C3'!AA10 -> 9.781027407
C11: ='C2'!Z11 -> 10 | D11: ='C2'!AA11 -> 8.37640926 | G11: ='C1'!Z11 -> 10 | H11: ='C1'!AA11 -> 6.296463102 | K11: ='C3'!Z11 -> 10 | L11: ='C3'!AA11 -> 10.26782818
C12: ='C2'!Z12 -> 11 | D12: ='C2'!AA12 -> 8.744500582 | G12: ='C1'!Z12 -> 11 | H12: ='C1'!AA12 -> 6.837194136 | K12: ='C3'!Z12 -> 11 | L12: ='C3'!AA12 -> 10.75462895
C13: ='C2'!Z13 -> 12 | D13: ='C2'!AA13 -> 9.112591904 | G13: ='C1'!Z13 -> 12 | H13: ='C1'!AA13 -> 7.182523396 | K13: ='C3'!Z13 -> 12 | L13: ='C3'!AA13 -> 11.24142973
C14: ='C2'!Z14 -> 13 | D14: ='C2'!AA14 -> 9.480683226 | G14: ='C1'!Z14 -> 13 | H14: ='C1'!AA14 -> 7.448469376 | K14: ='C3'!Z14 -> 13 | L14: ='C3'!AA14 -> 11.61484148
C15: ='C2'!Z15 -> 14 | D15: ='C2'!AA15 -> 9.848774548 | G15: ='C1'!Z15 -> 14 | H15: ='C1'!AA15 -> 7.714415356 | K15: ='C3'!Z15 -> 14 | L15: ='C3'!AA15 -> 11.86739365
C16: ='C2'!Z16 -> 15 | D16: ='C2'!AA16 -> 10.10941044 | G16: ='C1'!Z16 -> 15 | H16: ='C1'!AA16 -> 7.980361336 | K16: ='C3'!Z16 -> 15 | L16: ='C3'!AA16 -> 12.11994582
C17: ='C2'!Z17 -> 16 | D17: ='C2'!AA17 -> 10.30037616 | G17: ='C1'!Z17 -> 16 | H17: ='C1'!AA17 -> 8.246307317 | K17: ='C3'!Z17 -> 16 | L17: ='C3'!AA17 -> 12.37249799
C18: ='C2'!Z18 -> 17 | D18: ='C2'!AA18 -> 10.49134189 | G18: ='C1'!Z18 -> 17 | H18: ='C1'!AA18 -> 8.503722398 | K18: ='C3'!Z18 -> 17 | L18: ='C3'!AA18 -> 12.65502208
C19: ='C2'!Z19 -> 18 | D19: ='C2'!AA19 -> 10.68230761 | G19: ='C1'!Z19 -> 18 | H19: ='C1'!AA19 -> 8.641695133 | K19: ='C3'!Z19 -> 18 | L19: ='C3'!AA19 -> 13.00361586
C20: ='C2'!Z20 -> 19 | D20: ='C2'!AA20 -> 10.87327334 | G20: ='C1'!Z20 -> 19 | H20: ='C1'!AA20 -> 8.779667869 | K20: ='C3'!Z20 -> 19 | L20: ='C3'!AA20 -> 13.35220964
C21: ='C2'!Z21 -> 20 | D21: ='C2'!AA21 -> 11.12298117 | G21: ='C1'!Z21 -> 20 | H21: ='C1'!AA21 -> 8.917640605 | K21: ='C3'!Z21 -> 20 | L21: ='C3'!AA21 -> 13.70080342
C22: ='C2'!Z22 -> 21 | D22: ='C2'!AA22 -> 11.38656815 | G22: ='C1'!Z22 -> 21 | H22: ='C1'!AA22 -> 9.055613341 | K22: ='C3'!Z22 -> 21 | L22: ='C3'!AA22 -> 14.0621666
C23: ='C2'!Z23 -> 22 | D23: ='C2'!AA23 -> 11.65015512 | G23: ='C1'!Z23 -> 22 | H23: ='C1'!AA23 -> 9.193586077 | K23: ='C3'!Z23 -> 22 | L23: ='C3'!AA23 -> 14.50191155
C24: ='C2'!Z24 -> 23 | D24: ='C2'!AA24 -> 11.9137421 | G24: ='C1'!Z24 -> 23 | H24: ='C1'!AA24 -> 9.353711974 | K24: ='C3'!Z24 -> 23 | L24: ='C3'!AA24 -> 14.94165651
C25: ='C2'!Z25 -> 24 | D25: ='C2'!AA25 -> 12.1780944 | G25: ='C1'!Z25 -> 24 | H25: ='C1'!AA25 -> 9.544153566 | K25: ='C3'!Z25 -> 24 | L25: ='C3'!AA25 -> 15.38140146
C26: ='C2'!Z26 -> 25 | D26: ='C2'!AA26 -> 12.51060476 | G26: ='C1'!Z26 -> 25 | H26: ='C1'!AA26 -> 9.734595157 | K26: ='C3'!Z26 -> 25 | L26: ='C3'!AA26 -> 15.82114642
C27: ='C2'!Z27 -> 26 | D27: ='C2'!AA27 -> 12.84311512 | G27: ='C1'!Z27 -> 26 | H27: ='C1'!AA27 -> 9.925036749 | K27: ='C3'!Z27 -> 26 | L27: ='C3'!AA27 -> 16.35729679
C28: ='C2'!Z28 -> 27 | D28: ='C2'!AA28 -> 13.17562549 | G28: ='C1'!Z28 -> 27 | H28: ='C1'!AA28 -> 10.11547834 | K28: ='C3'!Z28 -> 27 | L28: ='C3'!AA28 -> 16.89662296
C29: ='C2'!Z29 -> 28 | D29: ='C2'!AA29 -> 13.50813585 | G29: ='C1'!Z29 -> 28 | H29: ='C1'!AA29 -> 10.30591993 | K29: ='C3'!Z29 -> 28 | L29: ='C3'!AA29 -> 17.43594914
C30: ='C2'!Z30 -> 29 | D30: ='C2'!AA30 -> 13.85670907 | G30: ='C1'!Z30 -> 29 | H30: ='C1'!AA30 -> 10.53509221 | K30: ='C3'!Z30 -> 29 | L30: ='C3'!AA30 -> 17.97527531
C31: ='C2'!Z31 -> 30 | D31: ='C2'!AA31 -> 14.26451714 | G31: ='C1'!Z31 -> 30 | H31: ='C1'!AA31 -> 10.77533095 | K31: ='C3'!Z31 -> 30 | L31: ='C3'!AA31 -> 18.58768703
C32: ='C2'!Z32 -> 31 | D32: ='C2'!AA32 -> 14.67232522 | G32: ='C1'!Z32 -> 31 | H32: ='C1'!AA32 -> 11.01556969 | K32: ='C3'!Z32 -> 31 | L32: ='C3'!AA32 -> 19.21881463
C33: ='C2'!Z33 -> 32 | D33: ='C2'!AA33 -> 15.08013329 | G33: ='C1'!Z33 -> 32 | H33: ='C1'!AA33 -> 11.25580843 | K33: ='C3'!Z33 -> 32 | L33: ='C3'!AA33 -> 19.84994222
C34: ='C2'!Z34 -> 33 | D34: ='C2'!AA34 -> 15.48794136 | G34: ='C1'!Z34 -> 33 | H34: ='C1'!AA34 -> 11.49604716 | K34: ='C3'!Z34 -> 33 | L34: ='C3'!AA34 -> 20.48106982
C35: ='C2'!Z35 -> 34 | D35: ='C2'!AA35 -> 15.92459454 | G35: ='C1'!Z35 -> 34 | H35: ='C1'!AA35 -> 11.74353903 | K35: ='C3'!Z35 -> 34 | L35: ='C3'!AA35 -> 21.17432207
C36: ='C2'!Z36 -> 35 | D36: ='C2'!AA36 -> 16.40181768 | G36: ='C1'!Z36 -> 35 | H36: ='C1'!AA36 -> 12.03818036 | K36: ='C3'!Z36 -> 35 | L36: ='C3'!AA36 -> 21.90498536
C37: ='C2'!Z37 -> 36 | D37: ='C2'!AA37 -> 16.87904082 | G37: ='C1'!Z37 -> 36 | H37: ='C1'!AA37 -> 12.33282169 | K37: ='C3'!Z37 -> 36 | L37: ='C3'!AA37 -> 22.63564864
C38: ='C2'!Z38 -> 37 | D38: ='C2'!AA38 -> 17.35626395 | G38: ='C1'!Z38 -> 37 | H38: ='C1'!AA38 -> 12.62746302 | K38: ='C3'!Z38 -> 37 | L38: ='C3'!AA38 -> 23.36631192
C39: ='C2'!Z39 -> 38 | D39: ='C2'!AA39 -> 17.83348709 | G39: ='C1'!Z39 -> 38 | H39: ='C1'!AA39 -> 12.92210435 | K39: ='C3'!Z39 -> 38 | L39: ='C3'!AA39 -> 24.13848871
C40: ='C2'!Z40 -> 39 | D40: ='C2'!AA40 -> 18.35720534 | G40: ='C1'!Z40 -> 39 | H40: ='C1'!AA40 -> 13.21674568 | K40: ='C3'!Z40 -> 39 | L40: ='C3'!AA40 -> 24.960963
C41: ='C2'!Z41 -> 40 | D41: ='C2'!AA41 -> 18.90969175 | G41: ='C1'!Z41 -> 40 | H41: ='C1'!AA41 -> 13.53590536 | K41: ='C3'!Z41 -> 40 | L41: ='C3'!AA41 -> 25.7834373
C42: ='C2'!Z42 -> 41 | D42: ='C2'!AA42 -> 19.46217816 | G42: ='C1'!Z42 -> 41 | H42: ='C1'!AA42 -> 13.88069908 | K42: ='C3'!Z42 -> 41 | L42: ='C3'!AA42 -> 26.60591159
C43: ='C2'!Z43 -> 42 | D43: ='C2'!AA43 -> 20.01466458 | G43: ='C1'!Z43 -> 42 | H43: ='C1'!AA43 -> 14.22549279 | K43: ='C3'!Z43 -> 42 | L43: ='C3'!AA43 -> 27.45616867
C44: ='C2'!Z44 -> 43 | D44: ='C2'!AA44 -> 20.56715099 | G44: ='C1'!Z44 -> 43 | H44: ='C1'!AA44 -> 14.57028651 | K44: ='C3'!Z44 -> 43 | L44: ='C3'!AA44 -> 28.37780319
C45: ='C2'!Z45 -> 44 | D45: ='C2'!AA45 -> 21.1765628 | G45: ='C1'!Z45 -> 44 | H45: ='C1'!AA45 -> 14.91508022 | K45: ='C3'!Z45 -> 44 | L45: ='C3'!AA45 -> 29.29943772
C46: ='C2'!Z46 -> 45 | D46: ='C2'!AA46 -> 21.79847153 | G46: ='C1'!Z46 -> 45 | H46: ='C1'!AA46 -> 15.25987394 | K46: ='C3'!Z46 -> 45 | L46: ='C3'!AA46 -> 30.22107225
C47: ='C2'!Z47 -> 46 | D47: ='C2'!AA47 -> 22.42038026 | G47: ='C1'!Z47 -> 46 | H47: ='C1'!AA47 -> 15.65058588 | K47: ='C3'!Z47 -> 46 | L47: ='C3'!AA47 -> 31.15238737
C48: ='C2'!Z48 -> 47 | D48: ='C2'!AA48 -> 23.04228899 | G48: ='C1'!Z48 -> 47 | H48: ='C1'!AA48 -> 16.04975732 | K48: ='C3'!Z48 -> 47 | L48: ='C3'!AA48 -> 32.16349234
C49: ='C2'!Z49 -> 48 | D49: ='C2'!AA49 -> 23.66586284 | G49: ='C1'!Z49 -> 48 | H49: ='C1'!AA49 -> 16.44892875 | K49: ='C3'!Z49 -> 48 | L49: ='C3'!AA49 -> 33.17459731
C50: ='C2'!Z50 -> 49 | D50: ='C2'!AA50 -> 24.36275095 | G50: ='C1'!Z50 -> 49 | H50: ='C1'!AA50 -> 16.84810018 | K50: ='C3'!Z50 -> 49 | L50: ='C3'!AA50 -> 34.18570228
C51: ='C2'!Z51 -> 50 | D51: ='C2'!AA51 -> 25.05963907 | G51: ='C1'!Z51 -> 50 | H51: ='C1'!AA51 -> 17.24727162 | K51: ='C3'!Z51 -> 50 | L51: ='C3'!AA51 -> 35.19680724
C52: ='C2'!Z52 -> 51 | D52: ='C2'!AA52 -> 25.75652718 | G52: ='C1'!Z52 -> 51 | H52: ='C1'!AA52 -> 17.65647381 | K52: ='C3'!Z52 -> 51 | L52: ='C3'!AA52 -> 36.29651023
C53: ='C2'!Z53 -> 52 | D53: ='C2'!AA53 -> 26.45341529 | G53: ='C1'!Z53 -> 52 | H53: ='C1'!AA53 -> 18.10580287 | K53: ='C3'!Z53 -> 52 | L53: ='C3'!AA53 -> 37.40224926
C54: ='C2'!Z54 -> 53 | D54: ='C2'!AA54 -> 27.16548656 | G54: ='C1'!Z54 -> 53 | H54: ='C1'!AA54 -> 18.55513192 | K54: ='C3'!Z54 -> 53 | L54: ='C3'!AA54 -> 38.5079883
C55: ='C2'!Z55 -> 54 | D55: ='C2'!AA55 -> 27.93002718 | G55: ='C1'!Z55 -> 54 | H55: ='C1'!AA55 -> 19.00446098 | K55: ='C3'!Z55 -> 54 | L55: ='C3'!AA55 -> 39.61372734
C56: ='C2'!Z56 -> 55 | D56: ='C2'!AA56 -> 28.6945678 | G56: ='C1'!Z56 -> 55 | H56: ='C1'!AA56 -> 19.45379003 | K56: ='C3'!Z56 -> 55 | L56: ='C3'!AA56 -> 40.78450464
C57: ='C2'!Z57 -> 56 | D57: ='C2'!AA57 -> 29.45910841 | G57: ='C1'!Z57 -> 56 | H57: ='C1'!AA57 -> 19.90311909 | K57: ='C3'!Z57 -> 56 | L57: ='C3'!AA57 -> 41.97534613
C58: ='C2'!Z58 -> 57 | D58: ='C2'!AA58 -> 30.22364903 | G58: ='C1'!Z58 -> 57 | H58: ='C1'!AA58 -> 20.38254312 | K58: ='C3'!Z58 -> 57 | L58: ='C3'!AA58 -> 43.16618761
C59: ='C2'!Z59 -> 58 | D59: ='C2'!AA59 -> 31.01871938 | G59: ='C1'!Z59 -> 58 | H59: ='C1'!AA59 -> 20.88604478 | K59: ='C3'!Z59 -> 58 | L59: ='C3'!AA59 -> 44.35702909
C60: ='C2'!Z60 -> 59 | D60: ='C2'!AA60 -> 31.85481695 | G60: ='C1'!Z60 -> 59 | H60: ='C1'!AA60 -> 21.38954644 | K60: ='C3'!Z60 -> 59 | L60: ='C3'!AA60 -> 45.60158357
C61: ='C2'!Z61 -> 60 | D61: ='C2'!AA61 -> 32.69091453 | G61: ='C1'!Z61 -> 60 | H61: ='C1'!AA61 -> 21.8930481 | K61: ='C3'!Z61 -> 60 | L61: ='C3'!AA61 -> 46.8831177
C62: ='C2'!Z62 -> 61 | D62: ='C2'!AA62 -> 33.5270121 | G62: ='C1'!Z62 -> 61 | H62: ='C1'!AA62 -> 22.39654976 | K62: ='C3'!Z62 -> 61 | L62: ='C3'!AA62 -> 48.16465183
C63: ='C2'!Z63 -> 62 | D63: ='C2'!AA63 -> 34.36310967 | G63: ='C1'!Z63 -> 62 | H63: ='C1'!AA63 -> 22.90005142 | K63: ='C3'!Z63 -> 62 | L63: ='C3'!AA63 -> 49.44618597
C64: ='C2'!Z64 -> 63 | D64: ='C2'!AA64 -> 35.23967483 | G64: ='C1'!Z64 -> 63 | H64: ='C1'!AA64 -> 23.44808631 | K64: ='C3'!Z64 -> 63 | L64: ='C3'!AA64 -> 50.76276976
C65: ='C2'!Z65 -> 64 | D65: ='C2'!AA65 -> 36.14012208 | G65: ='C1'!Z65 -> 64 | H65: ='C1'!AA65 -> 24.00046691 | K65: ='C3'!Z65 -> 64 | L65: ='C3'!AA65 -> 52.12770163
C66: ='C2'!Z66 -> 65 | D66: ='C2'!AA66 -> 37.04056933 | G66: ='C1'!Z66 -> 65 | H66: ='C1'!AA66 -> 24.55284751 | K66: ='C3'!Z66 -> 65 | L66: ='C3'!AA66 -> 53.49263351
C67: ='C2'!Z67 -> 66 | D67: ='C2'!AA67 -> 37.94101657 | G67: ='C1'!Z67 -> 66 | H67: ='C1'!AA67 -> 25.1052281 | K67: ='C3'!Z67 -> 66 | L67: ='C3'!AA67 -> 54.85756538
C68: ='C2'!Z68 -> 67 | D68: ='C2'!AA68 -> 38.84146382 | G68: ='C1'!Z68 -> 67 | H68: ='C1'!AA68 -> 25.6576087 | K68: ='C3'!Z68 -> 67 | L68: ='C3'!AA68 -> 56.24493652
C69: ='C2'!Z69 -> 68 | D69: ='C2'!AA69 -> 39.79890452 | G69: ='C1'!Z69 -> 68 | H69: ='C1'!AA69 -> 26.22377489 | K69: ='C3'!Z69 -> 68 | L69: ='C3'!AA69 -> 57.7002439
C70: ='C2'!Z70 -> 69 | D70: ='C2'!AA70 -> 40.76792844 | G70: ='C1'!Z70 -> 69 | H70: ='C1'!AA70 -> 26.82785538 | K70: ='C3'!Z70 -> 69 | L70: ='C3'!AA70 -> 59.15555129
C71: ='C2'!Z71 -> 70 | D71: ='C2'!AA71 -> 41.73695235 | G71: ='C1'!Z71 -> 70 | H71: ='C1'!AA71 -> 27.43193588 | K71: ='C3'!Z71 -> 70 | L71: ='C3'!AA71 -> 60.61085868
C72: ='C2'!Z72 -> 71 | D72: ='C2'!AA72 -> 42.70597627 | G72: ='C1'!Z72 -> 71 | H72: ='C1'!AA72 -> 28.03601638 | K72: ='C3'!Z72 -> 71 | L72: ='C3'!AA72 -> 62.07306621
C73: ='C2'!Z73 -> 72 | D73: ='C2'!AA73 -> 43.67710085 | G73: ='C1'!Z73 -> 72 | H73: ='C1'!AA73 -> 28.64009687 | K73: ='C3'!Z73 -> 72 | L73: ='C3'!AA73 -> 63.61879944
C74: ='C2'!Z74 -> 73 | D74: ='C2'!AA74 -> 44.70918545 | G74: ='C1'!Z74 -> 73 | H74: ='C1'!AA74 -> 29.24417737 | K74: ='C3'!Z74 -> 73 | L74: ='C3'!AA74 -> 65.16453267
C75: ='C2'!Z75 -> 74 | D75: ='C2'!AA75 -> 45.74127004 | G75: ='C1'!Z75 -> 74 | H75: ='C1'!AA75 -> 29.87718559 | K75: ='C3'!Z75 -> 74 | L75: ='C3'!AA75 -> 66.7102659
C76: ='C2'!Z76 -> 75 | D76: ='C2'!AA76 -> 46.77335463 | G76: ='C1'!Z76 -> 75 | H76: ='C1'!AA76 -> 30.52775873 | K76: ='C3'!Z76 -> 75 | L76: ='C3'!AA76 -> 68.25599913
C77: ='C2'!Z77 -> 76 | D77: ='C2'!AA77 -> 47.80543923 | G77: ='C1'!Z77 -> 76 | H77: ='C1'!AA77 -> 31.17833186 | K77: ='C3'!Z77 -> 76 | L77: ='C3'!AA77 -> 69.91534295
C78: ='C2'!Z78 -> 77 | D78: ='C2'!AA78 -> 48.85361937 | G78: ='C1'!Z78 -> 77 | H78: ='C1'!AA78 -> 31.828905 | K78: ='C3'!Z78 -> 77 | L78: ='C3'!AA78 -> 71.58670642
C79: ='C2'!Z79 -> 78 | D79: ='C2'!AA79 -> 49.95404084 | G79: ='C1'!Z79 -> 78 | H79: ='C1'!AA79 -> 32.47947813 | K79: ='C3'!Z79 -> 78 | L79: ='C3'!AA79 -> 73.25806988
C80: ='C2'!Z80 -> 79 | D80: ='C2'!AA80 -> 51.05446231 | G80: ='C1'!Z80 -> 79 | H80: ='C1'!AA80 -> 33.13005127 | K80: ='C3'!Z80 -> 79 | L80: ='C3'!AA80 -> 74.92943334
C81: ='C2'!Z81 -> 80 | D81: ='C2'!AA81 -> 52.15488377 | G81: ='C1'!Z81 -> 80 | H81: ='C1'!AA81 -> 33.82906884 | K81: ='C3'!Z81 -> 80 | L81: ='C3'!AA81 -> 76.73488271
C82: ='C2'!Z82 -> 81 | D82: ='C2'!AA82 -> 53.25530524 | G82: ='C1'!Z82 -> 81 | H82: ='C1'!AA82 -> 34.52918862 | K82: ='C3'!Z82 -> 81 | L82: ='C3'!AA82 -> 78.58933777
C83: ='C2'!Z83 -> 82 | D83: ='C2'!AA83 -> 54.38565805 | G83: ='C1'!Z83 -> 82 | H83: ='C1'!AA83 -> 35.2293084 | K83: ='C3'!Z83 -> 82 | L83: ='C3'!AA83 -> 80.44379283
C84: ='C2'!Z84 -> 83 | D84: ='C2'!AA84 -> 55.55445445 | G84: ='C1'!Z84 -> 83 | H84: ='C1'!AA84 -> 35.92942818 | K84: ='C3'!Z84 -> 83 | L84: ='C3'!AA84 -> 82.29824789
C85: ='C2'!Z85 -> 84 | D85: ='C2'!AA85 -> 56.72325084 | G85: ='C1'!Z85 -> 84 | H85: ='C1'!AA85 -> 36.62954796 | K85: ='C3'!Z85 -> 84 | L85: ='C3'!AA85 -> 84.3153723
C86: ='C2'!Z86 -> 85 | D86: ='C2'!AA86 -> 57.89204723 | G86: ='C1'!Z86 -> 85 | H86: ='C1'!AA86 -> 37.3448537 | K86: ='C3'!Z86 -> 85 | L86: ='C3'!AA86 -> 86.460121
C87: ='C2'!Z87 -> 86 | D87: ='C2'!AA87 -> 59.06084362 | G87: ='C1'!Z87 -> 86 | H87: ='C1'!AA87 -> 38.09053482 | K87: ='C3'!Z87 -> 86 | L87: ='C3'!AA87 -> 88.60486971
C88: ='C2'!Z88 -> 87 | D88: ='C2'!AA88 -> 60.29043404 | G88: ='C1'!Z88 -> 87 | H88: ='C1'!AA88 -> 38.83621594 | K88: ='C3'!Z88 -> 87 | L88: ='C3'!AA88 -> 90.74961841
C89: ='C2'!Z89 -> 88 | D89: ='C2'!AA89 -> 61.55422493 | G89: ='C1'!Z89 -> 88 | H89: ='C1'!AA89 -> 39.58189706 | K89: ='C3'!Z89 -> 88 | L89: ='C3'!AA89 -> 92.95186676
C90: ='C2'!Z90 -> 89 | D90: ='C2'!AA90 -> 62.81801583 | G90: ='C1'!Z90 -> 89 | H90: ='C1'!AA90 -> 40.32757818 | K90: ='C3'!Z90 -> 89 | L90: ='C3'!AA90 -> 95.24466562
C91: ='C2'!Z91 -> 90 | D91: ='C2'!AA91 -> 64.08180673 | G91: ='C1'!Z91 -> 90 | H91: ='C1'!AA91 -> 41.07325929 | K91: ='C3'!Z91 -> 90 | L91: ='C3'!AA91 -> 97.53746449
C92: ='C2'!Z92 -> 91 | D92: ='C2'!AA92 -> 65.34559762 | G92: ='C1'!Z92 -> 91 | H92: ='C1'!AA92 -> 41.85295185 | K92: ='C3'!Z92 -> 91 | L92: ='C3'!AA92 -> 99.83026336
C93: ='C2'!Z93 -> 92 | D93: ='C2'!AA93 -> 66.72598497 | G93: ='C1'!Z93 -> 92 | H93: ='C1'!AA93 -> 42.64800636 | K93: ='C3'!Z93 -> 92 | L93: ='C3'!AA93 -> 102.143299
C94: ='C2'!Z94 -> 93 | D94: ='C2'!AA94 -> 68.12821942 | G94: ='C1'!Z94 -> 93 | H94: ='C1'!AA94 -> 43.44306087 | K94: ='C3'!Z94 -> 93 | L94: ='C3'!AA94 -> 104.5296143
C95: ='C2'!Z95 -> 94 | D95: ='C2'!AA95 -> 69.53045386 | G95: ='C1'!Z95 -> 94 | H95: ='C1'!AA95 -> 44.23811538 | K95: ='C3'!Z95 -> 94 | L95: ='C3'!AA95 -> 106.9159297
C96: ='C2'!Z96 -> 95 | D96: ='C2'!AA96 -> 70.93268831 | G96: ='C1'!Z96 -> 95 | H96: ='C1'!AA96 -> 45.03316989 | K96: ='C3'!Z96 -> 95 | L96: ='C3'!AA96 -> 109.3022451
C97: ='C2'!Z97 -> 96 | D97: ='C2'!AA97 -> 72.34467216 | G97: ='C1'!Z97 -> 96 | H97: ='C1'!AA97 -> 45.83041857 | K97: ='C3'!Z97 -> 96 | L97: ='C3'!AA97 -> 111.692681
C98: ='C2'!Z98 -> 97 | D98: ='C2'!AA98 -> 73.96641031 | G98: ='C1'!Z98 -> 97 | H98: ='C1'!AA98 -> 46.67487397 | K98: ='C3'!Z98 -> 97 | L98: ='C3'!AA98 -> 114.1717675
C99: ='C2'!Z99 -> 98 | D99: ='C2'!AA99 -> 75.58814845 | G99: ='C1'!Z99 -> 98 | H99: ='C1'!AA99 -> 47.51932936 | K99: ='C3'!Z99 -> 98 | L99: ='C3'!AA99 -> 116.6508541
C100: ='C2'!Z100 -> 99 | D100: ='C2'!AA100 -> 77.2098866 | G100: ='C1'!Z100 -> 99 | H100: ='C1'!AA100 -> 48.36378475 | K100: ='C3'!Z100 -> 99 | L100: ='C3'!AA100 -> 119.1299407
C101: ='C2'!Z101 -> 100 | D101: ='C2'!AA101 -> 78.83162475 | G101: ='C1'!Z101 -> 100 | H101: ='C1'!AA101 -> 49.20824015 | K101: ='C3'!Z101 -> 100 | L101: ='C3'!AA101 -> 121.6090273
C102: ='C2'!Z102 -> 101 | D102: ='C2'!AA102 -> 80.48097315 | G102: ='C1'!Z102 -> 101 | H102: ='C1'!AA102 -> 50.05269554 | K102: ='C3'!Z102 -> 101 | L102: ='C3'!AA102 -> 124.1746246
C103: ='C2'!Z103 -> 102 | D103: ='C2'!AA103 -> 82.2146585 | G103: ='C1'!Z103 -> 102 | H103: ='C1'!AA103 -> 50.92460225 | K103: ='C3'!Z103 -> 102 | L103: ='C3'!AA103 -> 126.7528714
C104: ='C2'!Z104 -> 103 | D104: ='C2'!AA104 -> 83.94834384 | G104: ='C1'!Z104 -> 103 | H104: ='C1'!AA104 -> 51.83769118 | K104: ='C3'!Z104 -> 103 | L104: ='C3'!AA104 -> 129.3311182
C105: ='C2'!Z105 -> 104 | D105: ='C2'!AA105 -> 85.68202918 | G105: ='C1'!Z105 -> 104 | H105: ='C1'!AA105 -> 52.7507801 | K105: ='C3'!Z105 -> 104 | L105: ='C3'!AA105 -> 131.909365
C106: ='C2'!Z106 -> 105 | D106: ='C2'!AA106 -> 87.41571453 | G106: ='C1'!Z106 -> 105 | H106: ='C1'!AA106 -> 53.66386902 | K106: ='C3'!Z106 -> 105 | L106: ='C3'!AA106 -> 134.5255857
C107: ='C2'!Z107 -> 106 | D107: ='C2'!AA107 -> 89.18113942 | G107: ='C1'!Z107 -> 106 | H107: ='C1'!AA107 -> 54.57695794 | K107: ='C3'!Z107 -> 106 | L107: ='C3'!AA107 -> 137.1580458
C108: ='C2'!Z108 -> 107 | D108: ='C2'!AA108 -> 90.98553668 | G108: ='C1'!Z108 -> 107 | H108: ='C1'!AA108 -> 55.49004687 | K108: ='C3'!Z108 -> 107 | L108: ='C3'!AA108 -> 139.7905059
C109: ='C2'!Z109 -> 108 | D109: ='C2'!AA109 -> 92.78993394 | G109: ='C1'!Z109 -> 108 | H109: ='C1'!AA109 -> 56.47870737 | K109: ='C3'!Z109 -> 108 | L109: ='C3'!AA109 -> 142.4229661
C110: ='C2'!Z110 -> 109 | D110: ='C2'!AA110 -> 94.5943312 | G110: ='C1'!Z110 -> 109 | H110: ='C1'!AA110 -> 57.49182176 | K110: ='C3'!Z110 -> 109 | L110: ='C3'!AA110 -> 145.0553426
C111: ='C2'!Z111 -> 110 | D111: ='C2'!AA111 -> 96.39872846 | G111: ='C1'!Z111 -> 110 | H111: ='C1'!AA111 -> 58.50493614 | K111: ='C3'!Z111 -> 110 | L111: ='C3'!AA111 -> 147.6876446
C112: ='C2'!Z112 -> 111 | D112: ='C2'!AA112 -> 98.24879777 | G112: ='C1'!Z112 -> 111 | H112: ='C1'!AA112 -> 59.51805053 | K112: ='C3'!Z112 -> 111 | L112: ='C3'!AA112 -> 150.3199466
C113: ='C2'!Z113 -> 112 | D113: ='C2'!AA113 -> 100.1233434 | G113: ='C1'!Z113 -> 112 | H113: ='C1'!AA113 -> 60.53116492 | K113: ='C3'!Z113 -> 112 | L113: ='C3'!AA113 -> 152.9522485
C114: ='C2'!Z114 -> 113 | D114: ='C2'!AA114 -> 101.997889 | G114: ='C1'!Z114 -> 113 | H114: ='C1'!AA114 -> 61.56189521 | K114: ='C3'!Z114 -> 113 | L114: ='C3'!AA114 -> 155.5703495
C115: ='C2'!Z115 -> 114 | D115: ='C2'!AA115 -> 103.8724346 | G115: ='C1'!Z115 -> 114 | H115: ='C1'!AA115 -> 62.73360102 | K115: ='C3'!Z115 -> 114 | L115: ='C3'!AA115 -> 158.1628154
C116: ='C2'!Z116 -> 115 | D116: ='C2'!AA116 -> 105.7469802 | G116: ='C1'!Z116 -> 115 | H116: ='C1'!AA116 -> 63.90530683 | K116: ='C3'!Z116 -> 115 | L116: ='C3'!AA116 -> 160.7552814
C117: ='C2'!Z117 -> 116 | D117: ='C2'!AA117 -> 107.6855057 | G117: ='C1'!Z117 -> 116 | H117: ='C1'!AA117 -> 65.07701264 | K117: ='C3'!Z117 -> 116 | L117: ='C3'!AA117 -> 163.3477474
C118: ='C2'!Z118 -> 117 | D118: ='C2'!AA118 -> 109.6350307 | G118: ='C1'!Z118 -> 117 | H118: ='C1'!AA118 -> 66.24871845 | K118: ='C3'!Z118 -> 117 | L118: ='C3'!AA118 -> 165.9320579
C119: ='C2'!Z119 -> 118 | D119: ='C2'!AA119 -> 111.5845557 | G119: ='C1'!Z119 -> 118 | H119: ='C1'!AA119 -> 67.42042427 | K119: ='C3'!Z119 -> 118 | L119: ='C3'!AA119 -> 168.4803222
C120: ='C2'!Z120 -> 119 | D120: ='C2'!AA120 -> 113.5340807 | G120: ='C1'!Z120 -> 119 | H120: ='C1'!AA120 -> 68.62987206 | K120: ='C3'!Z120 -> 119 | L120: ='C3'!AA120 -> 171.0285866
C121: ='C2'!Z121 -> 120 | D121: ='C2'!AA121 -> 115.4858816 | G121: ='C1'!Z121 -> 120 | H121: ='C1'!AA121 -> 69.88245972 | K121: ='C3'!Z121 -> 120 | L121: ='C3'!AA121 -> 173.576851
C122: ='C2'!Z122 -> 121 | D122: ='C2'!AA122 -> 117.4763997 | G122: ='C1'!Z122 -> 121 | H122: ='C1'!AA122 -> 71.13504738 | K122: ='C3'!Z122 -> 121 | L122: ='C3'!AA122 -> 176.124435
C123: ='C2'!Z123 -> 122 | D123: ='C2'!AA123 -> 119.4669177 | G123: ='C1'!Z123 -> 122 | H123: ='C1'!AA123 -> 72.38763504 | K123: ='C3'!Z123 -> 122 | L123: ='C3'!AA123 -> 178.618379
C124: ='C2'!Z124 -> 123 | D124: ='C2'!AA124 -> 121.4574358 | G124: ='C1'!Z124 -> 123 | H124: ='C1'!AA124 -> 73.6402227 | K124: ='C3'!Z124 -> 123 | L124: ='C3'!AA124 -> 181.112323
C125: ='C2'!Z125 -> 124 | D125: ='C2'!AA125 -> 123.4479538 | G125: ='C1'!Z125 -> 124 | H125: ='C1'!AA125 -> 74.89281036 | K125: ='C3'!Z125 -> 124 | L125: ='C3'!AA125 -> 183.606267
C126: ='C2'!Z126 -> 125 | D126: ='C2'!AA126 -> 125.4384411 | G126: ='C1'!Z126 -> 125 | H126: ='C1'!AA126 -> 76.18740293 | K126: ='C3'!Z126 -> 125 | L126: ='C3'!AA126 -> 186.100211
C127: ='C2'!Z127 -> 126 | D127: ='C2'!AA127 -> 127.4288395 | G127: ='C1'!Z127 -> 126 | H127: ='C1'!AA127 -> 77.49107995 | K127: ='C3'!Z127 -> 126 | L127: ='C3'!AA127 -> 188.5041808
C128: ='C2'!Z128 -> 127 | D128: ='C2'!AA128 -> 129.419238 | G128: ='C1'!Z128 -> 127 | H128: ='C1'!AA128 -> 78.79475697 | K128: ='C3'!Z128 -> 127 | L128: ='C3'!AA128 -> 190.8910817
C129: ='C2'!Z129 -> 128 | D129: ='C2'!AA129 -> 131.4096365 | G129: ='C1'!Z129 -> 128 | H129: ='C1'!AA129 -> 80.09843399 | K129: ='C3'!Z129 -> 128 | L129: ='C3'!AA129 -> 193.2779826
C130: ='C2'!Z130 -> 129 | D130: ='C2'!AA130 -> 133.4000349 | G130: ='C1'!Z130 -> 129 | H130: ='C1'!AA130 -> 81.40211101 | K130: ='C3'!Z130 -> 129 | L130: ='C3'!AA130 -> 195.6648835
C131: ='C2'!Z131 -> 130 | D131: ='C2'!AA131 -> 135.3765786 | G131: ='C1'!Z131 -> 130 | H131: ='C1'!AA131 -> 82.71479622 | K131: ='C3'!Z131 -> 130 | L131: ='C3'!AA131 -> 197.9506677
C132: ='C2'!Z132 -> 131 | D132: ='C2'!AA132 -> 137.3368553 | G132: ='C1'!Z132 -> 131 | H132: ='C1'!AA132 -> 84.06915543 | K132: ='C3'!Z132 -> 131 | L132: ='C3'!AA132 -> 200.1863232
C133: ='C2'!Z133 -> 132 | D133: ='C2'!AA133 -> 139.297132 | G133: ='C1'!Z133 -> 132 | H133: ='C1'!AA133 -> 85.42351463 | K133: ='C3'!Z133 -> 132 | L133: ='C3'!AA133 -> 202.4219786
C134: ='C2'!Z134 -> 133 | D134: ='C2'!AA134 -> 141.2574088 | G134: ='C1'!Z134 -> 133 | H134: ='C1'!AA134 -> 86.77787384 | K134: ='C3'!Z134 -> 133 | L134: ='C3'!AA134 -> 204.657634
C135: ='C2'!Z135 -> 134 | D135: ='C2'!AA135 -> 143.2176855 | G135: ='C1'!Z135 -> 134 | H135: ='C1'!AA135 -> 88.13223305 | K135: ='C3'!Z135 -> 134 | L135: ='C3'!AA135 -> 206.7988798
C136: ='C2'!Z136 -> 135 | D136: ='C2'!AA136 -> 145.1558303 | G136: ='C1'!Z136 -> 135 | H136: ='C1'!AA136 -> 89.48659226 | K136: ='C3'!Z136 -> 135 | L136: ='C3'!AA136 -> 208.8444147
C137: ='C2'!Z137 -> 136 | D137: ='C2'!AA137 -> 147.0826842 | G137: ='C1'!Z137 -> 136 | H137: ='C1'!AA137 -> 90.86984132 | K137: ='C3'!Z137 -> 136 | L137: ='C3'!AA137 -> 210.8899497
C138: ='C2'!Z138 -> 137 | D138: ='C2'!AA138 -> 149.0095382 | G138: ='C1'!Z138 -> 137 | H138: ='C1'!AA138 -> 92.27837313 | K138: ='C3'!Z138 -> 137 | L138: ='C3'!AA138 -> 212.9354846
C139: ='C2'!Z139 -> 138 | D139: ='C2'!AA139 -> 150.9363921 | G139: ='C1'!Z139 -> 138 | H139: ='C1'!AA139 -> 93.68690494 | K139: ='C3'!Z139 -> 138 | L139: ='C3'!AA139 -> 214.9246655
C140: ='C2'!Z140 -> 139 | D140: ='C2'!AA140 -> 152.8632461 | G140: ='C1'!Z140 -> 139 | H140: ='C1'!AA140 -> 95.09543676 | K140: ='C3'!Z140 -> 139 | L140: ='C3'!AA140 -> 216.7965878
C141: ='C2'!Z141 -> 140 | D141: ='C2'!AA141 -> 154.7545956 | G141: ='C1'!Z141 -> 140 | H141: ='C1'!AA141 -> 96.50396857 | K141: ='C3'!Z141 -> 140 | L141: ='C3'!AA141 -> 218.66851
C142: ='C2'!Z142 -> 141 | D142: ='C2'!AA142 -> 156.6403756 | G142: ='C1'!Z142 -> 141 | H142: ='C1'!AA142 -> 97.91250038 | K142: ='C3'!Z142 -> 141 | L142: ='C3'!AA142 -> 220.5404323
C143: ='C2'!Z143 -> 142 | D143: ='C2'!AA143 -> 158.5261555 | G143: ='C1'!Z143 -> 142 | H143: ='C1'!AA143 -> 99.3473576 | K143: ='C3'!Z143 -> 142 | L143: ='C3'!AA143 -> 222.3826079
C144: ='C2'!Z144 -> 143 | D144: ='C2'!AA144 -> 160.4119355 | G144: ='C1'!Z144 -> 143 | H144: ='C1'!AA144 -> 100.7855069 | K144: ='C3'!Z144 -> 143 | L144: ='C3'!AA144 -> 224.0596167
C145: ='C2'!Z145 -> 144 | D145: ='C2'!AA145 -> 162.2923229 | G145: ='C1'!Z145 -> 144 | H145: ='C1'!AA145 -> 102.2236562 | K145: ='C3'!Z145 -> 144 | L145: ='C3'!AA145 -> 225.7366255
C146: ='C2'!Z146 -> 145 | D146: ='C2'!AA146 -> 164.0971629 | G146: ='C1'!Z146 -> 145 | H146: ='C1'!AA146 -> 103.6618055 | K146: ='C3'!Z146 -> 145 | L146: ='C3'!AA146 -> 227.4136343
C147: ='C2'!Z147 -> 146 | D147: ='C2'!AA147 -> 165.902003 | G147: ='C1'!Z147 -> 146 | H147: ='C1'!AA147 -> 105.0999548 | K147: ='C3'!Z147 -> 146 | L147: ='C3'!AA147 -> 229.090643
C148: ='C2'!Z148 -> 147 | D148: ='C2'!AA148 -> 167.706843 | G148: ='C1'!Z148 -> 147 | H148: ='C1'!AA148 -> 106.538083 | K148: ='C3'!Z148 -> 147 | L148: ='C3'!AA148 -> 230.5639788
C149: ='C2'!Z149 -> 148 | D149: ='C2'!AA149 -> 169.511683 | G149: ='C1'!Z149 -> 148 | H149: ='C1'!AA149 -> 107.9761459 | K149: ='C3'!Z149 -> 148 | L149: ='C3'!AA149 -> 232.0332921
C150: ='C2'!Z150 -> 149 | D150: ='C2'!AA150 -> 171.2857771 | G150: ='C1'!Z150 -> 149 | H150: ='C1'!AA150 -> 109.4142088 | K150: ='C3'!Z150 -> 149 | L150: ='C3'!AA150 -> 233.5026054
C151: ='C2'!Z151 -> 150 | D151: ='C2'!AA151 -> 172.9762538 | G151: ='C1'!Z151 -> 150 | H151: ='C1'!AA151 -> 110.8522717 | K151: ='C3'!Z151 -> 150 | L151: ='C3'!AA151 -> 234.9719186
C152: ='C2'!Z152 -> 151 | D152: ='C2'!AA152 -> 174.6667305 | G152: ='C1'!Z152 -> 151 | H152: ='C1'!AA152 -> 112.2903345 | K152: ='C3'!Z152 -> 151 | L152: ='C3'!AA152 -> 236.2483003
C153: ='C2'!Z153 -> 152 | D153: ='C2'!AA153 -> 176.3572072 | G153: ='C1'!Z153 -> 152 | H153: ='C1'!AA153 -> 113.7283974 | K153: ='C3'!Z153 -> 152 | L153: ='C3'!AA153 -> 237.4790289
C154: ='C2'!Z154 -> 153 | D154: ='C2'!AA154 -> 178.0476839 | G154: ='C1'!Z154 -> 153 | H154: ='C1'!AA154 -> 115.1534036 | K154: ='C3'!Z154 -> 153 | L154: ='C3'!AA154 -> 238.7097575
C155: ='C2'!Z155 -> 154 | D155: ='C2'!AA155 -> 179.670441 | G155: ='C1'!Z155 -> 154 | H155: ='C1'!AA155 -> 116.5697035 | K155: ='C3'!Z155 -> 154 | L155: ='C3'!AA155 -> 239.9404861
C156: ='C2'!Z156 -> 155 | D156: ='C2'!AA156 -> 181.2171593 | G156: ='C1'!Z156 -> 155 | H156: ='C1'!AA156 -> 117.9860034 | K156: ='C3'!Z156 -> 155 | L156: ='C3'!AA156 -> 241.0355912
C157: ='C2'!Z157 -> 156 | D157: ='C2'!AA157 -> 182.7638776 | G157: ='C1'!Z157 -> 156 | H157: ='C1'!AA157 -> 119.4023034 | K157: ='C3'!Z157 -> 156 | L157: ='C3'!AA157 -> 242.0532993
C158: ='C2'!Z158 -> 157 | D158: ='C2'!AA158 -> 184.3105959 | G158: ='C1'!Z158 -> 157 | H158: ='C1'!AA158 -> 120.8186033 | K158: ='C3'!Z158 -> 157 | L158: ='C3'!AA158 -> 243.0710074
C159: ='C2'!Z159 -> 158 | D159: ='C2'!AA159 -> 185.8573142 | G159: ='C1'!Z159 -> 158 | H159: ='C1'!AA159 -> 122.2349032 | K159: ='C3'!Z159 -> 158 | L159: ='C3'!AA159 -> 244.0887155
C160: ='C2'!Z160 -> 159 | D160: ='C2'!AA160 -> 187.3156461 | G160: ='C1'!Z160 -> 159 | H160: ='C1'!AA160 -> 123.6281296 | K160: ='C3'!Z160 -> 159 | L160: ='C3'!AA160 -> 245.0118898
C161: ='C2'!Z161 -> 160 | D161: ='C2'!AA161 -> 188.7310883 | G161: ='C1'!Z161 -> 160 | H161: ='C1'!AA161 -> 125.0202816 | K161: ='C3'!Z161 -> 160 | L161: ='C3'!AA161 -> 245.8261626
C162: ='C2'!Z162 -> 161 | D162: ='C2'!AA162 -> 190.1465304 | G162: ='C1'!Z162 -> 161 | H162: ='C1'!AA162 -> 126.4124336 | K162: ='C3'!Z162 -> 161 | L162: ='C3'!AA162 -> 246.6404353
C163: ='C2'!Z163 -> 162 | D163: ='C2'!AA163 -> 191.5619726 | G163: ='C1'!Z163 -> 162 | H163: ='C1'!AA163 -> 127.8045856 | K163: ='C3'!Z163 -> 162 | L163: ='C3'!AA163 -> 247.454708
C164: ='C2'!Z164 -> 163 | D164: ='C2'!AA164 -> 192.9774148 | G164: ='C1'!Z164 -> 163 | H164: ='C1'!AA164 -> 129.1967376 | K164: ='C3'!Z164 -> 163 | L164: ='C3'!AA164 -> 248.217852
C165: ='C2'!Z165 -> 164 | D165: ='C2'!AA165 -> 194.2638225 | G165: ='C1'!Z165 -> 164 | H165: ='C1'!AA165 -> 130.5796585 | K165: ='C3'!Z165 -> 164 | L165: ='C3'!AA165 -> 248.857448
C166: ='C2'!Z166 -> 165 | D166: ='C2'!AA166 -> 195.5318821 | G166: ='C1'!Z166 -> 165 | H166: ='C1'!AA166 -> 131.9421345 | K166: ='C3'!Z166 -> 165 | L166: ='C3'!AA166 -> 249.497044
C167: ='C2'!Z167 -> 166 | D167: ='C2'!AA167 -> 196.7999416 | G167: ='C1'!Z167 -> 166 | H167: ='C1'!AA167 -> 133.3046105 | K167: ='C3'!Z167 -> 166 | L167: ='C3'!AA167 -> 250.1366399
C168: ='C2'!Z168 -> 167 | D168: ='C2'!AA168 -> 198.0680012 | G168: ='C1'!Z168 -> 167 | H168: ='C1'!AA168 -> 134.6670865 | K168: ='C3'!Z168 -> 167 | L168: ='C3'!AA168 -> 250.7541197
C169: ='C2'!Z169 -> 168 | D169: ='C2'!AA169 -> 199.3238539 | G169: ='C1'!Z169 -> 168 | H169: ='C1'!AA169 -> 136.0295626 | K169: ='C3'!Z169 -> 168 | L169: ='C3'!AA169 -> 251.210517
C170: ='C2'!Z170 -> 169 | D170: ='C2'!AA170 -> 200.4348658 | G170: ='C1'!Z170 -> 169 | H170: ='C1'!AA170 -> 137.3920386 | K170: ='C3'!Z170 -> 169 | L170: ='C3'!AA170 -> 251.6669143
C171: ='C2'!Z171 -> 170 | D171: ='C2'!AA171 -> 201.5458777 | G171: ='C1'!Z171 -> 170 | H171: ='C1'!AA171 -> 138.7155315 | K171: ='C3'!Z171 -> 170 | L171: ='C3'!AA171 -> 252.1233117
C172: ='C2'!Z172 -> 171 | D172: ='C2'!AA172 -> 202.6568896 | G172: ='C1'!Z172 -> 171 | H172: ='C1'!AA172 -> 140.0195284 | K172: ='C3'!Z172 -> 171 | L172: ='C3'!AA172 -> 252.579709
C173: ='C2'!Z173 -> 172 | D173: ='C2'!AA173 -> 203.7679015 | G173: ='C1'!Z173 -> 172 | H173: ='C1'!AA173 -> 141.3235253 | K173: ='C3'!Z173 -> 172 | L173: ='C3'!AA173 -> 252.88453
C174: ='C2'!Z174 -> 173 | D174: ='C2'!AA174 -> 204.8284096 | G174: ='C1'!Z174 -> 173 | H174: ='C1'!AA174 -> 142.6275222 | K174: ='C3'!Z174 -> 173 | L174: ='C3'!AA174 -> 253.1811616
C175: ='C2'!Z175 -> 174 | D175: ='C2'!AA175 -> 205.7590172 | G175: ='C1'!Z175 -> 174 | H175: ='C1'!AA175 -> 143.9315191 | K175: ='C3'!Z175 -> 174 | L175: ='C3'!AA175 -> 253.4777931
C176: ='C2'!Z176 -> 175 | D176: ='C2'!AA176 -> 206.6896249 | G176: ='C1'!Z176 -> 175 | H176: ='C1'!AA176 -> 145.2336842 | K176: ='C3'!Z176 -> 175 | L176: ='C3'!AA176 -> 253.7744247
C177: ='C2'!Z177 -> 176 | D177: ='C2'!AA177 -> 207.6202325 | G177: ='C1'!Z177 -> 176 | H177: ='C1'!AA177 -> 146.4550536 | K177: ='C3'!Z177 -> 176 | L177: ='C3'!AA177 -> 253.9639174
C178: ='C2'!Z178 -> 177 | D178: ='C2'!AA178 -> 208.5508402 | G178: ='C1'!Z178 -> 177 | H178: ='C1'!AA178 -> 147.676423 | K178: ='C3'!Z178 -> 177 | L178: ='C3'!AA178 -> 254.1226184
C179: ='C2'!Z179 -> 178 | D179: ='C2'!AA179 -> 209.4037829 | G179: ='C1'!Z179 -> 178 | H179: ='C1'!AA179 -> 148.8977925 | K179: ='C3'!Z179 -> 178 | L179: ='C3'!AA179 -> 254.2813193
C180: ='C2'!Z180 -> 179 | D180: ='C2'!AA180 -> 210.1733164 | G180: ='C1'!Z180 -> 179 | H180: ='C1'!AA180 -> 150.1191619 | K180: ='C3'!Z180 -> 179 | L180: ='C3'!AA180 -> 254.4400203
C181: ='C2'!Z181 -> 180 | D181: ='C2'!AA181 -> 210.9428499 | G181: ='C1'!Z181 -> 180 | H181: ='C1'!AA181 -> 151.3405313 | K181: ='C3'!Z181 -> 180 | L181: ='C3'!AA181 -> 254.5375272
C182: ='C2'!Z182 -> 181 | D182: ='C2'!AA182 -> 211.7123835 | G182: ='C1'!Z182 -> 181 | H182: ='C1'!AA182 -> 152.5226683 | K182: ='C3'!Z182 -> 181 | L182: ='C3'!AA182 -> 254.5950437
C183: ='C2'!Z183 -> 182 | D183: ='C2'!AA183 -> 212.481917 | G183: ='C1'!Z183 -> 182 | H183: ='C1'!AA183 -> 153.6401723 | K183: ='C3'!Z183 -> 182 | L183: ='C3'!AA183 -> 254.6525601
C184: ='C2'!Z184 -> 183 | D184: ='C2'!AA184 -> 213.1461733 | G184: ='C1'!Z184 -> 183 | H184: ='C1'!AA184 -> 154.7576762 | K184: ='C3'!Z184 -> 183 | L184: ='C3'!AA184 -> 254.7100766
C185: ='C2'!Z185 -> 184 | D185: ='C2'!AA185 -> 213.7618805 | G185: ='C1'!Z185 -> 184 | H185: ='C1'!AA185 -> 155.8751802 | K185: ='C3'!Z185 -> 184 | L185: ='C3'!AA185 -> 254.7208004
C186: ='C2'!Z186 -> 185 | D186: ='C2'!AA186 -> 214.3775876 | G186: ='C1'!Z186 -> 185 | H186: ='C1'!AA186 -> 156.9926842 | K186: ='C3'!Z186 -> 185 | L186: ='C3'!AA186 -> 254.6701996
C187: ='C2'!Z187 -> 186 | D187: ='C2'!AA187 -> 214.9932948 | G187: ='C1'!Z187 -> 186 | H187: ='C1'!AA187 -> 158.1101881 | K187: ='C3'!Z187 -> 186 | L187: ='C3'!AA187 -> 254.6195987
C188: ='C2'!Z188 -> 187 | D188: ='C2'!AA188 -> 215.609002 | G188: ='C1'!Z188 -> 187 | H188: ='C1'!AA188 -> 159.1581429 | K188: ='C3'!Z188 -> 187 | L188: ='C3'!AA188 -> 254.5535514
C189: ='C2'!Z189 -> 188 | D189: ='C2'!AA189 -> 216.107605 | G189: ='C1'!Z189 -> 188 | H189: ='C1'!AA189 -> 160.1807999 | K189: ='C3'!Z189 -> 188 | L189: ='C3'!AA189 -> 254.3923068
C190: ='C2'!Z190 -> 189 | D190: ='C2'!AA190 -> 216.5912314 | G190: ='C1'!Z190 -> 189 | H190: ='C1'!AA190 -> 161.2034568 | K190: ='C3'!Z190 -> 189 | L190: ='C3'!AA190 -> 254.2310622
C191: ='C2'!Z191 -> 190 | D191: ='C2'!AA191 -> 217.0748579 | G191: ='C1'!Z191 -> 190 | H191: ='C1'!AA191 -> 162.2261138 | K191: ='C3'!Z191 -> 190 | L191: ='C3'!AA191 -> 254.0698177
C192: ='C2'!Z192 -> 191 | D192: ='C2'!AA192 -> 217.5584843 | G192: ='C1'!Z192 -> 191 | H192: ='C1'!AA192 -> 163.2487707 | K192: ='C3'!Z192 -> 191 | L192: ='C3'!AA192 -> 253.8154923
C193: ='C2'!Z193 -> 192 | D193: ='C2'!AA193 -> 218.0298055 | G193: ='C1'!Z193 -> 192 | H193: ='C1'!AA193 -> 164.2619686 | K193: ='C3'!Z193 -> 192 | L193: ='C3'!AA193 -> 253.544277
C194: ='C2'!Z194 -> 193 | D194: ='C2'!AA194 -> 218.3749074 | G194: ='C1'!Z194 -> 193 | H194: ='C1'!AA194 -> 165.1781416 | K194: ='C3'!Z194 -> 193 | L194: ='C3'!AA194 -> 253.2730617
C195: ='C2'!Z195 -> 194 | D195: ='C2'!AA195 -> 218.7200094 | G195: ='C1'!Z195 -> 194 | H195: ='C1'!AA195 -> 166.0943147 | K195: ='C3'!Z195 -> 194 | L195: ='C3'!AA195 -> 252.9600438
C196: ='C2'!Z196 -> 195 | D196: ='C2'!AA196 -> 219.0651114 | G196: ='C1'!Z196 -> 195 | H196: ='C1'!AA196 -> 167.0104877 | K196: ='C3'!Z196 -> 195 | L196: ='C3'!AA196 -> 252.6132667
C197: ='C2'!Z197 -> 196 | D197: ='C2'!AA197 -> 219.4102133 | G197: ='C1'!Z197 -> 196 | H197: ='C1'!AA197 -> 167.9266608 | K197: ='C3'!Z197 -> 196 | L197: ='C3'!AA197 -> 252.2664896
C198: ='C2'!Z198 -> 197 | D198: ='C2'!AA198 -> 219.7201545 | G198: ='C1'!Z198 -> 197 | H198: ='C1'!AA198 -> 168.8428338 | K198: ='C3'!Z198 -> 197 | L198: ='C3'!AA198 -> 251.9019931
C199: ='C2'!Z199 -> 198 | D199: ='C2'!AA199 -> 219.9444505 | G199: ='C1'!Z199 -> 198 | H199: ='C1'!AA199 -> 169.7085838 | K199: ='C3'!Z199 -> 198 | L199: ='C3'!AA199 -> 251.4870732
C200: ='C2'!Z200 -> 199 | D200: ='C2'!AA200 -> 220.1687466 | G200: ='C1'!Z200 -> 199 | H200: ='C1'!AA200 -> 170.5112899 | K200: ='C3'!Z200 -> 199 | L200: ='C3'!AA200 -> 251.0721532
... 4300 more rows

Sheet C1
A1: 0 | B1: 0 | C1: 45 | D1: Teil2 | E1: 0 | F1: 1 | H1: Qmax | I1: =IF(Eingabe!B9=1,Eingabe!B10*(1-Eingabe!B6/100),Eingabe!B30) -> 188.2880828 | J1: 0 | K1: 0 | L1: =I2 -> 90000 | Q1: =I4 -> 248.3556301 | R1: =F1*$I$1 -> 188.2880828 | S1: =I3 -> 67500 | U1: 0 | V1: Kurve1+2 | W1: =J1 -> 0 | X1: =K1 -> 0 | Y1: Zeit soll | Z1: 0 | AA1: 0
A2: 0.02272727273 | B2: 0.02093217956 | C2: =C1+1 -> 46 | E2: 0.002808988764 | F2: 0.9993458563 | H2: V_100 | I2: =Eingabe!B2 -> 90000 | J2: =$J$45/44+J1 -> 5.644446139 | K2: =B2*$I$1 -> 3.941279957 | L2: =L1-(K2*(J2-J1)) -> 89977.75366 | Q2: =Q1+($Q$357-$Q$1)/356 -> 252.811123 | R2: =F2*$I$1 -> 188.1649153 | S2: =S1-(R2*(Q2-Q1)) -> 66661.63256 | U2: =U1+1 -> 1 | V2: =MAX(W:W) -> 1834.511102 | W2: =J2 -> 5.644446139 | X2: 3.941279957 | Z2: =IF(Z1<INT($V$2), Z1+Eingabe!$B$3,"") -> 1 | AA2: =IF(ISNUMBER(Z2),FORECAST(Z2,OFFSET($X$1:$X$401,MATCH(Z2,$W$1:$W$401,1)-1,0,2),OFFSET($W$1:$W$401,MATCH(Z2,$W$1:$W$401,1)-1,0,2)),"") -> 0.6982580505
A3: 0.04545454545 | B3: 0.0371420594 | C3: =C2+1 -> 47 | E3: 0.005617977528 | F3: 0.9972613645 | H3: V_75 | I3: =I2*0.75 -> 67500 | J3: =$J$45/44+J2 -> 11.28889228 | K3: 6.993407156 | L3: =L2-(K3*(J3-J2)) -> 89938.27975 | Q3: =Q2+($Q$357-$Q$1)/356 -> 257.2666159 | R3: 187.7724304 | S3: =S2-(R3*(Q3-Q2)) -> 65825.01383 | U3: =U2+1 -> 2 | W3: 11.28889228 | X3: 6.993407156 | Z3: =IF(Z2<INT($V$2), Z2+Eingabe!$B$3,"") -> 2 | AA3: =IF(ISNUMBER(Z3),FORECAST(Z3,OFFSET($X$1:$X$401,MATCH(Z3,$W$1:$W$401,1)-1,0,2),OFFSET($W$1:$W$401,MATCH(Z3,$W$1:$W$401,1)-1,0,2)),"") -> 1.396516101
A4: 0.06818181818 | B4: 0.04511451171 | C4: 48 | E4: 0.008426966292 | F4: 0.9937552244 | H4: t_Qmax | I4: 248.3556301 | J4: 16.93333842 | K4: 8.494524916 | L4: 89890.33286 | Q4: 261.7221088 | R4: 187.112266 | S4: 64991.33645 | U4: 3 | W4: 16.93333842 | X4: 8.494524916 | Z4: =IF(Z3<INT($V$2), Z3+Eingabe!$B$3,"") -> 3 | AA4: 2.094774152
A5: 0.09090909091 | B5: 0.04925061881 | C5: 49 | E5: 0.01123595506 | F5: 0.989272258 | H5: V_ist75 | I5: =L45 -> 67500 | J5: 22.57778455 | K5: 9.273304593 | L5: 89837.99019 | Q5: 266.1776017 | R5: 186.2681768 | S5: 64161.41991 | U5: 4 | W5: 22.57778455 | X5: 9.273304593 | Z5: =IF(Z4<INT($V$2), Z4+Eingabe!$B$3,"") -> 4 | AA5: 2.793032202
A6: 0.1136363636 | B6: 0.05495962222 | C6: 50 | E6: 0.01404494382 | F6: 0.9839083739 | H6: 0Bedingung | I6: =I3-I5 -> 0 | J6: 28.22223069 | K6: 10.3482419 | L6: 89779.5801 | Q6: 270.6330946 | R6: 185.2582214 | S6: 63336.00322 | U6: 5 | W6: 28.22223069 | X6: 10.3482419 | Z6: =IF(Z5<INT($V$2), Z5+Eingabe!$B$3,"") -> 5 | AA6: 3.491290253
A7: 0.1363636364 | B7: 0.06216143017 | C7: 51 | E7: 0.01685393258 | F7: 0.9777246548 | H7: Teil2 | J7: 33.86667683 | K7: 11.70425651 | L7: 89713.51605 | Q7: 275.0885875 | R7: 184.0939008 | S7: 62515.77416 | U7: 6 | W7: 33.86667683 | X7: 11.70425651 | Z7: =IF(Z6<INT($V$2), Z6+Eingabe!$B$3,"") -> 6 | AA7: 4.133538964
A8: 0.1590909091 | B8: 0.07099410348 | C8: 52 | E8: 0.01966292135 | F8: 0.9706774964 | H8: V_10 (Rest) | I8: =I2*0.1 -> 9000 | J8: 39.51112297 | K8: 13.36734363 | L8: 89638.0648 | Q8: 279.5440804 | R8: 182.7670048 | S8: 61701.45706 | U8: 7 | W8: 39.51112297 | X8: 13.36734363 | Z8: =IF(Z7<INT($V$2), Z7+Eingabe!$B$3,"") -> 7 | AA8: 4.674269999
A9: 0.1818181818 | B9: 0.08133023059 | C9: 53 | E9: 0.02247191011 | F9: 0.9629674682 | H9: t_Gesamt | I9: 1834.511102 | J9: 45.15556911 | K9: 15.31351319 | L9: 89551.6285 | Q9: 283.9995733 | R9: 181.3152984 | S9: 60893.60804 | U9: 8 | W9: 45.15556911 | X9: 15.31351319 | Z9: =IF(Z8<INT($V$2), Z8+Eingabe!$B$3,"") -> 8 | AA9: 5.215001033
A10: 0.2045454545 | B10: 0.09329647735 | C10: 54 | E10: 0.02528089888 | F10: 0.9547167095 | H10: V_ist10 | I10: =S357 -> 9000 | J10: 50.80001525 | K10: 17.56661485 | L10: 89452.47469 | Q10: 288.4550662 | R10: 179.7617788 | S10: 60092.68071 | U10: 9 | W10: 50.80001525 | X10: 17.56661485 | Z10: =IF(Z9<INT($V$2), Z9+Eingabe!$B$3,"") -> 9 | AA10: 5.755732067
A11: 0.2272727273 | B11: 0.1067663349 | C11: 55 | E11: 0.02808988764 | F11: 0.946029855 | H11: 0Bedingung | I11: =I8-I10 -> 2.564775059e-10 | J11: 56.44446139 | K11: 20.1028285 | L11: 89339.00536 | Q11: 292.9105591 | R11: 178.1261477 | S11: 59299.04092 | U11: 10 | W11: 56.44446139 | X11: 20.1028285 | Z11: =IF(Z10<INT($V$2), Z10+Eingabe!$B$3,"") -> 10 | AA11: 6.296463102
A12: 0.25 | B12: 0.1218601633 | C12: 56 | E12: 0.0308988764 | F12: 0.9368458612 | J12: 62.08890752 | K12: 22.94481651 | L12: 89209.49457 | Q12: 297.366052 | R12: 176.3969111 | S12: 58513.10574 | U12: 11 | W12: 62.08890752 | X12: 22.94481651 | Z12: =IF(Z11<INT($V$2), Z11+Eingabe!$B$3,"") -> 11 | AA12: 6.837194136
A13: 0.2727272727 | B13: 0.1384192704 | C13: 57 | E13: 0.03370786517 | F13: 0.9272083456 | H13: Schrittweite1 | I13: =J2 -> 5.644446139 | J13: 67.73335366 | K13: 26.06269904 | L13: 89062.38507 | Q13: 301.8215449 | R13: 174.5822817 | S13: 57735.25562 | U13: 12 | W13: 67.73335366 | X13: 26.06269904 | Z13: =IF(Z12<INT($V$2), Z12+Eingabe!$B$3,"") -> 12 | AA13: 7.182523396
A14: 0.2954545455 | B14: 0.1565282222 | C14: 58 | E14: 0.03651685393 | F14: 0.9170300602 | H14: Schrittweite2 | I14: =Q2-Q1 -> 4.455492899 | J14: 73.3777998 | K14: 29.47239886 | L14: 88896.02971 | Q14: 306.2770378 | R14: 172.6658319 | S14: 56965.94424 | U14: 13 | W14: 73.3777998 | X14: 29.47239886 | Z14: =IF(Z13<INT($V$2), Z13+Eingabe!$B$3,"") -> 13 | AA14: 7.448469376
A15: 0.3181818182 | B15: 0.176030917 | C15: 59 | E15: 0.0393258427 | F15: 0.9065029139 | H15: Schritt_max | I15: 44 | J15: 79.02224594 | K15: 33.14452388 | L15: 88708.94723 | Q15: 310.7325307 | R15: 170.6836957 | S15: 56205.46424 | U15: 14 | W15: 79.02224594 | X15: 33.14452388 | Z15: =IF(Z14<INT($V$2), Z14+Eingabe!$B$3,"") -> 14 | AA15: 7.714415356
A16: 0.3409090909 | B16: 0.197018907 | C16: 60 | E16: 0.04213483146 | F16: 0.8955745892 | J16: 84.66669208 | K16: 37.09631228 | L16: 88499.55909 | Q16: 315.1880236 | R16: 168.6260224 | S16: 55454.1522 | U16: 15 | W16: 84.66669208 | X16: 37.09631228 | Z16: =IF(Z15<INT($V$2), Z15+Eingabe!$B$3,"") -> 15 | AA16: 7.980361336
A17: 0.3636363636 | B17: 0.2193727217 | C17: 61 | E17: 0.04494382022 | F17: 0.8842101427 | J17: 90.31113822 | K17: 41.30526919 | L17: 88266.41372 | Q17: 319.6435165 | R17: 166.4862325 | S17: 54712.37397 | U17: 16 | W17: 90.31113822 | X17: 41.30526919 | Z17: =IF(Z16<INT($V$2), Z16+Eingabe!$B$3,"") -> 16 | AA17: 8.246307317
A18: 0.3863636364 | B18: 0.2432066377 | C18: 62 | E18: 0.04775280899 | F18: 0.8725055743 | J18: 95.95558436 | K18: 45.79291154 | L18: 88007.9381 | Q18: 324.0990094 | R18: 164.2824018 | S18: 53980.41489 | U18: 17 | W18: 95.95558436 | X18: 45.79291154 | Z18: =IF(Z17<INT($V$2), Z17+Eingabe!$B$3,"") -> 17 | AA18: 8.503722398
A19: 0.4090909091 | B19: 0.2685214793 | C19: 63 | E19: 0.05056179775 | F19: 0.8606265624 | J19: 101.6000305 | K19: 50.55939453 | L19: 87722.55832 | Q19: 328.5545023 | R19: 162.0457254 | S19: 53258.42132 | U19: 18 | W19: 101.6000305 | X19: 50.55939453 | Z19: =IF(Z18<INT($V$2), Z18+Eingabe!$B$3,"") -> 18 | AA19: 8.641695133
A20: 0.4318181818 | B20: 0.2958937971 | C20: 64 | E20: 0.05337078652 | F20: 0.8486603287 | J20: 107.2444766 | K20: 55.71327577 | L20: 87408.08774 | Q20: 333.0099952 | R20: 159.7926262 | S20: 52546.4664 | U20: 19 | W20: 107.2444766 | X20: 55.71327577 | Z20: =IF(Z19<INT($V$2), Z19+Eingabe!$B$3,"") -> 19 | AA20: 8.779667869
A21: 0.4545454545 | B21: 0.3262646497 | C21: 65 | E21: 0.05617977528 | F21: 0.8366940951 | J21: 112.8889228 | K21: 61.43174537 | L21: 87061.33956 | Q21: 337.4654881 | R21: 157.539527 | S21: 51844.55016 | U21: 20 | W21: 112.8889228 | X21: 61.43174537 | Z21: =IF(Z20<INT($V$2), Z20+Eingabe!$B$3,"") -> 20 | AA21: 8.917640605
A22: 0.4772727273 | B22: 0.3613897104 | C22: 66 | E22: 0.05898876404 | F22: 0.8246842701 | J22: 118.5333689 | K22: 68.04537572 | L22: 86677.2611 | Q22: 341.920981 | R22: 155.2782201 | S22: 51152.70915 | U22: 21 | W22: 118.5333689 | X22: 68.04537572 | Z22: =IF(Z21<INT($V$2), Z21+Eingabe!$B$3,"") -> 21 | AA22: 9.055613341
A23: 0.5 | B23: 0.398939424 | C23: 67 | E23: 0.06179775281 | F23: 0.812656993 | J23: 124.177815 | K23: 75.1155393 | L23: 86253.27548 | Q23: 346.3764739 | R23: 153.0136272 | S23: 50470.95802 | U23: 22 | W23: 124.177815 | X23: 75.1155393 | Z23: =IF(Z22<INT($V$2), Z22+Eingabe!$B$3,"") -> 22 | AA23: 9.193586077
A24: 0.5227272727 | B24: 0.4380206798 | C24: 68 | E24: 0.06460674157 | F24: 0.8006384158 | J24: 129.8222612 | K24: 82.47407402 | L24: 85787.75502 | Q24: 350.8319668 | R24: 150.7506723 | S24: 49799.28947 | U24: 23 | W24: 129.8222612 | X24: 82.47407402 | Z24: =IF(Z23<INT($V$2), Z23+Eingabe!$B$3,"") -> 23 | AA24: 9.353711974
A25: 0.5454545455 | B25: 0.4786212716 | C25: 69 | E25: 0.06741573034 | F25: 0.7886024125 | J25: 135.4667073 | K25: 90.11868162 | L25: 85279.08497 | Q25: 355.2874597 | R25: 148.4844363 | S25: 49137.71812 | U25: 24 | W25: 135.4667073 | X25: 90.11868162 | Z25: =IF(Z24<INT($V$2), Z24+Eingabe!$B$3,"") -> 24 | AA25: 9.544153566
A26: 0.5681818182 | B26: 0.5208458343 | C26: 70 | E26: 0.0702247191 | F26: 0.776531531 | J26: 141.1111535 | K26: 98.06906357 | L26: 84725.53942 | Q26: 359.7429526 | R26: 146.2116332 | S26: 48486.27323 | U26: 25 | W26: 141.1111535 | X26: 98.06906357 | Z26: =IF(Z25<INT($V$2), Z25+Eingabe!$B$3,"") -> 25 | AA26: 9.734595157
A27: 0.5909090909 | B27: 0.5639582615 | C27: 71 | E27: 0.07303370787 | F27: 0.7644083191 | J27: 146.7555996 | K27: 106.1866198 | L27: 84126.17477 | Q27: 364.1984455 | R27: 143.9289769 | S27: 47844.99869 | U27: 26 | W27: 146.7555996 | X27: 106.1866198 | Z27: =IF(Z26<INT($V$2), Z26+Eingabe!$B$3,"") -> 26 | AA27: 9.925036749
A28: 0.6136363636 | B28: 0.6070680984 | C28: 72 | E28: 0.07584269663 | F28: 0.7522502028 | J28: 152.4000457 | K28: 114.3036884 | L28: 83480.99376 | Q28: 368.6539384 | R28: 141.6397485 | S28: 47213.9238 | U28: 27 | W28: 152.4000457 | X28: 114.3036884 | Z28: =IF(Z27<INT($V$2), Z27+Eingabe!$B$3,"") -> 27 | AA28: 10.11547834
A29: 0.6363636364 | B29: 0.6495255316 | C29: 73 | E29: 0.07865168539 | F29: 0.7400223299 | J29: 158.0444919 | K29: 122.2979171 | L29: 82790.68975 | Q29: 373.1094313 | R29: 139.3373857 | S29: 46593.10707 | U29: 28 | W29: 158.0444919 | X29: 122.2979171 | Z29: =IF(Z28<INT($V$2), Z28+Eingabe!$B$3,"") -> 28 | AA29: 10.30591993
A30: 0.6590909091 | B30: 0.6912590646 | C30: 74 | E30: 0.08146067416 | F30: 0.7278380484 | J30: 163.688938 | K30: 130.155844 | L30: 82056.0321 | Q30: 377.5649242 | R30: 137.0432307 | S30: 45982.51193 | U30: 29 | W30: 163.688938 | X30: 130.155844 | Z30: =IF(Z29<INT($V$2), Z29+Eingabe!$B$3,"") -> 29 | AA30: 10.53509221
A31: 0.6818181818 | B31: 0.7321029799 | C31: 75 | E31: 0.08426966292 | F31: 0.7157060972 | J31: 169.3333842 | K31: 137.8462665 | L31: 81277.96627 | Q31: 382.0204171 | R31: 134.7589289 | S31: 45382.09447 | U31: 30 | W31: 169.3333842 | X31: 137.8462665 | Z31: =IF(Z30<INT($V$2), Z30+Eingabe!$B$3,"") -> 30 | AA31: 10.77533095
A32: 0.7045454545 | B32: 0.7711938253 | C32: 76 | E32: 0.08707865169 | F32: 0.70372 | J32: 174.9778303 | K32: 145.2066068 | L32: 80458.3554 | Q32: 386.47591 | R32: 132.5020896 | S32: 44791.73236 | U32: 31 | W32: 174.9778303 | X32: 145.2066068 | Z32: =IF(Z31<INT($V$2), Z31+Eingabe!$B$3,"") -> 31 | AA32: 11.01556969
A33: 0.7272727273 | B33: 0.8078076873 | C33: 77 | E33: 0.08988764045 | F33: 0.69197 | J33: 180.6222764 | K33: 152.1005607 | L33: 79599.83198 | Q33: 390.9314029 | R33: 130.2897046 | S33: 44211.2275 | U33: 32 | W33: 180.6222764 | X33: 152.1005607 | Z33: =IF(Z32<INT($V$2), Z32+Eingabe!$B$3,"") -> 32 | AA33: 11.25580843
A34: 0.75 | B34: 0.8413079007 | C34: 78 | E34: 0.09269662921 | F34: 0.68046 | J34: 186.2667226 | K34: 158.4082517 | L34: 78705.70513 | Q34: 395.3868958 | R34: 128.1225088 | S34: 43640.37857 | U34: 33 | W34: 186.2667226 | X34: 158.4082517 | Z34: =IF(Z33<INT($V$2), Z33+Eingabe!$B$3,"") -> 33 | AA34: 11.49604716
A35: 0.7727272727 | B35: 0.8719648176 | C35: 79 | E35: 0.09550561798 | F35: 0.66914 | J35: 191.9111687 | K35: 164.1805838 | L35: 77778.99667 | Q35: 399.8423887 | R35: 125.9910877 | S35: 43079.02618 | U35: 34 | W35: 191.9111687 | X35: 164.1805838 | Z35: =IF(Z34<INT($V$2), Z34+Eingabe!$B$3,"") -> 34 | AA35: 11.74353903
A36: 0.7954545455 | B36: 0.8994295903 | C36: 80 | E36: 0.09831460674 | F36: 0.65795 | J36: 197.5556148 | K36: 169.3518732 | L36: 76823.09915 | Q36: 404.2978816 | R36: 123.8841441 | S36: 42527.06125 | U36: 35 | W36: 197.5556148 | X36: 169.3518732 | Z36: =IF(Z35<INT($V$2), Z35+Eingabe!$B$3,"") -> 35 | AA36: 12.03818036
A37: 0.8181818182 | B37: 0.9234928837 | C37: 81 | E37: 0.1011235955 | F37: 0.64688 | J37: 203.200061 | K37: 173.8827045 | L37: 75841.62758 | Q37: 408.7533745 | R37: 121.799795 | S37: 41984.38313 | U37: 36 | W37: 203.200061 | X37: 173.8827045 | Z37: =IF(Z36<INT($V$2), Z36+Eingabe!$B$3,"") -> 36 | AA37: 12.33282169
A38: 0.8409090909 | B38: 0.9436488196 | C38: 82 | E38: 0.1039325843 | F38: 0.63593 | J38: 208.8445071 | K38: 177.6778271 | L38: 74838.73466 | Q38: 413.2088674 | R38: 119.7380405 | S38: 41450.89114 | U38: 37 | W38: 208.8445071 | X38: 177.6778271 | Z38: =IF(Z37<INT($V$2), Z37+Eingabe!$B$3,"") -> 37 | AA38: 12.62746302
A39: 0.8636363636 | B39: 0.9603160675 | C39: 83 | E39: 0.106741573 | F39: 0.62506 | J39: 214.4889533 | K39: 180.8160712 | L39: 73818.12809 | Q39: 417.6643603 | R39: 117.691349 | S39: 40926.51817 | U39: 38 | W39: 214.4889533 | X39: 180.8160712 | Z39: =IF(Z38<INT($V$2), Z38+Eingabe!$B$3,"") -> 38 | AA39: 12.92210435
A40: 0.8863636364 | B40: 0.9736516059 | C40: 84 | E40: 0.1095505618 | F40: 0.61419 | J40: 220.1333994 | K40: 183.3269942 | L40: 72783.34874 | Q40: 422.1198532 | R40: 115.6446576 | S40: 40411.26422 | U40: 39 | W40: 220.1333994 | X40: 183.3269942 | Z40: =IF(Z39<INT($V$2), Z39+Eingabe!$B$3,"") -> 39 | AA40: 13.21674568
A41: 0.9090909091 | B41: 0.9841264218 | C41: 85 | E41: 0.1123595506 | F41: 0.60325 | J41: 225.7778455 | K41: 185.2992772 | L41: 71737.43695 | Q41: 426.5753461 | R41: 113.5847859 | S41: 39905.18801 | U41: 40 | W41: 225.7778455 | X41: 185.2992772 | Z41: =IF(Z40<INT($V$2), Z40+Eingabe!$B$3,"") -> 40 | AA41: 13.53590536
A42: 0.9318181818 | B42: 0.9916009499 | C42: 86 | E42: 0.1151685393 | F42: 0.59226 | J42: 231.4222917 | K42: 186.7066417 | L42: 70683.58137 | Q42: 431.030839 | R42: 111.5154999 | S42: 39408.3315 | U42: 41 | W42: 231.4222917 | X42: 186.7066417 | Z42: =IF(Z41<INT($V$2), Z41+Eingabe!$B$3,"") -> 41 | AA42: 13.88069908
A43: 0.9545454545 | B43: 0.9964589555 | C43: 87 | E43: 0.1179775281 | F43: 0.58121 | J43: 237.0667378 | K43: 187.6213463 | L43: 69624.56278 | Q43: 435.4863319 | R43: 109.4349166 | S43: 38920.745 | U43: 42 | W43: 237.0667378 | X43: 187.6213463 | Z43: =IF(Z42<INT($V$2), Z42+Eingabe!$B$3,"") -> 42 | AA43: 14.22549279
A44: 0.9772727273 | B44: 0.9990580388 | C44: 88 | E44: 0.1207865169 | F44: 0.57014 | J44: 242.711184 | K44: 188.1107227 | L44: 68562.78194 | Q44: 439.9418248 | R44: 107.3505675 | S44: 38442.44531 | U44: 43 | W44: 242.711184 | X44: 188.1107227 | Z44: =IF(Z43<INT($V$2), Z43+Eingabe!$B$3,"") -> 43 | AA44: 14.57028651
A45: 1 | B45: 1 | C45: 89 | E45: 0.1235955056 | F45: 0.55909 | J45: =I4 -> 248.3556301 | K45: 188.2880828 | L45: 67500 | Q45: 444.3973177 | R45: 105.2699842 | S45: 37973.41564 | U45: 44 | W45: 248.3556301 | X45: 188.2880828 | Z45: =IF(Z44<INT($V$2), Z44+Eingabe!$B$3,"") -> 44 | AA45: 14.91508022
C46: 90 | E46: 0.1264044944 | F46: 0.54815 | Q46: 448.8528106 | R46: 103.2101126 | S46: 37513.56372 | U46: 45 | W46: =Q2 -> 252.811123 | X46: =R2 -> 188.1649153 | Z46: =IF(Z45<INT($V$2), Z45+Eingabe!$B$3,"") -> 45 | AA46: 15.25987394
C47: 91 | E47: 0.1292134831 | F47: 0.53744 | Q47: 453.3083035 | R47: 101.1935472 | S47: 37062.69659 | U47: 46 | W47: =Q3 -> 257.2666159 | X47: 187.7724304 | Z47: =IF(Z46<INT($V$2), Z46+Eingabe!$B$3,"") -> 46 | AA47: 15.65058588
C48: 92 | E48: 0.1320224719 | F48: 0.52709 | Q48: 457.7637964 | R48: 99.24476556 | S48: 36620.51224 | U48: 47 | W48: 261.7221088 | X48: 187.112266 | Z48: =IF(Z47<INT($V$2), Z47+Eingabe!$B$3,"") -> 47 | AA48: 16.04975732
C49: 93 | E49: 0.1348314607 | F49: 0.5172 | Q49: 462.2192893 | R49: 97.38259642 | S49: 36186.62477 | U49: 48 | W49: 266.1776017 | X49: 186.2681768 | Z49: =IF(Z48<INT($V$2), Z48+Eingabe!$B$3,"") -> 48 | AA49: 16.44892875
C50: 94 | E50: 0.1376404494 | F50: 0.5078 | Q50: 466.6747822 | R50: 95.61268844 | S50: 35760.62312 | U50: 49 | W50: 270.6330946 | X50: 185.2582214 | Z50: =IF(Z49<INT($V$2), Z49+Eingabe!$B$3,"") -> 49 | AA50: 16.84810018
C51: 95 | E51: 0.1404494382 | F51: 0.49888 | Q51: 471.1302751 | R51: 93.93315874 | S51: 35342.1046 | U51: 50 | W51: 275.0885875 | X51: 184.0939008 | Z51: =IF(Z50<INT($V$2), Z50+Eingabe!$B$3,"") -> 50 | AA51: 17.24727162
C52: 96 | E52: 0.143258427 | F52: 0.49041 | Q52: 475.585768 | R52: 92.33835868 | S52: 34930.6917 | U52: 51 | W52: 279.5440804 | X52: 182.7670048 | Z52: =IF(Z51<INT($V$2), Z51+Eingabe!$B$3,"") -> 51 | AA52: 17.65647381
C53: 97 | E53: 0.1460674157 | F53: 0.48103 | Q53: 480.0412609 | R53: 90.57221646 | S53: 34527.14783 | U53: 52 | W53: 283.9995733 | X53: 181.3152984 | Z53: =IF(Z52<INT($V$2), Z52+Eingabe!$B$3,"") -> 52 | AA53: 18.10580287
C54: 98 | E54: 0.1488764045 | F54: 0.47184 | Q54: 484.4967538 | R54: 88.84184898 | S54: 34131.3136 | U54: 53 | W54: 288.4550662 | X54: 179.7617788 | Z54: =IF(Z53<INT($V$2), Z53+Eingabe!$B$3,"") -> 53 | AA54: 18.55513192
C55: 99 | E55: 0.1516853933 | F55: 0.46286 | Q55: 488.9522467 | R55: 87.151022 | S55: 33743.01284 | U55: 54 | W55: 292.9105591 | X55: 178.1261477 | Z55: =IF(Z54<INT($V$2), Z54+Eingabe!$B$3,"") -> 54 | AA55: 19.00446098
C56: 100 | E56: 0.154494382 | F56: 0.45408 | Q56: 493.4077396 | R56: 85.49785263 | S56: 33362.07777 | U56: 55 | W56: 297.366052 | X56: 176.3969111 | Z56: =IF(Z55<INT($V$2), Z55+Eingabe!$B$3,"") -> 55 | AA56: 19.45379003
C57: 101 | E57: 0.1573033708 | F57: 0.44549 | Q57: 497.8632325 | R57: 83.880458 | S57: 32988.34898 | U57: 56 | W57: 301.8215449 | X57: 174.5822817 | Z57: =IF(Z56<INT($V$2), Z56+Eingabe!$B$3,"") -> 56 | AA57: 19.90311909
C58: 102 | E58: 0.1601123596 | F58: 0.4371 | Q58: 502.3187254 | R58: 82.30072099 | S58: 32621.6587 | U58: 57 | W58: 306.2770378 | X58: 172.6658319 | Z58: =IF(Z57<INT($V$2), Z57+Eingabe!$B$3,"") -> 57 | AA58: 20.38254312
C59: 103 | E59: 0.1629213483 | F59: 0.42891 | Q59: 506.7742183 | R59: 80.75864159 | S59: 32261.83915 | U59: 58 | W59: 310.7325307 | X59: 170.6836957 | Z59: =IF(Z58<INT($V$2), Z58+Eingabe!$B$3,"") -> 58 | AA59: 20.88604478
C60: 104 | E60: 0.1657303371 | F60: 0.4209 | Q60: 511.2297112 | R60: 79.25045405 | S60: 31908.73931 | U60: 59 | W60: 315.1880236 | X60: 168.6260224 | Z60: =IF(Z59<INT($V$2), Z59+Eingabe!$B$3,"") -> 59 | AA60: 21.38954644
C61: 105 | E61: 0.1685393258 | F61: 0.41308 | Q61: 515.6852041 | R61: 77.77804124 | S61: 31562.1998 | U61: 60 | W61: 319.6435165 | X61: 166.4862325 | Z61: =IF(Z60<INT($V$2), Z60+Eingabe!$B$3,"") -> 60 | AA61: 21.8930481
C62: 106 | E62: 0.1713483146 | F62: 0.40544 | Q62: 520.140697 | R62: 76.33952029 | S62: 31222.06961 | U62: 61 | W62: 324.0990094 | X62: 164.2824018 | Z62: =IF(Z61<INT($V$2), Z61+Eingabe!$B$3,"") -> 61 | AA62: 22.39654976
C63: 107 | E63: 0.1741573034 | F63: 0.39797 | Q63: 524.5961899 | R63: 74.93300831 | S63: 30888.20613 | U63: 62 | W63: =Q19 -> 328.5545023 | X63: 162.0457254 | Z63: =IF(Z62<INT($V$2), Z62+Eingabe!$B$3,"") -> 62 | AA63: 22.90005142
C64: 108 | E64: 0.1769662921 | F64: 0.39067 | Q64: 529.0516828 | R64: 73.5585053 | S64: 30560.46673 | U64: 63 | W64: 333.0099952 | X64: 159.7926262 | Z64: =IF(Z63<INT($V$2), Z63+Eingabe!$B$3,"") -> 63 | AA64: 23.44808631
C65: 109 | E65: 0.1797752809 | F65: 0.38354 | Q65: 533.5071757 | R65: 72.21601127 | S65: 30238.7088 | U65: 64 | W65: 337.4654881 | X65: 157.539527 | Z65: =IF(Z64<INT($V$2), Z64+Eingabe!$B$3,"") -> 64 | AA65: 24.00046691
C66: 110 | E66: 0.1825842697 | F66: 0.37658 | Q66: 537.9626686 | R66: =F66*$I$1 -> 70.90552622 | S66: 29922.78973 | U66: 65 | W66: 341.920981 | X66: 155.2782201 | Z66: =IF(Z65<INT($V$2), Z65+Eingabe!$B$3,"") -> 65 | AA66: 24.55284751
C67: =C66+1 -> 111 | E67: 0.1853932584 | F67: 0.36979 | Q67: =Q66+($Q$357-$Q$1)/356 -> 542.4181614 | R67: 69.62705014 | S67: =S66-(R67*(Q67-Q66)) -> 29612.56691 | U67: =U66+1 -> 66 | W67: 346.3764739 | X67: 153.0136272 | Z67: =IF(Z66<INT($V$2), Z66+Eingabe!$B$3,"") -> 66 | AA67: =IF(ISNUMBER(Z67),FORECAST(Z67,OFFSET($X$1:$X$401,MATCH(Z67,$W$1:$W$401,1)-1,0,2),OFFSET($W$1:$W$401,MATCH(Z67,$W$1:$W$401,1)-1,0,2)),"") -> 25.1052281
C68: 112 | E68: 0.1882022472 | F68: 0.36317 | Q68: 546.8736543 | R68: 68.38058303 | S68: 29307.8977 | U68: 67 | W68: 350.8319668 | X68: 150.7506723 | Z68: =IF(Z67<INT($V$2), Z67+Eingabe!$B$3,"") -> 67 | AA68: 25.6576087
C69: 113 | E69: 0.191011236 | F69: 0.35672 | Q69: 551.3291472 | R69: 67.16612489 | S69: 29008.63951 | U69: 68 | W69: 355.2874597 | X69: 148.4844363 | Z69: =IF(Z68<INT($V$2), Z68+Eingabe!$B$3,"") -> 68 | AA69: 26.22377489
C70: 114 | E70: 0.1938202247 | F70: 0.35044 | Q70: 555.7846401 | R70: 65.98367573 | S70: 28714.64971 | U70: 69 | W70: 359.7429526 | X70: 146.2116332 | Z70: =IF(Z69<INT($V$2), Z69+Eingabe!$B$3,"") -> 69 | AA70: 26.82785538
C71: 115 | E71: 0.1966292135 | F71: 0.34434 | Q71: 560.240133 | R71: 64.83511843 | S71: 28425.7773 | U71: 70 | W71: 364.1984455 | X71: 143.9289769 | Z71: =IF(Z70<INT($V$2), Z70+Eingabe!$B$3,"") -> 70 | AA71: 27.43193588
C72: 116 | E72: 0.1994382022 | F72: 0.33841 | Q72: 564.6956259 | R72: 63.7185701 | S72: 28141.87967 | U72: 71 | W72: 368.6539384 | X72: 141.6397485 | Z72: =IF(Z71<INT($V$2), Z71+Eingabe!$B$3,"") -> 71 | AA72: 28.03601638
C73: 117 | E73: 0.202247191 | F73: 0.33264 | Q73: 569.1511188 | R73: 62.63214786 | S73: 27862.82258 | U73: 72 | W73: 373.1094313 | X73: 139.3373857 | Z73: =IF(Z72<INT($V$2), Z72+Eingabe!$B$3,"") -> 72 | AA73: 28.64009687
C74: 118 | E74: 0.2050561798 | F74: 0.32703 | Q74: 573.6066117 | R74: 61.57585171 | S74: 27588.47181 | U74: 73 | W74: 377.5649242 | X74: 137.0432307 | Z74: =IF(Z73<INT($V$2), Z73+Eingabe!$B$3,"") -> 73 | AA74: 29.24417737
C75: 119 | E75: 0.2078651685 | F75: 0.32159 | Q75: 578.0621046 | R75: 60.55156454 | S75: 27318.68474 | U75: 74 | W75: 382.0204171 | X75: 134.7589289 | Z75: =IF(Z74<INT($V$2), Z74+Eingabe!$B$3,"") -> 74 | AA75: 29.87718559
C76: 120 | E76: 0.2106741573 | F76: 0.3163 | Q76: 582.5175975 | R76: 59.55552059 | S76: 27053.33554 | U76: 75 | W76: 386.47591 | X76: 132.5020896 | Z76: =IF(Z75<INT($V$2), Z75+Eingabe!$B$3,"") -> 75 | AA76: 30.52775873
C77: 121 | E77: 0.2134831461 | F77: 0.31118 | Q77: 586.9730904 | R77: 58.5914856 | S77: 26792.28159 | U77: 76 | W77: 390.9314029 | X77: 130.2897046 | Z77: =IF(Z76<INT($V$2), Z76+Eingabe!$B$3,"") -> 76 | AA77: 31.17833186
C78: 122 | E78: 0.2162921348 | F78: 0.30624 | Q78: 591.4285833 | R78: 57.66134247 | S78: 26535.37189 | U78: 77 | W78: 395.3868958 | X78: 128.1225088 | Z78: =IF(Z77<INT($V$2), Z77+Eingabe!$B$3,"") -> 77 | AA78: 31.828905
C79: 123 | E79: 0.2191011236 | F79: 0.30146 | Q79: 595.8840762 | R79: 56.76132544 | S79: 26282.47221 | U79: 78 | W79: =Q35 -> 399.8423887 | X79: 125.9910877 | Z79: =IF(Z78<INT($V$2), Z78+Eingabe!$B$3,"") -> 78 | AA79: 32.47947813
C80: 124 | E80: 0.2219101124 | F80: 0.29685 | Q80: 600.3395691 | R80: 55.89331738 | S80: 26033.43993 | U80: 79 | W80: 404.2978816 | X80: 123.8841441 | Z80: =IF(Z79<INT($V$2), Z79+Eingabe!$B$3,"") -> 79 | AA80: 33.13005127
C81: 125 | E81: 0.2247191011 | F81: 0.29241 | Q81: 604.795062 | R81: 55.05731829 | S81: 25788.13244 | U81: 80 | W81: 408.7533745 | X81: 121.799795 | Z81: =IF(Z80<INT($V$2), Z80+Eingabe!$B$3,"") -> 80 | AA81: 33.82906884
C82: 126 | E82: 0.2275280899 | F82: 0.28812 | Q82: 609.2505549 | R82: 54.24956241 | S82: 25546.4239 | U82: 81 | W82: 413.2088674 | X82: 119.7380405 | Z82: =IF(Z81<INT($V$2), Z81+Eingabe!$B$3,"") -> 81 | AA82: 34.52918862
C83: 127 | E83: 0.2303370787 | F83: 0.28398 | Q83: 613.7060478 | R83: 53.47004975 | S83: 25308.18847 | U83: 82 | W83: 417.6643603 | X83: 117.691349 | Z83: =IF(Z82<INT($V$2), Z82+Eingabe!$B$3,"") -> 82 | AA83: 35.2293084
C84: 128 | E84: 0.2331460674 | F84: 0.27997 | Q84: 618.1615407 | R84: 52.71501454 | S84: 25073.3171 | U84: 83 | W84: 422.1198532 | X84: 115.6446576 | Z84: =IF(Z83<INT($V$2), Z83+Eingabe!$B$3,"") -> 83 | AA84: 35.92942818
C85: 129 | E85: 0.2359550562 | F85: 0.27607 | Q85: 622.6170336 | R85: 51.98069102 | S85: 24841.7175 | U85: 84 | W85: 426.5753461 | X85: 113.5847859 | Z85: =IF(Z84<INT($V$2), Z84+Eingabe!$B$3,"") -> 84 | AA85: 36.62954796
C86: 130 | E86: 0.2387640449 | F86: 0.27227 | Q86: 627.0725265 | R86: 51.2651963 | S86: 24613.30578 | U86: 85 | W86: 431.030839 | X86: 111.5154999 | Z86: =IF(Z85<INT($V$2), Z85+Eingabe!$B$3,"") -> 85 | AA86: 37.3448537
C87: 131 | E87: 0.2415730337 | F87: 0.26854 | Q87: 631.5280194 | R87: 50.56288175 | S87: 24388.02322 | U87: 86 | W87: 435.4863319 | X87: 109.4349166 | Z87: =IF(Z86<INT($V$2), Z86+Eingabe!$B$3,"") -> 86 | AA87: 38.09053482
C88: 132 | E88: 0.2443820225 | F88: 0.26488 | Q88: 635.9835123 | R88: 49.87374737 | S88: 24165.81109 | U88: 87 | W88: 439.9418248 | X88: 107.3505675 | Z88: =IF(Z87<INT($V$2), Z87+Eingabe!$B$3,"") -> 87 | AA88: 38.83621594
C89: 133 | E89: 0.2471910112 | F89: 0.26128 | Q89: 640.4390052 | R89: 49.19591027 | S89: 23946.61907 | U89: 88 | W89: 444.3973177 | X89: 105.2699842 | Z89: =IF(Z88<INT($V$2), Z88+Eingabe!$B$3,"") -> 88 | AA89: 39.58189706
C90: 134 | E90: 0.25 | F90: 0.25773 | Q90: 644.8944981 | R90: 48.52748758 | S90: 23730.40519 | U90: 89 | W90: 448.8528106 | X90: 103.2101126 | Z90: =IF(Z89<INT($V$2), Z89+Eingabe!$B$3,"") -> 89 | AA90: 40.32757818
C91: 135 | E91: 0.2528089888 | F91: 0.25422 | Q91: 649.349991 | R91: 47.86659641 | S91: 23517.13591 | U91: 90 | W91: 453.3083035 | X91: 101.1935472 | Z91: =IF(Z90<INT($V$2), Z90+Eingabe!$B$3,"") -> 90 | AA91: 41.07325929
C92: 136 | E92: 0.2556179775 | F92: 0.25076 | Q92: 653.8054839 | R92: 47.21511964 | S92: 23306.76928 | U92: 91 | W92: 457.7637964 | X92: 99.24476556 | Z92: =IF(Z91<INT($V$2), Z91+Eingabe!$B$3,"") -> 91 | AA92: 41.85295185
C93: 137 | E93: 0.2584269663 | F93: 0.24734 | Q93: 658.2609768 | R93: 46.5711744 | S93: 23099.27174 | U93: 92 | W93: 462.2192893 | X93: 97.38259642 | Z93: =IF(Z92<INT($V$2), Z92+Eingabe!$B$3,"") -> 92 | AA93: 42.64800636
C94: 138 | E94: 0.2612359551 | F94: 0.24396 | Q94: 662.7164697 | R94: 45.93476068 | S94: 22894.60974 | U94: 93 | W94: 466.6747822 | X94: 95.61268844 | Z94: =IF(Z93<INT($V$2), Z93+Eingabe!$B$3,"") -> 93 | AA94: 43.44306087
C95: 139 | E95: 0.2640449438 | F95: 0.24061 | Q95: 667.1719626 | R95: 45.3039956 | S95: 22692.75811 | U95: 94 | W95: =Q51 -> 471.1302751 | X95: 93.93315874 | Z95: =IF(Z94<INT($V$2), Z94+Eingabe!$B$3,"") -> 94 | AA95: 44.23811538
C96: 140 | E96: 0.2668539326 | F96: 0.23728 | Q96: 671.6274555 | R96: 44.67699628 | S96: 22493.70007 | U96: 95 | W96: 475.585768 | X96: 92.33835868 | Z96: =IF(Z95<INT($V$2), Z95+Eingabe!$B$3,"") -> 95 | AA96: 45.03316989
C97: 141 | E97: 0.2696629213 | F97: 0.23396 | Q97: 676.0829484 | R97: 44.05187985 | S97: 22297.42723 | U97: 96 | W97: 480.0412609 | X97: 90.57221646 | Z97: =IF(Z96<INT($V$2), Z96+Eingabe!$B$3,"") -> 96 | AA97: 45.83041857
C98: 142 | E98: 0.2724719101 | F98: 0.23064 | Q98: 680.5384413 | R98: 43.42676341 | S98: 22103.9396 | U98: 97 | W98: 484.4967538 | X98: 88.84184898 | Z98: =IF(Z97<INT($V$2), Z97+Eingabe!$B$3,"") -> 97 | AA98: 46.67487397
C99: 143 | E99: 0.2752808989 | F99: 0.22732 | Q99: 684.9939342 | R99: 42.80164698 | S99: 21913.23716 | U99: 98 | W99: 488.9522467 | X99: 87.151022 | Z99: =IF(Z98<INT($V$2), Z98+Eingabe!$B$3,"") -> 98 | AA99: 47.51932936
C100: 144 | E100: 0.2780898876 | F100: 0.22399 | Q100: 689.4494271 | R100: 42.17464766 | S100: 21725.32832 | U100: 99 | W100: 493.4077396 | X100: 85.49785263 | Z100: =IF(Z99<INT($V$2), Z99+Eingabe!$B$3,"") -> 99 | AA100: 48.36378475
C101: 145 | E101: 0.2808988764 | F101: 0.22067 | Q101: 693.90492 | R101: 41.54953123 | S101: 21540.20468 | U101: 100 | W101: 497.8632325 | X101: 83.880458 | Z101: =IF(Z100<INT($V$2), Z100+Eingabe!$B$3,"") -> 100 | AA101: 49.20824015
C102: 146 | E102: 0.2837078652 | F102: 0.21735 | Q102: 698.3604129 | R102: 40.92441479 | S102: 21357.86624 | U102: 101 | W102: 502.3187254 | X102: 82.30072099 | Z102: =IF(Z101<INT($V$2), Z101+Eingabe!$B$3,"") -> 101 | AA102: 50.05269554
C103: 147 | E103: 0.2865168539 | F103: 0.21406 | Q103: 702.8159058 | R103: 40.304947 | S103: 21178.28783 | U103: 102 | W103: 506.7742183 | X103: 80.75864159 | Z103: =IF(Z102<INT($V$2), Z102+Eingabe!$B$3,"") -> 102 | AA103: 50.92460225
C104: 148 | E104: 0.2893258427 | F104: 0.21078 | Q104: 707.2713987 | R104: 39.68736209 | S104: 21001.46107 | U104: 103 | W104: 511.2297112 | X104: 79.25045405 | Z104: =IF(Z103<INT($V$2), Z103+Eingabe!$B$3,"") -> 103 | AA104: 51.83769118
C105: 149 | E105: 0.2921348315 | F105: 0.20754 | Q105: 711.7268916 | R105: 39.0773087 | S105: 20827.3524 | U105: 104 | W105: 515.6852041 | X105: 77.77804124 | Z105: =IF(Z104<INT($V$2), Z104+Eingabe!$B$3,"") -> 104 | AA105: 52.7507801
C106: 150 | E106: 0.2949438202 | F106: 0.20433 | Q106: 716.1823845 | R106: 38.47290396 | S106: 20655.93665 | U106: 105 | W106: 520.140697 | X106: 76.33952029 | Z106: =IF(Z105<INT($V$2), Z105+Eingabe!$B$3,"") -> 105 | AA106: 53.66386902
C107: 151 | E107: 0.297752809 | F107: 0.20116 | Q107: 720.6378774 | R107: 37.87603073 | S107: 20487.18027 | U107: 106 | W107: 524.5961899 | X107: 74.93300831 | Z107: =IF(Z106<INT($V$2), Z106+Eingabe!$B$3,"") -> 106 | AA107: 54.57695794
C108: 152 | E108: 0.3005617978 | F108: 0.19803 | Q108: 725.0933703 | R108: 37.28668904 | S108: 20321.04969 | U108: 107 | W108: 529.0516828 | X108: 73.5585053 | Z108: =IF(Z107<INT($V$2), Z107+Eingabe!$B$3,"") -> 107 | AA108: 55.49004687
C109: 153 | E109: 0.3033707865 | F109: 0.19494 | Q109: 729.5488632 | R109: 36.70487886 | S109: 20157.51136 | U109: 108 | W109: 533.5071757 | X109: 72.21601127 | Z109: =IF(Z108<INT($V$2), Z108+Eingabe!$B$3,"") -> 108 | AA109: 56.47870737
C110: 154 | E110: 0.3061797753 | F110: 0.1919 | Q110: 734.0043561 | R110: 36.13248309 | S110: 19996.52334 | U110: 109 | W110: 537.9626686 | X110: 70.90552622 | Z110: =IF(Z109<INT($V$2), Z109+Eingabe!$B$3,"") -> 109 | AA110: 57.49182176
C111: 155 | E111: 0.308988764 | F111: 0.18891 | Q111: 738.459849 | R111: 35.56950172 | S111: 19838.04368 | U111: 110 | W111: =Q67 -> 542.4181614 | X111: 69.62705014 | Z111: =IF(Z110<INT($V$2), Z110+Eingabe!$B$3,"") -> 110 | AA111: 58.50493614
C112: 156 | E112: 0.3117977528 | F112: 0.18598 | Q112: 742.9153419 | R112: 35.01781764 | S112: 19682.02204 | U112: 111 | W112: 546.8736543 | X112: 68.38058303 | Z112: =IF(Z111<INT($V$2), Z111+Eingabe!$B$3,"") -> 111 | AA112: 59.51805053
C113: 157 | E113: 0.3146067416 | F113: 0.1831 | Q113: 747.3708348 | R113: 34.47554796 | S113: 19528.41648 | U113: 112 | W113: 551.3291472 | X113: 67.16612489 | Z113: =IF(Z112<INT($V$2), Z112+Eingabe!$B$3,"") -> 112 | AA113: 60.53116492
C114: 158 | E114: 0.3174157303 | F114: 0.18028 | Q114: 751.8263277 | R114: 33.94457557 | S114: 19377.17666 | U114: 113 | W114: 555.7846401 | X114: 65.98367573 | Z114: =IF(Z113<INT($V$2), Z113+Eingabe!$B$3,"") -> 113 | AA114: 61.56189521
C115: 159 | E115: 0.3202247191 | F115: 0.17752 | Q115: 756.2818206 | R115: 33.42490046 | S115: 19228.25226 | U115: 114 | W115: 560.240133 | X115: 64.83511843 | Z115: =IF(Z114<INT($V$2), Z114+Eingabe!$B$3,"") -> 114 | AA115: 62.73360102
C116: 160 | E116: 0.3230337079 | F116: 0.17483 | Q116: 760.7373135 | R116: 32.91840551 | S116: 19081.58454 | U116: 115 | W116: 564.6956259 | X116: 63.7185701 | Z116: =IF(Z115<INT($V$2), Z115+Eingabe!$B$3,"") -> 115 | AA116: 63.90530683
C117: 161 | E117: 0.3258426966 | F117: 0.1722 | Q117: 765.1928064 | R117: 32.42320786 | S117: 18937.12316 | U117: 116 | W117: 569.1511188 | X117: 62.63214786 | Z117: =IF(Z116<INT($V$2), Z116+Eingabe!$B$3,"") -> 116 | AA117: 65.07701264
C118: 162 | E118: 0.3286516854 | F118: 0.16961 | Q118: 769.6482993 | R118: 31.93554172 | S118: 18794.83458 | U118: 117 | W118: 573.6066117 | X118: 61.57585171 | Z118: =IF(Z117<INT($V$2), Z117+Eingabe!$B$3,"") -> 117 | AA118: 66.24871845
C119: 163 | E119: 0.3314606742 | F119: 0.16707 | Q119: 774.1037922 | R119: 31.45728999 | S119: 18654.67685 | U119: 118 | W119: 578.0621046 | X119: 60.55156454 | Z119: =IF(Z118<INT($V$2), Z118+Eingabe!$B$3,"") -> 118 | AA119: 67.42042427
C120: 164 | E120: 0.3342696629 | F120: 0.16456 | Q120: 778.5592851 | R120: 30.9846869 | S120: 18516.6248 | U120: 119 | W120: 582.5175975 | X120: 59.55552059 | Z120: =IF(Z119<INT($V$2), Z119+Eingabe!$B$3,"") -> 119 | AA120: 68.62987206
C121: 165 | E121: 0.3370786517 | F121: 0.16207 | Q121: 783.014778 | R121: 30.51584958 | S121: 18380.66165 | U121: 120 | W121: 586.9730904 | X121: 58.5914856 | Z121: =IF(Z120<INT($V$2), Z120+Eingabe!$B$3,"") -> 120 | AA121: 69.88245972
C122: 166 | E122: 0.3398876404 | F122: 0.1596 | Q122: 787.4702709 | R122: 30.05077801 | S122: 18246.77062 | U122: 121 | W122: 591.4285833 | X122: 57.66134247 | Z122: =IF(Z121<INT($V$2), Z121+Eingabe!$B$3,"") -> 121 | AA122: 71.13504738
C123: 167 | E123: 0.3426966292 | F123: 0.15716 | Q123: 791.9257638 | R123: 29.59135509 | S123: 18114.92655 | U123: 122 | W123: 595.8840762 | X123: 56.76132544 | Z123: =IF(Z122<INT($V$2), Z122+Eingabe!$B$3,"") -> 122 | AA123: 72.38763504
C124: 168 | E124: 0.345505618 | F124: 0.15474 | Q124: 796.3812567 | R124: 29.13569793 | S124: 17985.11265 | U124: 123 | W124: 600.3395691 | X124: 55.89331738 | Z124: =IF(Z123<INT($V$2), Z123+Eingabe!$B$3,"") -> 123 | AA124: 73.6402227
C125: 169 | E125: 0.3483146067 | F125: 0.15235 | Q125: 800.8367496 | R125: 28.68568941 | S125: 17857.30377 | U125: 124 | W125: 604.795062 | X125: 55.05731829 | Z125: =IF(Z124<INT($V$2), Z124+Eingabe!$B$3,"") -> 124 | AA125: 74.89281036
C126: 170 | E126: 0.3511235955 | F126: 0.14999 | Q126: 805.2922425 | R126: 28.24132954 | S126: 17731.47472 | U126: 125 | W126: 609.2505549 | X126: 54.24956241 | Z126: =IF(Z125<INT($V$2), Z125+Eingabe!$B$3,"") -> 125 | AA126: 76.18740293
C127: 171 | E127: 0.3539325843 | F127: 0.14767 | Q127: 809.7477354 | R127: 27.80450119 | S127: 17607.59197 | U127: 126 | W127: =Q83 -> 613.7060478 | X127: 53.47004975 | Z127: =IF(Z126<INT($V$2), Z126+Eingabe!$B$3,"") -> 126 | AA127: 77.49107995
C128: 172 | E128: 0.356741573 | F128: 0.14539 | Q128: 814.2032283 | R128: 27.37520436 | S128: 17485.62194 | U128: 127 | W128: 618.1615407 | X128: 52.71501454 | Z128: =IF(Z127<INT($V$2), Z127+Eingabe!$B$3,"") -> 127 | AA128: 78.79475697
C129: 173 | E129: 0.3595505618 | F129: 0.14316 | Q129: 818.6587212 | R129: 26.95532193 | S129: 17365.52269 | U129: 128 | W129: 622.6170336 | X129: 51.98069102 | Z129: =IF(Z128<INT($V$2), Z128+Eingabe!$B$3,"") -> 128 | AA129: 80.09843399
C130: 174 | E130: 0.3623595506 | F130: 0.14097 | Q130: 823.1142141 | R130: =F130*$I$1 -> 26.54297103 | S130: 17247.26067 | U130: 129 | W130: 627.0725265 | X130: 51.2651963 | Z130: =IF(Z129<INT($V$2), Z129+Eingabe!$B$3,"") -> 129 | AA130: 81.40211101
C131: =C130+1 -> 175 | E131: 0.3651685393 | F131: 0.13882 | Q131: =Q130+($Q$357-$Q$1)/356 -> 827.569707 | R131: 26.13815165 | S131: =S130-(R131*(Q131-Q130)) -> 17130.80232 | U131: =U130+1 -> 130 | W131: 631.5280194 | X131: 50.56288175 | Z131: =IF(Z130<INT($V$2), Z130+Eingabe!$B$3,"") -> 130 | AA131: =IF(ISNUMBER(Z131),FORECAST(Z131,OFFSET($X$1:$X$401,MATCH(Z131,$W$1:$W$401,1)-1,0,2),OFFSET($W$1:$W$401,MATCH(Z131,$W$1:$W$401,1)-1,0,2)),"") -> 82.71479622
C132: 176 | E132: 0.3679775281 | F132: 0.13671 | Q132: 832.0251999 | R132: 25.7408638 | S132: 17016.11409 | U132: 131 | W132: 635.9835123 | X132: 49.87374737 | Z132: =IF(Z131<INT($V$2), Z131+Eingabe!$B$3,"") -> 131 | AA132: 84.06915543
C133: 177 | E133: 0.3707865169 | F133: 0.13464 | Q133: 836.4806928 | R133: 25.35110747 | S133: 16903.16241 | U133: 132 | W133: 640.4390052 | X133: 49.19591027 | Z133: =IF(Z132<INT($V$2), Z132+Eingabe!$B$3,"") -> 132 | AA133: 85.42351463
C134: 178 | E134: 0.3735955056 | F134: 0.1326 | Q134: 840.9361857 | R134: 24.96699978 | S134: 16791.92212 | U134: 133 | W134: 644.8944981 | X134: 48.52748758 | Z134: =IF(Z133<INT($V$2), Z133+Eingabe!$B$3,"") -> 133 | AA134: 86.77787384
C135: 179 | E135: 0.3764044944 | F135: 0.13061 | Q135: 845.3916786 | R135: 24.59230649 | S135: 16682.35127 | U135: 134 | W135: 649.349991 | X135: 47.86659641 | Z135: =IF(Z134<INT($V$2), Z134+Eingabe!$B$3,"") -> 134 | AA135: 88.13223305
C136: 180 | E136: 0.3792134831 | F136: 0.12865 | Q136: 849.8471715 | R136: 24.22326185 | S136: 16574.4247 | U136: 135 | W136: 653.8054839 | X136: 47.21511964 | Z136: =IF(Z135<INT($V$2), Z135+Eingabe!$B$3,"") -> 135 | AA136: 89.48659226
C137: 181 | E137: 0.3820224719 | F137: 0.12673 | Q137: 854.3026644 | R137: 23.86174873 | S137: 16468.10885 | U137: 136 | W137: 658.2609768 | X137: 46.5711744 | Z137: =IF(Z136<INT($V$2), Z136+Eingabe!$B$3,"") -> 136 | AA137: 90.86984132
C138: 182 | E138: 0.3848314607 | F138: 0.12486 | Q138: 858.7581573 | R138: 23.50965002 | S138: 16363.36177 | U138: 137 | W138: 662.7164697 | X138: 45.93476068 | Z138: =IF(Z137<INT($V$2), Z137+Eingabe!$B$3,"") -> 137 | AA138: 92.27837313
C139: 183 | E139: 0.3876404494 | F139: 0.12302 | Q139: 863.2136502 | R139: 23.16319994 | S139: 16260.1583 | U139: 138 | W139: 667.1719626 | X139: 45.3039956 | Z139: =IF(Z138<INT($V$2), Z138+Eingabe!$B$3,"") -> 138 | AA139: 93.68690494
C140: 184 | E140: 0.3904494382 | F140: 0.12123 | Q140: 867.6691431 | R140: 22.82616428 | S140: 16158.45648 | U140: 139 | W140: 671.6274555 | X140: 44.67699628 | Z140: =IF(Z139<INT($V$2), Z139+Eingabe!$B$3,"") -> 139 | AA140: 95.09543676
C141: 185 | E141: 0.393258427 | F141: 0.11948 | Q141: 872.124636 | R141: 22.49666013 | S141: 16058.22277 | U141: 140 | W141: 676.0829484 | X141: 44.05187985 | Z141: =IF(Z140<INT($V$2), Z140+Eingabe!$B$3,"") -> 140 | AA141: 96.50396857
C142: 186 | E142: 0.3960674157 | F142: 0.11777 | Q142: 876.5801289 | R142: 22.17468751 | S142: 15959.42361 | U142: 141 | W142: 680.5384413 | X142: 43.42676341 | Z142: =IF(Z141<INT($V$2), Z141+Eingabe!$B$3,"") -> 141 | AA142: 97.91250038
C143: 187 | E143: 0.3988764045 | F143: 0.11608 | Q143: 881.0356218 | R143: 21.85648065 | S143: 15862.04222 | U143: 142 | W143: =Q99 -> 684.9939342 | X143: 42.80164698 | Z143: =IF(Z142<INT($V$2), Z142+Eingabe!$B$3,"") -> 142 | AA143: 99.3473576
C144: 188 | E144: 0.4016853933 | F144: 0.11442 | Q144: 885.4911147 | R144: 21.54392243 | S144: 15766.05342 | U144: 143 | W144: 689.4494271 | X144: 42.17464766 | Z144: =IF(Z143<INT($V$2), Z143+Eingabe!$B$3,"") -> 143 | AA144: 100.7855069
C145: 189 | E145: 0.404494382 | F145: 0.11278 | Q145: 889.9466076 | R145: 21.23512998 | S145: 15671.44045 | U145: 144 | W145: 693.90492 | X145: 41.54953123 | Z145: =IF(Z144<INT($V$2), Z144+Eingabe!$B$3,"") -> 144 | AA145: 102.2236562
C146: 190 | E146: 0.4073033708 | F146: 0.11117 | Q146: 894.4021005 | R146: 20.93198616 | S146: 15578.17814 | U146: 145 | W146: 698.3604129 | X146: 40.92441479 | Z146: =IF(Z145<INT($V$2), Z145+Eingabe!$B$3,"") -> 145 | AA146: 103.6618055
C147: 191 | E147: 0.4101123596 | F147: 0.10957 | Q147: 898.8575934 | R147: 20.63072523 | S147: 15486.25809 | U147: 146 | W147: 702.8159058 | X147: 40.304947 | Z147: =IF(Z146<INT($V$2), Z146+Eingabe!$B$3,"") -> 146 | AA147: 105.0999548
C148: 192 | E148: 0.4129213483 | F148: 0.108 | Q148: 903.3130863 | R148: 20.33511294 | S148: 15395.65514 | U148: 147 | W148: 707.2713987 | X148: 39.68736209 | Z148: =IF(Z147<INT($V$2), Z147+Eingabe!$B$3,"") -> 147 | AA148: 106.538083
C149: 193 | E149: 0.4157303371 | F149: 0.10645 | Q149: 907.7685792 | R149: 20.04326641 | S149: 15306.3525 | U149: 148 | W149: 711.7268916 | X149: 39.0773087 | Z149: =IF(Z148<INT($V$2), Z148+Eingabe!$B$3,"") -> 148 | AA149: 107.9761459
C150: 194 | E150: 0.4185393258 | F150: 0.10492 | Q150: 912.2240721 | R150: 19.75518565 | S150: 15218.33341 | U150: 149 | W150: 716.1823845 | X150: 38.47290396 | Z150: =IF(Z149<INT($V$2), Z149+Eingabe!$B$3,"") -> 149 | AA150: 109.4142088
C151: 195 | E151: 0.4213483146 | F151: 0.10341 | Q151: 916.679565 | R151: 19.47087064 | S151: 15131.58109 | U151: 150 | W151: 720.6378774 | X151: 37.87603073 | Z151: =IF(Z150<INT($V$2), Z150+Eingabe!$B$3,"") -> 150 | AA151: 110.8522717
C152: 196 | E152: 0.4241573034 | F152: 0.10191 | Q152: 921.1350579 | R152: 19.18843852 | S152: 15046.08714 | U152: 151 | W152: 725.0933703 | X152: 37.28668904 | Z152: =IF(Z151<INT($V$2), Z151+Eingabe!$B$3,"") -> 151 | AA152: 112.2903345
C153: 197 | E153: 0.4269662921 | F153: 0.10042 | Q153: 925.5905508 | R153: 18.90788927 | S153: 14961.84317 | U153: 152 | W153: 729.5488632 | X153: 36.70487886 | Z153: =IF(Z152<INT($V$2), Z152+Eingabe!$B$3,"") -> 152 | AA153: 113.7283974
C154: 198 | E154: 0.4297752809 | F154: 0.098939 | Q154: 930.0460437 | R154: 18.62903462 | S154: 14878.84164 | U154: 153 | W154: 734.0043561 | X154: 36.13248309 | Z154: =IF(Z153<INT($V$2), Z153+Eingabe!$B$3,"") -> 153 | AA154: 115.1534036
C155: 199 | E155: 0.4325842697 | F155: 0.097478 | Q155: 934.5015366 | R155: 18.35394573 | S155: 14797.06576 | U155: 154 | W155: 738.459849 | X155: 35.56950172 | Z155: =IF(Z154<INT($V$2), Z154+Eingabe!$B$3,"") -> 154 | AA155: 116.5697035
C156: 200 | E156: 0.4353932584 | F156: 0.096043 | Q156: 938.9570295 | R156: 18.08375234 | S156: 14716.49373 | U156: 155 | W156: 742.9153419 | X156: 35.01781764 | Z156: =IF(Z155<INT($V$2), Z155+Eingabe!$B$3,"") -> 155 | AA156: 117.9860034
C157: 201 | E157: 0.4382022472 | F157: 0.094639 | Q157: 943.4125224 | R157: 17.81939587 | S157: 14637.09954 | U157: 156 | W157: 747.3708348 | X157: 34.47554796 | Z157: =IF(Z156<INT($V$2), Z156+Eingabe!$B$3,"") -> 156 | AA157: 119.4023034
C158: 202 | E158: 0.441011236 | F158: 0.093272 | Q158: 947.8680153 | R158: 17.56200606 | S158: 14558.85215 | U158: 157 | W158: 751.8263277 | X158: 33.94457557 | Z158: =IF(Z157<INT($V$2), Z157+Eingabe!$B$3,"") -> 157 | AA158: 120.8186033
C159: 203 | E159: 0.4438202247 | F159: 0.091945 | Q159: 952.3235082 | R159: 17.31214777 | S159: 14481.718 | U159: 158 | W159: =Q115 -> 756.2818206 | X159: 33.42490046 | Z159: =IF(Z158<INT($V$2), Z158+Eingabe!$B$3,"") -> 158 | AA159: 122.2349032
C160: 204 | E160: 0.4466292135 | F160: 0.090661 | Q160: 956.7790011 | R160: 17.07038587 | S160: 14405.66102 | U160: 159 | W160: 760.7373135 | X160: 32.91840551 | Z160: =IF(Z159<INT($V$2), Z159+Eingabe!$B$3,"") -> 159 | AA160: 123.6281296
C161: 205 | E161: 0.4494382022 | F161: 0.089423 | Q161: 961.234494 | R161: 16.83728523 | S161: 14330.64261 | U161: 160 | W161: 765.1928064 | X161: 32.42320786 | Z161: =IF(Z160<INT($V$2), Z160+Eingabe!$B$3,"") -> 160 | AA161: 125.0202816
C162: 206 | E162: 0.452247191 | F162: 0.08823 | Q162: 965.6899869 | R162: 16.61265754 | S162: 14256.62503 | U162: 161 | W162: 769.6482993 | X162: 31.93554172 | Z162: =IF(Z161<INT($V$2), Z161+Eingabe!$B$3,"") -> 161 | AA162: 126.4124336
C163: 207 | E163: 0.4550561798 | F163: 0.087075 | Q163: 970.1454798 | R163: 16.39518481 | S163: 14183.5764 | U163: 162 | W163: 774.1037922 | X163: 31.45728999 | Z163: =IF(Z162<INT($V$2), Z162+Eingabe!$B$3,"") -> 162 | AA163: 127.8045856
C164: 208 | E164: 0.4578651685 | F164: 0.085952 | Q164: 974.6009727 | R164: 16.18373729 | S164: 14111.46988 | U164: 163 | W164: 778.5592851 | X164: 30.9846869 | Z164: =IF(Z163<INT($V$2), Z163+Eingabe!$B$3,"") -> 163 | AA164: 129.1967376
C165: 209 | E165: 0.4606741573 | F165: 0.084854 | Q165: 979.0564656 | R165: 15.97699698 | S165: 14040.28448 | U165: 164 | W165: 783.014778 | X165: 30.51584958 | Z165: =IF(Z164<INT($V$2), Z164+Eingabe!$B$3,"") -> 164 | AA165: 130.5796585
C166: 210 | E166: 0.4634831461 | F166: 0.083777 | Q166: 983.5119585 | R166: 15.77421071 | S166: 13970.0026 | U166: 165 | W166: 787.4702709 | X166: 30.05077801 | Z166: =IF(Z165<INT($V$2), Z165+Eingabe!$B$3,"") -> 165 | AA166: 131.9421345
C167: 211 | E167: 0.4662921348 | F167: 0.082717 | Q167: 987.9674514 | R167: 15.57462534 | S167: 13900.60996 | U167: 166 | W167: 791.9257638 | X167: 29.59135509 | Z167: =IF(Z166<INT($V$2), Z166+Eingabe!$B$3,"") -> 166 | AA167: 133.3046105
C168: 212 | E168: 0.4691011236 | F168: 0.081672 | Q168: 992.4229443 | R168: 15.3778643 | S168: 13832.094 | U168: 167 | W168: 796.3812567 | X168: 29.13569793 | Z168: =IF(Z167<INT($V$2), Z167+Eingabe!$B$3,"") -> 167 | AA168: 134.6670865
C169: 213 | E169: 0.4719101124 | F169: 0.080637 | Q169: 996.8784372 | R169: 15.18298613 | S169: 13764.44631 | U169: 168 | W169: 800.8367496 | X169: 28.68568941 | Z169: =IF(Z168<INT($V$2), Z168+Eingabe!$B$3,"") -> 168 | AA169: 136.0295626
C170: 214 | E170: 0.4747191011 | F170: 0.079612 | Q170: 1001.33393 | R170: 14.98999085 | S170: 13697.65851 | U170: 169 | W170: 805.2922425 | X170: 28.24132954 | Z170: =IF(Z169<INT($V$2), Z169+Eingabe!$B$3,"") -> 169 | AA170: 137.3920386
C171: 215 | E171: 0.4775280899 | F171: 0.078595 | Q171: 1005.789423 | R171: 14.79850187 | S171: 13631.72389 | U171: 170 | W171: 809.7477354 | X171: 27.80450119 | Z171: =IF(Z170<INT($V$2), Z170+Eingabe!$B$3,"") -> 170 | AA171: 138.7155315
C172: 216 | E172: 0.4803370787 | F172: 0.077585 | Q172: 1010.244916 | R172: 14.6083309 | S172: 13566.63658 | U172: 171 | W172: 814.2032283 | X172: 27.37520436 | Z172: =IF(Z171<INT($V$2), Z171+Eingabe!$B$3,"") -> 171 | AA172: 140.0195284
C173: 217 | E173: 0.4831460674 | F173: 0.076582 | Q173: 1014.700409 | R173: 14.41947796 | S173: 13502.3907 | U173: 172 | W173: 818.6587212 | X173: 26.95532193 | Z173: =IF(Z172<INT($V$2), Z172+Eingabe!$B$3,"") -> 172 | AA173: 141.3235253
C174: 218 | E174: 0.4859550562 | F174: 0.075582 | Q174: 1019.155902 | R174: 14.23118987 | S174: 13438.98373 | U174: 173 | W174: 823.1142141 | X174: 26.54297103 | Z174: =IF(Z173<INT($V$2), Z173+Eingabe!$B$3,"") -> 173 | AA174: 142.6275222
C175: 219 | E175: 0.4887640449 | F175: 0.074583 | Q175: 1023.611395 | R175: 14.04309008 | S175: 13376.41484 | U175: 174 | W175: =Q131 -> 827.569707 | X175: 26.13815165 | Z175: =IF(Z174<INT($V$2), Z174+Eingabe!$B$3,"") -> 174 | AA175: 143.9315191
C176: 220 | E176: 0.4915730337 | F176: 0.073582 | Q176: 1028.066887 | R176: 13.85461371 | S176: 13314.68571 | U176: 175 | W176: 832.0251999 | X176: 25.7408638 | Z176: =IF(Z175<INT($V$2), Z175+Eingabe!$B$3,"") -> 175 | AA176: 145.2336842
C177: 221 | E177: 0.4943820225 | F177: 0.07258 | Q177: 1032.52238 | R177: 13.66594905 | S177: 13253.79717 | U177: 176 | W177: 836.4806928 | X177: 25.35110747 | Z177: =IF(Z176<INT($V$2), Z176+Eingabe!$B$3,"") -> 176 | AA177: 146.4550536
C178: 222 | E178: 0.4971910112 | F178: 0.07158 | Q178: 1036.977873 | R178: 13.47766097 | S178: 13193.74755 | U178: 177 | W178: 840.9361857 | X178: 24.96699978 | Z178: =IF(Z177<INT($V$2), Z177+Eingabe!$B$3,"") -> 177 | AA178: 147.676423
C179: 223 | E179: 0.5 | F179: 0.070584 | Q179: 1041.433366 | R179: 13.29012604 | S179: 13134.53349 | U179: 178 | W179: 845.3916786 | X179: 24.59230649 | Z179: =IF(Z178<INT($V$2), Z178+Eingabe!$B$3,"") -> 178 | AA179: 148.8977925
C180: 224 | E180: 0.5028089888 | F180: 0.069598 | Q180: 1045.888859 | R180: 13.10447399 | S180: 13076.1466 | U180: 179 | W180: 849.8471715 | X180: 24.22326185 | Z180: =IF(Z179<INT($V$2), Z179+Eingabe!$B$3,"") -> 179 | AA180: 150.1191619
C181: 225 | E181: 0.5056179775 | F181: 0.068626 | Q181: 1050.344352 | R181: 12.92145797 | S181: 13018.57513 | U181: 180 | W181: 854.3026644 | X181: 23.86174873 | Z181: =IF(Z180<INT($V$2), Z180+Eingabe!$B$3,"") -> 180 | AA181: 151.3405313
C182: 226 | E182: 0.5084269663 | F182: 0.067671 | Q182: 1054.799845 | R182: 12.74164285 | S182: 12961.80483 | U182: 181 | W182: 858.7581573 | X182: 23.50965002 | Z182: =IF(Z181<INT($V$2), Z181+Eingabe!$B$3,"") -> 181 | AA182: 152.5226683
C183: 227 | E183: 0.5112359551 | F183: 0.066735 | Q183: 1059.255338 | R183: 12.56540521 | S183: 12905.81976 | U183: 182 | W183: 863.2136502 | X183: 23.16319994 | Z183: =IF(Z182<INT($V$2), Z182+Eingabe!$B$3,"") -> 182 | AA183: 153.6401723
C184: 228 | E184: 0.5140449438 | F184: 0.065819 | Q184: 1063.710831 | R184: 12.39293332 | S184: 12850.60313 | U184: 183 | W184: 867.6691431 | X184: 22.82616428 | Z184: =IF(Z183<INT($V$2), Z183+Eingabe!$B$3,"") -> 183 | AA184: 154.7576762
C185: 229 | E185: 0.5168539326 | F185: 0.064924 | Q185: 1068.166324 | R185: 12.22441549 | S185: 12796.13734 | U185: 184 | W185: 872.124636 | X185: 22.49666013 | Z185: =IF(Z184<INT($V$2), Z184+Eingabe!$B$3,"") -> 184 | AA185: 155.8751802
C186: 230 | E186: 0.5196629213 | F186: 0.064048 | Q186: 1072.621816 | R186: 12.05947513 | S186: 12742.40643 | U186: 185 | W186: 876.5801289 | X186: 22.17468751 | Z186: =IF(Z185<INT($V$2), Z185+Eingabe!$B$3,"") -> 185 | AA186: 156.9926842
C187: 231 | E187: 0.5224719101 | F187: 0.063192 | Q187: 1077.077309 | R187: 11.89830053 | S187: 12689.39364 | U187: 186 | W187: 881.0356218 | X187: 21.85648065 | Z187: =IF(Z186<INT($V$2), Z186+Eingabe!$B$3,"") -> 186 | AA187: 158.1101881
C188: 232 | E188: 0.5252808989 | F188: 0.062354 | Q188: 1081.532802 | R188: 11.74051511 | S188: 12637.08386 | U188: 187 | W188: 885.4911147 | X188: 21.54392243 | Z188: =IF(Z187<INT($V$2), Z187+Eingabe!$B$3,"") -> 187 | AA188: 159.1581429
C189: 233 | E189: 0.5280898876 | F189: 0.061536 | Q189: 1085.988295 | R189: 11.58649546 | S189: 12585.46031 | U189: 188 | W189: 889.9466076 | X189: 21.23512998 | Z189: =IF(Z188<INT($V$2), Z188+Eingabe!$B$3,"") -> 188 | AA189: 160.1807999
C190: 234 | E190: 0.5308988764 | F190: 0.060739 | Q190: 1090.443788 | R190: 11.43642986 | S190: 12534.50537 | U190: 189 | W190: 894.4021005 | X190: 20.93198616 | Z190: =IF(Z189<INT($V$2), Z189+Eingabe!$B$3,"") -> 189 | AA190: 161.2034568
C191: 235 | E191: 0.5337078652 | F191: 0.059964 | Q191: 1094.899281 | R191: 11.2905066 | S191: 12484.2006 | U191: 190 | W191: =Q147 -> 898.8575934 | X191: 20.63072523 | Z191: =IF(Z190<INT($V$2), Z190+Eingabe!$B$3,"") -> 190 | AA191: 162.2261138
C192: 236 | E192: 0.5365168539 | F192: 0.059214 | Q192: 1099.354774 | R192: 11.14929053 | S192: 12434.52502 | U192: 191 | W192: 903.3130863 | X192: 20.33511294 | Z192: =IF(Z191<INT($V$2), Z191+Eingabe!$B$3,"") -> 191 | AA192: 163.2487707
C193: 237 | E193: 0.5393258427 | F193: 0.058495 | Q193: 1103.810267 | R193: 11.0139114 | S193: 12385.45261 | U193: 192 | W193: 907.7685792 | X193: 20.04326641 | Z193: =IF(Z192<INT($V$2), Z192+Eingabe!$B$3,"") -> 192 | AA193: 164.2619686
C194: 238 | E194: 0.5421348315 | F194: 0.057805 | Q194: 1108.26576 | R194: =F194*$I$1 -> 10.88399263 | S194: 12336.95906 | U194: 193 | W194: 912.2240721 | X194: 19.75518565 | Z194: =IF(Z193<INT($V$2), Z193+Eingabe!$B$3,"") -> 193 | AA194: 165.1781416
C195: =C194+1 -> 239 | E195: 0.5449438202 | F195: 0.057143 | Q195: =Q194+($Q$357-$Q$1)/356 -> 1112.721253 | R195: 10.75934591 | S195: =S194-(R195*(Q195-Q194)) -> 12289.02087 | U195: =U194+1 -> 194 | W195: 916.679565 | X195: 19.47087064 | Z195: =IF(Z194<INT($V$2), Z194+Eingabe!$B$3,"") -> 194 | AA195: =IF(ISNUMBER(Z195),FORECAST(Z195,OFFSET($X$1:$X$401,MATCH(Z195,$W$1:$W$401,1)-1,0,2),OFFSET($W$1:$W$401,MATCH(Z195,$W$1:$W$401,1)-1,0,2)),"") -> 166.0943147
C196: 240 | E196: 0.547752809 | F196: 0.056501 | Q196: 1117.176745 | R196: 10.63846497 | S196: 12241.62127 | U196: 195 | W196: 921.1350579 | X196: 19.18843852 | Z196: =IF(Z195<INT($V$2), Z195+Eingabe!$B$3,"") -> 195 | AA196: 167.0104877
C197: 241 | E197: 0.5505617978 | F197: 0.055868 | Q197: 1121.632238 | R197: 10.51927861 | S197: 12194.7527 | U197: 196 | W197: 925.5905508 | X197: 18.90788927 | Z197: =IF(Z196<INT($V$2), Z196+Eingabe!$B$3,"") -> 196 | AA197: 167.9266608
C198: 242 | E198: 0.5533707865 | F198: 0.055238 | Q198: 1126.087731 | R198: 10.40065712 | S198: 12148.41264 | U198: 197 | W198: 930.0460437 | X198: 18.62903462 | Z198: =IF(Z197<INT($V$2), Z197+Eingabe!$B$3,"") -> 197 | AA198: 168.8428338
C199: 243 | E199: 0.5561797753 | F199: 0.054604 | Q199: 1130.543224 | R199: 10.28128247 | S199: 12102.60446 | U199: 198 | W199: 934.5015366 | X199: 18.35394573 | Z199: =IF(Z198<INT($V$2), Z198+Eingabe!$B$3,"") -> 198 | AA199: 169.7085838
C200: 244 | E200: 0.558988764 | F200: 0.053965 | Q200: 1134.998717 | R200: 10.16096639 | S200: 12057.33235 | U200: 199 | W200: 938.9570295 | X200: 18.08375234 | Z200: =IF(Z199<INT($V$2), Z199+Eingabe!$B$3,"") -> 199 | AA200: 170.5112899
... 2050 more rows

Sheet C2
A1: 0 | B1: 0 | C1: 45 | D1: Teil2 | E1: 0 | F1: 1 | H1: Qmax | I1: =IF(Eingabe!B9=1,Eingabe!B10,Eingabe!B28) -> 221.5153915 | J1: 0 | K1: 0 | L1: =I2 -> 90000 | Q1: =I4 -> 211.1022856 | R1: =F1*$I$1 -> 221.5153915 | S1: =I3 -> 67500 | U1: 0 | V1: Kurve1+2 | W1: =J1 -> 0 | X1: =K1 -> 0 | Y1: Zeit soll | Z1: 0 | AA1: 0
A2: 0.02272727273 | B2: 0.02093217956 | C2: =C1+1 -> 46 | E2: =E1+1/356 -> 0.002808988764 | F2: 0.9993458563 | H2: V_100 | I2: =Eingabe!B2 -> 90000 | J2: =$J$45/44+J1 -> 4.797779218 | K2: =B2*$I$1 -> 4.636799949 | L2: =L1-(K2*(J2-J1)) -> 89977.75366 | Q2: =Q1+($Q$357-$Q$1)/356 -> 214.8894545 | R2: =F2*$I$1 -> 221.3704886 | S2: =S1-(R2*(Q2-Q1)) -> 66661.63256 | U2: =U1+1 -> 1 | V2: =MAX(W:W) -> 1559.334437 | W2: =J2 -> 4.797779218 | X2: 4.636799949 | Z2: =IF(Z1<INT($V$2), Z1+Eingabe!$B$3,"") -> 1 | AA2: =IF(ISNUMBER(Z2),FORECAST(Z2,OFFSET($X$1:$X$401,MATCH(Z2,$W$1:$W$401,1)-1,0,2),OFFSET($W$1:$W$401,MATCH(Z2,$W$1:$W$401,1)-1,0,2)),"") -> 0.9664471288
A3: 0.04545454545 | B3: 0.0371420594 | C3: =C2+1 -> 47 | E3: =E2+1/356 -> 0.005617977528 | F3: 0.9972613645 | H3: V_75 | I3: =I2*0.75 -> 67500 | J3: =$J$45/44+J2 -> 9.595558436 | K3: 8.22753783 | L3: =L2-(K3*(J3-J2)) -> 89938.27975 | Q3: =Q2+($Q$357-$Q$1)/356 -> 218.6766235 | R3: 220.9087416 | S3: =S2-(R3*(Q3-Q2)) -> 65825.01383 | U3: =U2+1 -> 2 | W3: 9.595558436 | X3: 8.22753783 | Z3: =IF(Z2<INT($V$2), Z2+Eingabe!$B$3,"") -> 2 | AA3: =IF(ISNUMBER(Z3),FORECAST(Z3,OFFSET($X$1:$X$401,MATCH(Z3,$W$1:$W$401,1)-1,0,2),OFFSET($W$1:$W$401,MATCH(Z3,$W$1:$W$401,1)-1,0,2)),"") -> 1.932894258
A4: 0.06818181818 | B4: 0.04511451171 | C4: 48 | E4: 0.008426966292 | F4: 0.9937552244 | H4: t_Qmax | I4: 211.1022856 | J4: 14.39333765 | K4: 9.993558725 | L4: 89890.33286 | Q4: 222.4637925 | R4: 220.1320776 | S4: 64991.33645 | U4: 3 | W4: 14.39333765 | X4: 9.993558725 | Z4: =IF(Z3<INT($V$2), Z3+Eingabe!$B$3,"") -> 3 | AA4: 2.899341386
A5: 0.09090909091 | B5: 0.04925061881 | C5: 49 | E5: 0.01123595506 | F5: 0.989272258 | H5: V_ist75 | I5: =L45 -> 67500 | J5: 19.19111687 | K5: 10.90977011 | L5: 89837.99019 | Q5: 226.2509614 | R5: 219.1390315 | S5: 64161.41991 | U5: 4 | W5: 19.19111687 | X5: 10.90977011 | Z5: =IF(Z4<INT($V$2), Z4+Eingabe!$B$3,"") -> 4 | AA5: 3.865788515
A6: 0.1136363636 | B6: 0.05495962222 | C6: 50 | E6: 0.01404494382 | F6: 0.9839083739 | H6: 0Bedingung | I6: =I3-I5 -> 0 | J6: 23.98889609 | K6: 12.17440223 | L6: 89779.5801 | Q6: 230.0381304 | R6: 217.9508487 | S6: 63336.00322 | U6: 5 | W6: 23.98889609 | X6: 12.17440223 | Z6: =IF(Z5<INT($V$2), Z5+Eingabe!$B$3,"") -> 5 | AA6: 4.788145351
A7: 0.1363636364 | B7: 0.06216143017 | C7: 51 | E7: 0.01685393258 | F7: 0.9777246548 | H7: Teil2 | J7: 28.78667531 | K7: 13.76971354 | L7: 89713.51605 | Q7: 233.8252994 | R7: 216.5810597 | S7: 62515.77416 | U7: 6 | W7: 28.78667531 | X7: 13.76971354 | Z7: =IF(Z6<INT($V$2), Z6+Eingabe!$B$3,"") -> 6 | AA7: 5.536562008
A8: 0.1590909091 | B8: 0.07099410348 | C8: 52 | E8: 0.01966292135 | F8: 0.9706774964 | H8: V_10 (Rest) | I8: =I2*0.1 -> 9000 | J8: 33.58445452 | K8: 15.72628663 | L8: 89638.0648 | Q8: 237.6124683 | R8: 215.0200057 | S8: 61701.45706 | U8: 7 | W8: 33.58445452 | X8: 15.72628663 | Z8: =IF(Z7<INT($V$2), Z7+Eingabe!$B$3,"") -> 7 | AA8: 6.284978664
A9: 0.1818181818 | B9: 0.08133023059 | C9: 53 | E9: 0.02247191011 | F9: 0.9629674682 | H9: t_Gesamt | I9: 1559.334437 | J9: 38.38223374 | K9: 18.01589787 | L9: 89551.6285 | Q9: 241.3996373 | R9: 213.3121157 | S9: 60893.60804 | U9: 8 | W9: 38.38223374 | X9: 18.01589787 | Z9: =IF(Z8<INT($V$2), Z8+Eingabe!$B$3,"") -> 8 | AA9: 7.033395321
A10: 0.2045454545 | B10: 0.09329647735 | C10: 54 | E10: 0.02528089888 | F10: 0.9547167095 | H10: V_ist10 | I10: =S357 -> 9000 | J10: 43.18001296 | K10: 20.66660571 | L10: 89452.47469 | Q10: 245.1868063 | R10: 211.4844457 | S10: 60092.68071 | U10: 9 | W10: 43.18001296 | X10: 20.66660571 | Z10: =IF(Z9<INT($V$2), Z9+Eingabe!$B$3,"") -> 9 | AA10: 7.781811977
A11: 0.2272727273 | B11: 0.1067663349 | C11: 55 | E11: 0.02808988764 | F11: 0.946029855 | H11: 0Bedingung | I11: =I8-I10 -> 0 | J11: 47.97779218 | K11: 23.65038647 | L11: 89339.00536 | Q11: 248.9739752 | R11: 209.5601737 | S11: 59299.04092 | U11: 10 | W11: 47.97779218 | X11: 23.65038647 | Z11: =IF(Z10<INT($V$2), Z10+Eingabe!$B$3,"") -> 10 | AA11: 8.37640926
A12: 0.25 | B12: 0.1218601633 | C12: 56 | E12: 0.0308988764 | F12: 0.9368458612 | J12: 52.7755714 | K12: 26.99390177 | L12: 89209.49457 | Q12: 252.7611442 | R12: 207.5257777 | S12: 58513.10574 | U12: 11 | W12: 52.7755714 | X12: 26.99390177 | Z12: =IF(Z11<INT($V$2), Z11+Eingabe!$B$3,"") -> 11 | AA12: 8.744500582
A13: 0.2727272727 | B13: 0.1384192704 | C13: 57 | E13: 0.03370786517 | F13: 0.9272083456 | H13: Schrittweite1 | I13: =J2 -> 4.797779218 | J13: 57.57335061 | K13: 30.66199887 | L13: 89062.38507 | Q13: 256.5483132 | R13: 205.3909197 | S13: 57735.25562 | U13: 12 | W13: 57.57335061 | X13: 30.66199887 | Z13: =IF(Z12<INT($V$2), Z12+Eingabe!$B$3,"") -> 12 | AA13: 9.112591904
A14: 0.2954545455 | B14: 0.1565282222 | C14: 58 | E14: 0.03651685393 | F14: 0.9170300602 | H14: Schrittweite2 | I14: =Q2-Q1 -> 3.787168964 | J14: 62.37112983 | K14: 34.67341042 | L14: 88896.02971 | Q14: 260.3354821 | R14: 203.1362728 | S14: 56965.94424 | U14: 13 | W14: 62.37112983 | X14: 34.67341042 | Z14: =IF(Z13<INT($V$2), Z13+Eingabe!$B$3,"") -> 13 | AA14: 9.480683226
A15: 0.3181818182 | B15: 0.176030917 | C15: 59 | E15: 0.0393258427 | F15: 0.9065029139 | H15: Schritt_max | I15: 44 | J15: 67.16890905 | K15: 38.99355751 | L15: 88708.94723 | Q15: 264.1226511 | R15: 200.8043479 | S15: 56205.46424 | U15: 14 | W15: 67.16890905 | X15: 38.99355751 | Z15: =IF(Z14<INT($V$2), Z14+Eingabe!$B$3,"") -> 14 | AA15: 9.848774548
A16: 0.3409090909 | B16: 0.197018907 | C16: 60 | E16: 0.04213483146 | F16: 0.8955745892 | J16: 71.96668827 | K16: 43.64272032 | L16: 88499.55909 | Q16: 267.90982 | R16: 198.3835558 | S16: 55454.1522 | U16: 15 | W16: 71.96668827 | X16: 43.64272032 | Z16: =IF(Z15<INT($V$2), Z15+Eingabe!$B$3,"") -> 15 | AA16: 10.10941044
A17: 0.3636363636 | B17: 0.2193727217 | C17: 61 | E17: 0.04494382022 | F17: 0.8842101427 | J17: 76.76446748 | K17: 48.59443434 | L17: 88266.41372 | Q17: 271.696989 | R17: 195.8661559 | S17: 54712.37397 | U17: 16 | W17: 76.76446748 | X17: 48.59443434 | Z17: =IF(Z16<INT($V$2), Z16+Eingabe!$B$3,"") -> 16 | AA17: 10.30037616
A18: 0.3863636364 | B18: 0.2432066377 | C18: 62 | E18: 0.04775280899 | F18: 0.8725055743 | J18: 81.5622467 | K18: 53.87401358 | L18: 88007.9381 | Q18: 275.484158 | R18: 193.2734139 | S18: 53980.41489 | U18: 17 | W18: 81.5622467 | X18: 53.87401358 | Z18: =IF(Z17<INT($V$2), Z17+Eingabe!$B$3,"") -> 17 | AA18: 10.49134189
A19: 0.4090909091 | B19: 0.2685214793 | C19: 63 | E19: 0.05056179775 | F19: 0.8606265624 | J19: 86.36002592 | K19: 59.48164062 | L19: 87722.55832 | Q19: 279.2713269 | R19: 190.6420299 | S19: 53258.42132 | U19: 18 | W19: 86.36002592 | X19: 59.48164062 | Z19: =IF(Z18<INT($V$2), Z18+Eingabe!$B$3,"") -> 18 | AA19: 10.68230761
A20: 0.4318181818 | B20: 0.2958937971 | C20: 64 | E20: 0.05337078652 | F20: 0.8486603287 | J20: 91.15780514 | K20: 65.54503032 | L20: 87408.08774 | Q20: 283.0584959 | R20: 187.991325 | S20: 52546.4664 | U20: 19 | W20: 91.15780514 | X20: 65.54503032 | Z20: =IF(Z19<INT($V$2), Z19+Eingabe!$B$3,"") -> 19 | AA20: 10.87327334
A21: 0.4545454545 | B21: 0.3262646497 | C21: 65 | E21: 0.05617977528 | F21: 0.8366940951 | J21: 95.95558436 | K21: 72.27264161 | L21: 87061.33956 | Q21: 286.8456649 | R21: 185.34062 | S21: 51844.55016 | U21: 20 | W21: 95.95558436 | X21: 72.27264161 | Z21: =IF(Z20<INT($V$2), Z20+Eingabe!$B$3,"") -> 20 | AA21: 11.12298117
A22: 0.4772727273 | B22: 0.3613897104 | C22: 66 | E22: 0.05898876404 | F22: 0.8246842701 | J22: 100.7533636 | K22: 80.0533832 | L22: 86677.2611 | Q22: 290.6328338 | R22: 182.680259 | S22: 51152.70915 | U22: 21 | W22: 100.7533636 | X22: 80.0533832 | Z22: =IF(Z21<INT($V$2), Z21+Eingabe!$B$3,"") -> 21 | AA22: 11.38656815
A23: 0.5 | B23: 0.398939424 | C23: 67 | E23: 0.06179775281 | F23: 0.812656993 | J23: 105.5511428 | K23: 88.37122271 | L23: 86253.27548 | Q23: 294.4200028 | R23: 180.016032 | S23: 50470.95802 | U23: 22 | W23: 105.5511428 | X23: 88.37122271 | Z23: =IF(Z22<INT($V$2), Z22+Eingabe!$B$3,"") -> 22 | AA23: 11.65015512
A24: 0.5227272727 | B24: 0.4380206798 | C24: 68 | E24: 0.06460674157 | F24: 0.8006384158 | J24: 110.348922 | K24: 97.02832238 | L24: 85787.75502 | Q24: 298.2071718 | R24: 177.3537321 | S24: 49799.28947 | U24: 23 | W24: 110.348922 | X24: 97.02832238 | Z24: =IF(Z23<INT($V$2), Z23+Eingabe!$B$3,"") -> 23 | AA24: 11.9137421
A25: 0.5454545455 | B25: 0.4786212716 | C25: 69 | E25: 0.06741573034 | F25: 0.7886024125 | J25: 115.1467012 | K25: 106.0219784 | L25: 85279.08497 | Q25: 301.9943407 | R25: 174.6875722 | S25: 49137.71812 | U25: 24 | W25: 115.1467012 | X25: 106.0219784 | Z25: =IF(Z24<INT($V$2), Z24+Eingabe!$B$3,"") -> 24 | AA25: 12.1780944
A26: 0.5681818182 | B26: 0.5208458343 | C26: 70 | E26: 0.0702247191 | F26: 0.776531531 | J26: 119.9444804 | K26: 115.3753689 | L26: 84725.53942 | Q26: 305.7815097 | R26: 172.0136861 | S26: 48486.27323 | U26: 25 | W26: 119.9444804 | X26: 115.3753689 | Z26: =IF(Z25<INT($V$2), Z25+Eingabe!$B$3,"") -> 25 | AA26: 12.51060476
A27: 0.5909090909 | B27: 0.5639582615 | C27: 71 | E27: 0.07303370787 | F27: 0.7644083191 | J27: 124.7422597 | K27: 124.9254351 | L27: 84126.17477 | Q27: 309.5686787 | R27: 169.3282081 | S27: 47844.99869 | U27: 26 | W27: 124.7422597 | X27: 124.9254351 | Z27: =IF(Z26<INT($V$2), Z26+Eingabe!$B$3,"") -> 26 | AA27: 12.84311512
A28: 0.6136363636 | B28: 0.6070680984 | C28: 72 | E28: 0.07584269663 | F28: 0.7522502028 | J28: 129.5400389 | K28: 134.4749275 | L28: 83480.99376 | Q28: 313.3558476 | R28: 166.6349982 | S28: 47213.9238 | U28: 27 | W28: 129.5400389 | X28: 134.4749275 | Z28: =IF(Z27<INT($V$2), Z27+Eingabe!$B$3,"") -> 27 | AA28: 13.17562549
A29: 0.6363636364 | B29: 0.6495255316 | C29: 73 | E29: 0.07865168539 | F29: 0.7400223299 | J29: 134.3378181 | K29: 143.8799024 | L29: 82790.68975 | Q29: 317.1430166 | R29: 163.9263361 | S29: 46593.10707 | U29: 28 | W29: 134.3378181 | X29: 143.8799024 | Z29: =IF(Z28<INT($V$2), Z28+Eingabe!$B$3,"") -> 28 | AA29: 13.50813585
A30: 0.6590909091 | B30: 0.6912590646 | C30: 74 | E30: 0.08146067416 | F30: 0.7278380484 | J30: 139.1355973 | K30: 153.1245223 | L30: 82056.0321 | Q30: 320.9301855 | R30: 161.2273302 | S30: 45982.51193 | U30: 29 | W30: 139.1355973 | X30: 153.1245223 | Z30: =IF(Z29<INT($V$2), Z29+Eingabe!$B$3,"") -> 29 | AA30: 13.85670907
A31: 0.6818181818 | B31: 0.7321029799 | C31: 75 | E31: 0.08426966292 | F31: 0.7157060972 | J31: 143.9333765 | K31: 162.1720782 | L31: 81277.96627 | Q31: 324.7173545 | R31: 158.5399163 | S31: 45382.09447 | U31: 30 | W31: 143.9333765 | X31: 162.1720782 | Z31: =IF(Z30<INT($V$2), Z30+Eingabe!$B$3,"") -> 30 | AA31: 14.26451714
A32: 0.7045454545 | B32: 0.7711938253 | C32: 76 | E32: 0.08707865169 | F32: 0.70372 | J32: 148.7311558 | K32: 170.8313021 | L32: 80458.3554 | Q32: 328.5045235 | R32: 155.8848113 | S32: 44791.73236 | U32: 31 | W32: 148.7311558 | X32: 170.8313021 | Z32: =IF(Z31<INT($V$2), Z31+Eingabe!$B$3,"") -> 31 | AA32: 14.67232522
A33: 0.7272727273 | B33: 0.8078076873 | C33: 77 | E33: 0.08988764045 | F33: 0.69197 | J33: 153.528935 | K33: 178.9418361 | L33: 79599.83198 | Q33: 332.2916924 | R33: 153.2820055 | S33: 44211.2275 | U33: 32 | W33: 153.528935 | X33: 178.9418361 | Z33: =IF(Z32<INT($V$2), Z32+Eingabe!$B$3,"") -> 32 | AA33: 15.08013329
A34: 0.75 | B34: 0.8413079007 | C34: 78 | E34: 0.09269662921 | F34: 0.68046 | J34: 158.3267142 | K34: 186.362649 | L34: 78705.70513 | Q34: 336.0788614 | R34: 150.7323633 | S34: 43640.37857 | U34: 33 | W34: 158.3267142 | X34: 186.362649 | Z34: =IF(Z33<INT($V$2), Z33+Eingabe!$B$3,"") -> 33 | AA34: 15.48794136
A35: 0.7727272727 | B35: 0.8719648176 | C35: 79 | E35: 0.09550561798 | F35: 0.66914 | J35: 163.1244934 | K35: 193.153628 | L35: 77778.99667 | Q35: 339.8660304 | R35: 148.2248091 | S35: 43079.02618 | U35: 34 | W35: 163.1244934 | X35: 193.153628 | Z35: =IF(Z34<INT($V$2), Z34+Eingabe!$B$3,"") -> 34 | AA35: 15.92459454
A36: 0.7954545455 | B36: 0.8994295903 | C36: 80 | E36: 0.09831460674 | F36: 0.65795 | J36: 167.9222726 | K36: 199.2374978 | L36: 76823.09915 | Q36: 343.6531993 | R36: 145.7460518 | S36: 42527.06125 | U36: 35 | W36: 167.9222726 | X36: 199.2374978 | Z36: =IF(Z35<INT($V$2), Z35+Eingabe!$B$3,"") -> 35 | AA36: 16.40181768
A37: 0.8181818182 | B37: 0.9234928837 | C37: 81 | E37: 0.1011235955 | F37: 0.64688 | J37: 172.7200518 | K37: 204.5678877 | L37: 75841.62758 | Q37: 347.4403683 | R37: 143.2938765 | S37: 41984.38313 | U37: 36 | W37: 172.7200518 | X37: 204.5678877 | Z37: =IF(Z36<INT($V$2), Z36+Eingabe!$B$3,"") -> 36 | AA37: 16.87904082
A38: 0.8409090909 | B38: 0.9436488196 | C38: 82 | E38: 0.1039325843 | F38: 0.63593 | J38: 177.5178311 | K38: 209.0327377 | L38: 74838.73466 | Q38: 351.2275373 | R38: 140.8682829 | S38: 41450.89114 | U38: 37 | W38: 177.5178311 | X38: 209.0327377 | Z38: =IF(Z37<INT($V$2), Z37+Eingabe!$B$3,"") -> 37 | AA38: 17.35626395
A39: 0.8636363636 | B39: 0.9603160675 | C39: 83 | E39: 0.106741573 | F39: 0.62506 | J39: 182.3156103 | K39: 212.7247897 | L39: 73818.12809 | Q39: 355.0147062 | R39: 138.4604106 | S39: 40926.51817 | U39: 38 | W39: 182.3156103 | X39: 212.7247897 | Z39: =IF(Z38<INT($V$2), Z38+Eingabe!$B$3,"") -> 38 | AA39: 17.83348709
A40: 0.8863636364 | B40: 0.9736516059 | C40: 84 | E40: 0.1095505618 | F40: 0.61419 | J40: 187.1133895 | K40: 215.6788167 | L40: 72783.34874 | Q40: 358.8018752 | R40: 136.0525383 | S40: 40411.26422 | U40: 39 | W40: 187.1133895 | X40: 215.6788167 | Z40: =IF(Z39<INT($V$2), Z39+Eingabe!$B$3,"") -> 39 | AA40: 18.35720534
A41: 0.9090909091 | B41: 0.9841264218 | C41: 85 | E41: 0.1123595506 | F41: 0.60325 | J41: 191.9111687 | K41: 217.9991496 | L41: 71737.43695 | Q41: 362.5890442 | R41: 133.6291599 | S41: 39905.18801 | U41: 40 | W41: 191.9111687 | X41: 217.9991496 | Z41: =IF(Z40<INT($V$2), Z40+Eingabe!$B$3,"") -> 40 | AA41: 18.90969175
A42: 0.9318181818 | B42: 0.9916009499 | C42: 86 | E42: 0.1151685393 | F42: 0.59226 | J42: 196.7089479 | K42: 219.6548726 | L42: 70683.58137 | Q42: 366.3762131 | R42: 131.1947058 | S42: 39408.3315 | U42: 41 | W42: 196.7089479 | X42: 219.6548726 | Z42: =IF(Z41<INT($V$2), Z41+Eingabe!$B$3,"") -> 41 | AA42: 19.46217816
A43: 0.9545454545 | B43: 0.9964589555 | C43: 87 | E43: 0.1179775281 | F43: 0.58121 | J43: 201.5067271 | K43: 220.7309957 | L43: 69624.56278 | Q43: 370.1633821 | R43: 128.7469607 | S43: 38920.745 | U43: 42 | W43: 201.5067271 | X43: 220.7309957 | Z43: =IF(Z42<INT($V$2), Z42+Eingabe!$B$3,"") -> 42 | AA43: 20.01466458
A44: 0.9772727273 | B44: 0.9990580388 | C44: 88 | E44: 0.1207865169 | F44: 0.57014 | J44: 206.3045064 | K44: 221.3067326 | L44: 68562.78194 | Q44: 373.9505511 | R44: 126.2947853 | S44: 38442.44531 | U44: 43 | W44: 206.3045064 | X44: 221.3067326 | Z44: =IF(Z43<INT($V$2), Z43+Eingabe!$B$3,"") -> 43 | AA44: 20.56715099
A45: 1 | B45: 1 | C45: 89 | E45: 0.1235955056 | F45: 0.55909 | J45: =I4 -> 211.1022856 | K45: 221.5153915 | L45: 67500 | Q45: 377.73772 | R45: 123.8470402 | S45: 37973.41564 | U45: 44 | W45: 211.1022856 | X45: 221.5153915 | Z45: =IF(Z44<INT($V$2), Z44+Eingabe!$B$3,"") -> 44 | AA45: 21.1765628
C46: 90 | E46: 0.1264044944 | F46: 0.54815 | Q46: 381.524889 | R46: 121.4236619 | S46: 37513.56372 | U46: 45 | W46: =Q2 -> 214.8894545 | X46: =R2 -> 221.3704886 | Z46: =IF(Z45<INT($V$2), Z45+Eingabe!$B$3,"") -> 45 | AA46: 21.79847153
C47: 91 | E47: 0.1292134831 | F47: 0.53744 | Q47: 385.3120579 | R47: 119.051232 | S47: 37062.69659 | U47: 46 | W47: =Q3 -> 218.6766235 | X47: 220.9087416 | Z47: =IF(Z46<INT($V$2), Z46+Eingabe!$B$3,"") -> 46 | AA47: 22.42038026
C48: 92 | E48: 0.1320224719 | F48: 0.52709 | Q48: 389.0992269 | R48: 116.7585477 | S48: 36620.51224 | U48: 47 | W48: =Q4 -> 222.4637925 | X48: 220.1320776 | Z48: =IF(Z47<INT($V$2), Z47+Eingabe!$B$3,"") -> 47 | AA48: 23.04228899
C49: 93 | E49: 0.1348314607 | F49: 0.5172 | Q49: 392.8863959 | R49: 114.5677605 | S49: 36186.62477 | U49: 48 | W49: =Q5 -> 226.2509614 | X49: 219.1390315 | Z49: =IF(Z48<INT($V$2), Z48+Eingabe!$B$3,"") -> 48 | AA49: 23.66586284
C50: 94 | E50: 0.1376404494 | F50: 0.5078 | Q50: 396.6735648 | R50: 112.4855158 | S50: 35760.62312 | U50: 49 | W50: =Q6 -> 230.0381304 | X50: 217.9508487 | Z50: =IF(Z49<INT($V$2), Z49+Eingabe!$B$3,"") -> 49 | AA50: 24.36275095
C51: 95 | E51: 0.1404494382 | F51: 0.49888 | Q51: 400.4607338 | R51: 110.5095985 | S51: 35342.1046 | U51: 50 | W51: =Q7 -> 233.8252994 | X51: 216.5810597 | Z51: =IF(Z50<INT($V$2), Z50+Eingabe!$B$3,"") -> 50 | AA51: 25.05963907
C52: 96 | E52: 0.143258427 | F52: 0.49041 | Q52: 404.2479028 | R52: 108.6333632 | S52: 34930.6917 | U52: 51 | W52: =Q8 -> 237.6124683 | X52: 215.0200057 | Z52: =IF(Z51<INT($V$2), Z51+Eingabe!$B$3,"") -> 51 | AA52: 25.75652718
C53: 97 | E53: 0.1460674157 | F53: 0.48103 | Q53: 408.0350717 | R53: 106.5555488 | S53: 34527.14783 | U53: 52 | W53: =Q9 -> 241.3996373 | X53: 213.3121157 | Z53: =IF(Z52<INT($V$2), Z52+Eingabe!$B$3,"") -> 52 | AA53: 26.45341529
C54: 98 | E54: 0.1488764045 | F54: 0.47184 | Q54: 411.8222407 | R54: 104.5198223 | S54: 34131.3136 | U54: 53 | W54: =Q10 -> 245.1868063 | X54: 211.4844457 | Z54: =IF(Z53<INT($V$2), Z53+Eingabe!$B$3,"") -> 53 | AA54: 27.16548656
C55: 99 | E55: 0.1516853933 | F55: 0.46286 | Q55: 415.6094097 | R55: 102.5306141 | S55: 33743.01284 | U55: 54 | W55: =Q11 -> 248.9739752 | X55: 209.5601737 | Z55: =IF(Z54<INT($V$2), Z54+Eingabe!$B$3,"") -> 54 | AA55: 27.93002718
C56: 100 | E56: 0.154494382 | F56: 0.45408 | Q56: 419.3965786 | R56: 100.585709 | S56: 33362.07777 | U56: 55 | W56: =Q12 -> 252.7611442 | X56: 207.5257777 | Z56: =IF(Z55<INT($V$2), Z55+Eingabe!$B$3,"") -> 55 | AA56: 28.6945678
C57: 101 | E57: 0.1573033708 | F57: 0.44549 | Q57: 423.1837476 | R57: 98.68289177 | S57: 32988.34898 | U57: 56 | W57: =Q13 -> 256.5483132 | X57: 205.3909197 | Z57: =IF(Z56<INT($V$2), Z56+Eingabe!$B$3,"") -> 56 | AA57: 29.45910841
C58: 102 | E58: 0.1601123596 | F58: 0.4371 | Q58: 426.9709166 | R58: 96.82437763 | S58: 32621.6587 | U58: 57 | W58: =Q14 -> 260.3354821 | X58: 203.1362728 | Z58: =IF(Z57<INT($V$2), Z57+Eingabe!$B$3,"") -> 57 | AA58: 30.22364903
C59: 103 | E59: 0.1629213483 | F59: 0.42891 | Q59: 430.7580855 | R59: 95.01016658 | S59: 32261.83915 | U59: 58 | W59: =Q15 -> 264.1226511 | X59: 200.8043479 | Z59: =IF(Z58<INT($V$2), Z58+Eingabe!$B$3,"") -> 58 | AA59: 31.01871938
C60: 104 | E60: 0.1657303371 | F60: 0.4209 | Q60: 434.5452545 | R60: 93.23582829 | S60: 31908.73931 | U60: 59 | W60: =Q16 -> 267.90982 | X60: 198.3835558 | Z60: =IF(Z59<INT($V$2), Z59+Eingabe!$B$3,"") -> 59 | AA60: 31.85481695
C61: 105 | E61: 0.1685393258 | F61: 0.41308 | Q61: 438.3324234 | R61: 91.50357793 | S61: 31562.1998 | U61: 60 | W61: =Q17 -> 271.696989 | X61: 195.8661559 | Z61: =IF(Z60<INT($V$2), Z60+Eingabe!$B$3,"") -> 60 | AA61: 32.69091453
C62: 106 | E62: 0.1713483146 | F62: 0.40544 | Q62: 442.1195924 | R62: 89.81120034 | S62: 31222.06961 | U62: 61 | W62: =Q18 -> 275.484158 | X62: 193.2734139 | Z62: =IF(Z61<INT($V$2), Z61+Eingabe!$B$3,"") -> 61 | AA62: 33.5270121
C63: 107 | E63: 0.1741573034 | F63: 0.39797 | Q63: 445.9067614 | R63: 88.15648036 | S63: 30888.20613 | U63: 62 | W63: =Q19 -> 279.2713269 | X63: 190.6420299 | Z63: =IF(Z62<INT($V$2), Z62+Eingabe!$B$3,"") -> 62 | AA63: 34.36310967
C64: 108 | E64: 0.1769662921 | F64: 0.39067 | Q64: 449.6939303 | R64: 86.539418 | S64: 30560.46673 | U64: 63 | W64: =Q20 -> 283.0584959 | X64: 187.991325 | Z64: =IF(Z63<INT($V$2), Z63+Eingabe!$B$3,"") -> 63 | AA64: 35.23967483
C65: 109 | E65: 0.1797752809 | F65: 0.38354 | Q65: 453.4810993 | R65: 84.96001326 | S65: 30238.7088 | U65: 64 | W65: =Q21 -> 286.8456649 | X65: 185.34062 | Z65: =IF(Z64<INT($V$2), Z64+Eingabe!$B$3,"") -> 64 | AA65: 36.14012208
C66: 110 | E66: 0.1825842697 | F66: 0.37658 | Q66: 457.2682683 | R66: =F66*$I$1 -> 83.41826614 | S66: 29922.78973 | U66: 65 | W66: =Q22 -> 290.6328338 | X66: 182.680259 | Z66: =IF(Z65<INT($V$2), Z65+Eingabe!$B$3,"") -> 65 | AA66: 37.04056933
C67: =C66+1 -> 111 | E67: =E66+1/356 -> 0.1853932584 | F67: 0.36979 | Q67: =Q66+($Q$357-$Q$1)/356 -> 461.0554372 | R67: 81.91417663 | S67: =S66-(R67*(Q67-Q66)) -> 29612.56691 | U67: =U66+1 -> 66 | W67: =Q23 -> 294.4200028 | X67: 180.016032 | Z67: =IF(Z66<INT($V$2), Z66+Eingabe!$B$3,"") -> 66 | AA67: =IF(ISNUMBER(Z67),FORECAST(Z67,OFFSET($X$1:$X$401,MATCH(Z67,$W$1:$W$401,1)-1,0,2),OFFSET($W$1:$W$401,MATCH(Z67,$W$1:$W$401,1)-1,0,2)),"") -> 37.94101657
C68: 112 | E68: 0.1882022472 | F68: 0.36317 | Q68: 464.8426062 | R68: 80.44774474 | S68: 29307.8977 | U68: 67 | W68: =Q24 -> 298.2071718 | X68: 177.3537321 | Z68: =IF(Z67<INT($V$2), Z67+Eingabe!$B$3,"") -> 67 | AA68: 38.84146382
C69: 113 | E69: 0.191011236 | F69: 0.35672 | Q69: 468.6297752 | R69: 79.01897046 | S69: 29008.63951 | U69: 68 | W69: =Q25 -> 301.9943407 | X69: 174.6875722 | Z69: =IF(Z68<INT($V$2), Z68+Eingabe!$B$3,"") -> 68 | AA69: 39.79890452
C70: 114 | E70: 0.1938202247 | F70: 0.35044 | Q70: 472.4169441 | R70: 77.6278538 | S70: 28714.64971 | U70: 69 | W70: =Q26 -> 305.7815097 | X70: 172.0136861 | Z70: =IF(Z69<INT($V$2), Z69+Eingabe!$B$3,"") -> 69 | AA70: 40.76792844
C71: 115 | E71: 0.1966292135 | F71: 0.34434 | Q71: 476.2041131 | R71: 76.27660992 | S71: 28425.7773 | U71: 70 | W71: =Q27 -> 309.5686787 | X71: 169.3282081 | Z71: =IF(Z70<INT($V$2), Z70+Eingabe!$B$3,"") -> 70 | AA71: 41.73695235
C72: 116 | E72: 0.1994382022 | F72: 0.33841 | Q72: 479.9912821 | R72: 74.96302364 | S72: 28141.87967 | U72: 71 | W72: =Q28 -> 313.3558476 | X72: 166.6349982 | Z72: =IF(Z71<INT($V$2), Z71+Eingabe!$B$3,"") -> 71 | AA72: 42.70597627
C73: 117 | E73: 0.202247191 | F73: 0.33264 | Q73: 483.778451 | R73: 73.68487983 | S73: 27862.82258 | U73: 72 | W73: =Q29 -> 317.1430166 | X73: 163.9263361 | Z73: =IF(Z72<INT($V$2), Z72+Eingabe!$B$3,"") -> 72 | AA73: 43.67710085
C74: 118 | E74: 0.2050561798 | F74: 0.32703 | Q74: 487.56562 | R74: 72.44217849 | S74: 27588.47181 | U74: 73 | W74: =Q30 -> 320.9301855 | X74: 161.2273302 | Z74: =IF(Z73<INT($V$2), Z73+Eingabe!$B$3,"") -> 73 | AA74: 44.70918545
C75: 119 | E75: 0.2078651685 | F75: 0.32159 | Q75: 491.3527889 | R75: 71.23713476 | S75: 27318.68474 | U75: 74 | W75: =Q31 -> 324.7173545 | X75: 158.5399163 | Z75: =IF(Z74<INT($V$2), Z74+Eingabe!$B$3,"") -> 74 | AA75: 45.74127004
C76: 120 | E76: 0.2106741573 | F76: 0.3163 | Q76: 495.1399579 | R76: 70.06531834 | S76: 27053.33554 | U76: 75 | W76: =Q32 -> 328.5045235 | X76: 155.8848113 | Z76: =IF(Z75<INT($V$2), Z75+Eingabe!$B$3,"") -> 75 | AA76: 46.77335463
C77: 121 | E77: 0.2134831461 | F77: 0.31118 | Q77: 498.9271269 | R77: 68.93115953 | S77: 26792.28159 | U77: 76 | W77: =Q33 -> 332.2916924 | X77: 153.2820055 | Z77: =IF(Z76<INT($V$2), Z76+Eingabe!$B$3,"") -> 76 | AA77: 47.80543923
C78: 122 | E78: 0.2162921348 | F78: 0.30624 | Q78: 502.7142958 | R78: 67.8368735 | S78: 26535.37189 | U78: 77 | W78: =Q34 -> 336.0788614 | X78: 150.7323633 | Z78: =IF(Z77<INT($V$2), Z77+Eingabe!$B$3,"") -> 77 | AA78: 48.85361937
C79: 123 | E79: 0.2191011236 | F79: 0.30146 | Q79: 506.5014648 | R79: 66.77802993 | S79: 26282.47221 | U79: 78 | W79: =Q35 -> 339.8660304 | X79: 148.2248091 | Z79: =IF(Z78<INT($V$2), Z78+Eingabe!$B$3,"") -> 78 | AA79: 49.95404084
C80: 124 | E80: 0.2219101124 | F80: 0.29685 | Q80: 510.2886338 | R80: 65.75684397 | S80: 26033.43993 | U80: 79 | W80: =Q36 -> 343.6531993 | X80: 145.7460518 | Z80: =IF(Z79<INT($V$2), Z79+Eingabe!$B$3,"") -> 79 | AA80: 51.05446231
C81: 125 | E81: 0.2247191011 | F81: 0.29241 | Q81: 514.0758027 | R81: 64.77331563 | S81: 25788.13244 | U81: 80 | W81: =Q37 -> 347.4403683 | X81: 143.2938765 | Z81: =IF(Z80<INT($V$2), Z80+Eingabe!$B$3,"") -> 80 | AA81: 52.15488377
C82: 126 | E82: 0.2275280899 | F82: 0.28812 | Q82: 517.8629717 | R82: 63.8230146 | S82: 25546.4239 | U82: 81 | W82: =Q38 -> 351.2275373 | X82: 140.8682829 | Z82: =IF(Z81<INT($V$2), Z81+Eingabe!$B$3,"") -> 81 | AA82: 53.25530524
C83: 127 | E83: 0.2303370787 | F83: 0.28398 | Q83: 521.6501407 | R83: 62.90594088 | S83: 25308.18847 | U83: 82 | W83: =Q39 -> 355.0147062 | X83: 138.4604106 | Z83: =IF(Z82<INT($V$2), Z82+Eingabe!$B$3,"") -> 82 | AA83: 54.38565805
C84: 128 | E84: 0.2331460674 | F84: 0.27997 | Q84: 525.4373096 | R84: 62.01766416 | S84: 25073.3171 | U84: 83 | W84: =Q40 -> 358.8018752 | X84: 136.0525383 | Z84: =IF(Z83<INT($V$2), Z83+Eingabe!$B$3,"") -> 83 | AA84: 55.55445445
C85: 129 | E85: 0.2359550562 | F85: 0.27607 | Q85: 529.2244786 | R85: 61.15375414 | S85: 24841.7175 | U85: 84 | W85: =Q41 -> 362.5890442 | X85: 133.6291599 | Z85: =IF(Z84<INT($V$2), Z84+Eingabe!$B$3,"") -> 84 | AA85: 56.72325084
C86: 130 | E86: 0.2387640449 | F86: 0.27227 | Q86: 533.0116476 | R86: 60.31199565 | S86: 24613.30578 | U86: 85 | W86: =Q42 -> 366.3762131 | X86: 131.1947058 | Z86: =IF(Z85<INT($V$2), Z85+Eingabe!$B$3,"") -> 85 | AA86: 57.89204723
C87: 131 | E87: 0.2415730337 | F87: 0.26854 | Q87: 536.7988165 | R87: 59.48574324 | S87: 24388.02322 | U87: 86 | W87: =Q43 -> 370.1633821 | X87: 128.7469607 | Z87: =IF(Z86<INT($V$2), Z86+Eingabe!$B$3,"") -> 86 | AA87: 59.06084362
C88: 132 | E88: 0.2443820225 | F88: 0.26488 | Q88: 540.5859855 | R88: 58.67499691 | S88: 24165.81109 | U88: 87 | W88: =Q44 -> 373.9505511 | X88: 126.2947853 | Z88: =IF(Z87<INT($V$2), Z87+Eingabe!$B$3,"") -> 87 | AA88: 60.29043404
C89: 133 | E89: 0.2471910112 | F89: 0.26128 | Q89: 544.3731544 | R89: 57.8775415 | S89: 23946.61907 | U89: 88 | W89: =Q45 -> 377.73772 | X89: 123.8470402 | Z89: =IF(Z88<INT($V$2), Z88+Eingabe!$B$3,"") -> 88 | AA89: 61.55422493
C90: 134 | E90: 0.25 | F90: 0.25773 | Q90: 548.1603234 | R90: 57.09116186 | S90: 23730.40519 | U90: 89 | W90: =Q46 -> 381.524889 | X90: 121.4236619 | Z90: =IF(Z89<INT($V$2), Z89+Eingabe!$B$3,"") -> 89 | AA90: 62.81801583
C91: 135 | E91: 0.2528089888 | F91: 0.25422 | Q91: 551.9474924 | R91: 56.31364283 | S91: 23517.13591 | U91: 90 | W91: =Q47 -> 385.3120579 | X91: 119.051232 | Z91: =IF(Z90<INT($V$2), Z90+Eingabe!$B$3,"") -> 90 | AA91: 64.08180673
C92: 136 | E92: 0.2556179775 | F92: 0.25076 | Q92: 555.7346613 | R92: 55.54719958 | S92: 23306.76928 | U92: 91 | W92: =Q48 -> 389.0992269 | X92: 116.7585477 | Z92: =IF(Z91<INT($V$2), Z91+Eingabe!$B$3,"") -> 91 | AA92: 65.34559762
C93: 137 | E93: 0.2584269663 | F93: 0.24734 | Q93: 559.5218303 | R93: 54.78961694 | S93: 23099.27174 | U93: 92 | W93: =Q49 -> 392.8863959 | X93: 114.5677605 | Z93: =IF(Z92<INT($V$2), Z92+Eingabe!$B$3,"") -> 92 | AA93: 66.72598497
C94: 138 | E94: 0.2612359551 | F94: 0.24396 | Q94: 563.3089993 | R94: 54.04089491 | S94: 22894.60974 | U94: 93 | W94: =Q50 -> 396.6735648 | X94: 112.4855158 | Z94: =IF(Z93<INT($V$2), Z93+Eingabe!$B$3,"") -> 93 | AA94: 68.12821942
C95: 139 | E95: 0.2640449438 | F95: 0.24061 | Q95: 567.0961682 | R95: 53.29881835 | S95: 22692.75811 | U95: 94 | W95: =Q51 -> 400.4607338 | X95: 110.5095985 | Z95: =IF(Z94<INT($V$2), Z94+Eingabe!$B$3,"") -> 94 | AA95: 69.53045386
C96: 140 | E96: 0.2668539326 | F96: 0.23728 | Q96: 570.8833372 | R96: 52.5611721 | S96: 22493.70007 | U96: 95 | W96: =Q52 -> 404.2479028 | X96: 108.6333632 | Z96: =IF(Z95<INT($V$2), Z95+Eingabe!$B$3,"") -> 95 | AA96: 70.93268831
C97: 141 | E97: 0.2696629213 | F97: 0.23396 | Q97: 574.6705062 | R97: 51.825741 | S97: 22297.42723 | U97: 96 | W97: =Q53 -> 408.0350717 | X97: 106.5555488 | Z97: =IF(Z96<INT($V$2), Z96+Eingabe!$B$3,"") -> 96 | AA97: 72.34467216
C98: 142 | E98: 0.2724719101 | F98: 0.23064 | Q98: 578.4576751 | R98: 51.0903099 | S98: 22103.9396 | U98: 97 | W98: =Q54 -> 411.8222407 | X98: 104.5198223 | Z98: =IF(Z97<INT($V$2), Z97+Eingabe!$B$3,"") -> 97 | AA98: 73.96641031
C99: 143 | E99: 0.2752808989 | F99: 0.22732 | Q99: 582.2448441 | R99: 50.3548788 | S99: 21913.23716 | U99: 98 | W99: =Q55 -> 415.6094097 | X99: 102.5306141 | Z99: =IF(Z98<INT($V$2), Z98+Eingabe!$B$3,"") -> 98 | AA99: 75.58814845
C100: 144 | E100: 0.2780898876 | F100: 0.22399 | Q100: 586.0320131 | R100: 49.61723255 | S100: 21725.32832 | U100: 99 | W100: =Q56 -> 419.3965786 | X100: 100.585709 | Z100: =IF(Z99<INT($V$2), Z99+Eingabe!$B$3,"") -> 99 | AA100: 77.2098866
C101: 145 | E101: 0.2808988764 | F101: 0.22067 | Q101: 589.819182 | R101: 48.88180145 | S101: 21540.20468 | U101: 100 | W101: =Q57 -> 423.1837476 | X101: 98.68289177 | Z101: =IF(Z100<INT($V$2), Z100+Eingabe!$B$3,"") -> 100 | AA101: 78.83162475
C102: 146 | E102: 0.2837078652 | F102: 0.21735 | Q102: 593.606351 | R102: 48.14637035 | S102: 21357.86624 | U102: 101 | W102: =Q58 -> 426.9709166 | X102: 96.82437763 | Z102: =IF(Z101<INT($V$2), Z101+Eingabe!$B$3,"") -> 101 | AA102: 80.48097315
C103: 147 | E103: 0.2865168539 | F103: 0.21406 | Q103: 597.39352 | R103: 47.41758471 | S103: 21178.28783 | U103: 102 | W103: =Q59 -> 430.7580855 | X103: 95.01016658 | Z103: =IF(Z102<INT($V$2), Z102+Eingabe!$B$3,"") -> 102 | AA103: 82.2146585
C104: 148 | E104: 0.2893258427 | F104: 0.21078 | Q104: 601.1806889 | R104: 46.69101422 | S104: 21001.46107 | U104: 103 | W104: =Q60 -> 434.5452545 | X104: 93.23582829 | Z104: =IF(Z103<INT($V$2), Z103+Eingabe!$B$3,"") -> 103 | AA104: 83.94834384
C105: 149 | E105: 0.2921348315 | F105: 0.20754 | Q105: 604.9678579 | R105: 45.97330436 | S105: 20827.3524 | U105: 104 | W105: =Q61 -> 438.3324234 | X105: 91.50357793 | Z105: =IF(Z104<INT($V$2), Z104+Eingabe!$B$3,"") -> 104 | AA105: 85.68202918
C106: 150 | E106: 0.2949438202 | F106: 0.20433 | Q106: 608.7550268 | R106: 45.26223995 | S106: 20655.93665 | U106: 105 | W106: =Q62 -> 442.1195924 | X106: 89.81120034 | Z106: =IF(Z105<INT($V$2), Z105+Eingabe!$B$3,"") -> 105 | AA106: 87.41571453
C107: 151 | E107: 0.297752809 | F107: 0.20116 | Q107: 612.5421958 | R107: 44.56003616 | S107: 20487.18027 | U107: 106 | W107: =Q63 -> 445.9067614 | X107: 88.15648036 | Z107: =IF(Z106<INT($V$2), Z106+Eingabe!$B$3,"") -> 106 | AA107: 89.18113942
C108: 152 | E108: 0.3005617978 | F108: 0.19803 | Q108: 616.3293648 | R108: 43.86669298 | S108: 20321.04969 | U108: 107 | W108: =Q64 -> 449.6939303 | X108: 86.539418 | Z108: =IF(Z107<INT($V$2), Z107+Eingabe!$B$3,"") -> 107 | AA108: 90.98553668
C109: 153 | E109: 0.3033707865 | F109: 0.19494 | Q109: 620.1165337 | R109: 43.18221042 | S109: 20157.51136 | U109: 108 | W109: =Q65 -> 453.4810993 | X109: 84.96001326 | Z109: =IF(Z108<INT($V$2), Z108+Eingabe!$B$3,"") -> 108 | AA109: 92.78993394
C110: 154 | E110: 0.3061797753 | F110: 0.1919 | Q110: 623.9037027 | R110: 42.50880363 | S110: 19996.52334 | U110: 109 | W110: =Q66 -> 457.2682683 | X110: 83.41826614 | Z110: =IF(Z109<INT($V$2), Z109+Eingabe!$B$3,"") -> 109 | AA110: 94.5943312
C111: 155 | E111: 0.308988764 | F111: 0.18891 | Q111: 627.6908717 | R111: 41.84647261 | S111: 19838.04368 | U111: 110 | W111: =Q67 -> 461.0554372 | X111: 81.91417663 | Z111: =IF(Z110<INT($V$2), Z110+Eingabe!$B$3,"") -> 110 | AA111: 96.39872846
C112: 156 | E112: 0.3117977528 | F112: 0.18598 | Q112: 631.4780406 | R112: 41.19743251 | S112: 19682.02204 | U112: 111 | W112: =Q68 -> 464.8426062 | X112: 80.44774474 | Z112: =IF(Z111<INT($V$2), Z111+Eingabe!$B$3,"") -> 111 | AA112: 98.24879777
C113: 157 | E113: 0.3146067416 | F113: 0.1831 | Q113: 635.2652096 | R113: 40.55946819 | S113: 19528.41648 | U113: 112 | W113: =Q69 -> 468.6297752 | X113: 79.01897046 | Z113: =IF(Z112<INT($V$2), Z112+Eingabe!$B$3,"") -> 112 | AA113: 100.1233434
C114: 158 | E114: 0.3174157303 | F114: 0.18028 | Q114: 639.0523786 | R114: 39.93479478 | S114: 19377.17666 | U114: 113 | W114: =Q70 -> 472.4169441 | X114: 77.6278538 | Z114: =IF(Z113<INT($V$2), Z113+Eingabe!$B$3,"") -> 113 | AA114: 101.997889
C115: 159 | E115: 0.3202247191 | F115: 0.17752 | Q115: 642.8395475 | R115: 39.3234123 | S115: 19228.25226 | U115: 114 | W115: =Q71 -> 476.2041131 | X115: 76.27660992 | Z115: =IF(Z114<INT($V$2), Z114+Eingabe!$B$3,"") -> 114 | AA115: 103.8724346
C116: 160 | E116: 0.3230337079 | F116: 0.17483 | Q116: 646.6267165 | R116: 38.7275359 | S116: 19081.58454 | U116: 115 | W116: =Q72 -> 479.9912821 | X116: 74.96302364 | Z116: =IF(Z115<INT($V$2), Z115+Eingabe!$B$3,"") -> 115 | AA116: 105.7469802
C117: 161 | E117: 0.3258426966 | F117: 0.1722 | Q117: 650.4138855 | R117: 38.14495042 | S117: 18937.12316 | U117: 116 | W117: =Q73 -> 483.778451 | X117: 73.68487983 | Z117: =IF(Z116<INT($V$2), Z116+Eingabe!$B$3,"") -> 116 | AA117: 107.6855057
C118: 162 | E118: 0.3286516854 | F118: 0.16961 | Q118: 654.2010544 | R118: 37.57122556 | S118: 18794.83458 | U118: 117 | W118: =Q74 -> 487.56562 | X118: 72.44217849 | Z118: =IF(Z117<INT($V$2), Z117+Eingabe!$B$3,"") -> 117 | AA118: 109.6350307
C119: 163 | E119: 0.3314606742 | F119: 0.16707 | Q119: 657.9882234 | R119: 37.00857646 | S119: 18654.67685 | U119: 118 | W119: =Q75 -> 491.3527889 | X119: 71.23713476 | Z119: =IF(Z118<INT($V$2), Z118+Eingabe!$B$3,"") -> 118 | AA119: 111.5845557
C120: 164 | E120: 0.3342696629 | F120: 0.16456 | Q120: 661.7753923 | R120: 36.45257283 | S120: 18516.6248 | U120: 119 | W120: =Q76 -> 495.1399579 | X120: 70.06531834 | Z120: =IF(Z119<INT($V$2), Z119+Eingabe!$B$3,"") -> 119 | AA120: 113.5340807
C121: 165 | E121: 0.3370786517 | F121: 0.16207 | Q121: 665.5625613 | R121: 35.9009995 | S121: 18380.66165 | U121: 120 | W121: =Q77 -> 498.9271269 | X121: 68.93115953 | Z121: =IF(Z120<INT($V$2), Z120+Eingabe!$B$3,"") -> 120 | AA121: 115.4858816
C122: 166 | E122: 0.3398876404 | F122: 0.1596 | Q122: 669.3497303 | R122: 35.35385649 | S122: 18246.77062 | U122: 121 | W122: =Q78 -> 502.7142958 | X122: 67.8368735 | Z122: =IF(Z121<INT($V$2), Z121+Eingabe!$B$3,"") -> 121 | AA122: 117.4763997
C123: 167 | E123: 0.3426966292 | F123: 0.15716 | Q123: 673.1368992 | R123: 34.81335893 | S123: 18114.92655 | U123: 122 | W123: =Q79 -> 506.5014648 | X123: 66.77802993 | Z123: =IF(Z122<INT($V$2), Z122+Eingabe!$B$3,"") -> 122 | AA123: 119.4669177
C124: 168 | E124: 0.345505618 | F124: 0.15474 | Q124: 676.9240682 | R124: 34.27729168 | S124: 17985.11265 | U124: 123 | W124: =Q80 -> 510.2886338 | X124: 65.75684397 | Z124: =IF(Z123<INT($V$2), Z123+Eingabe!$B$3,"") -> 123 | AA124: 121.4574358
C125: 169 | E125: 0.3483146067 | F125: 0.15235 | Q125: 680.7112372 | R125: 33.7478699 | S125: 17857.30377 | U125: 124 | W125: =Q81 -> 514.0758027 | X125: 64.77331563 | Z125: =IF(Z124<INT($V$2), Z124+Eingabe!$B$3,"") -> 124 | AA125: 123.4479538
C126: 170 | E126: 0.3511235955 | F126: 0.14999 | Q126: 684.4984061 | R126: 33.22509357 | S126: 17731.47472 | U126: 125 | W126: =Q82 -> 517.8629717 | X126: 63.8230146 | Z126: =IF(Z125<INT($V$2), Z125+Eingabe!$B$3,"") -> 125 | AA126: 125.4384411
C127: 171 | E127: 0.3539325843 | F127: 0.14767 | Q127: 688.2855751 | R127: 32.71117787 | S127: 17607.59197 | U127: 126 | W127: =Q83 -> 521.6501407 | X127: 62.90594088 | Z127: =IF(Z126<INT($V$2), Z126+Eingabe!$B$3,"") -> 126 | AA127: 127.4288395
C128: 172 | E128: 0.356741573 | F128: 0.14539 | Q128: 692.0727441 | R128: 32.20612277 | S128: 17485.62194 | U128: 127 | W128: =Q84 -> 525.4373096 | X128: 62.01766416 | Z128: =IF(Z127<INT($V$2), Z127+Eingabe!$B$3,"") -> 127 | AA128: 129.419238
C129: 173 | E129: 0.3595505618 | F129: 0.14316 | Q129: 695.859913 | R129: 31.71214345 | S129: 17365.52269 | U129: 128 | W129: =Q85 -> 529.2244786 | X129: 61.15375414 | Z129: =IF(Z128<INT($V$2), Z128+Eingabe!$B$3,"") -> 128 | AA129: 131.4096365
C130: 174 | E130: 0.3623595506 | F130: 0.14097 | Q130: 699.647082 | R130: =F130*$I$1 -> 31.22702474 | S130: 17247.26067 | U130: 129 | W130: =Q86 -> 533.0116476 | X130: 60.31199565 | Z130: =IF(Z129<INT($V$2), Z129+Eingabe!$B$3,"") -> 129 | AA130: 133.4000349
C131: =C130+1 -> 175 | E131: =E130+1/356 -> 0.3651685393 | F131: 0.13882 | Q131: =Q130+($Q$357-$Q$1)/356 -> 703.434251 | R131: 30.75076665 | S131: =S130-(R131*(Q131-Q130)) -> 17130.80232 | U131: =U130+1 -> 130 | W131: =Q87 -> 536.7988165 | X131: 59.48574324 | Z131: =IF(Z130<INT($V$2), Z130+Eingabe!$B$3,"") -> 130 | AA131: =IF(ISNUMBER(Z131),FORECAST(Z131,OFFSET($X$1:$X$401,MATCH(Z131,$W$1:$W$401,1)-1,0,2),OFFSET($W$1:$W$401,MATCH(Z131,$W$1:$W$401,1)-1,0,2)),"") -> 135.3765786
C132: 176 | E132: 0.3679775281 | F132: 0.13671 | Q132: 707.2214199 | R132: 30.28336917 | S132: 17016.11409 | U132: 131 | W132: =Q88 -> 540.5859855 | X132: 58.67499691 | Z132: =IF(Z131<INT($V$2), Z131+Eingabe!$B$3,"") -> 131 | AA132: 137.3368553
C133: 177 | E133: 0.3707865169 | F133: 0.13464 | Q133: 711.0085889 | R133: 29.82483231 | S133: 16903.16241 | U133: 132 | W133: =Q89 -> 544.3731544 | X133: 57.8775415 | Z133: =IF(Z132<INT($V$2), Z132+Eingabe!$B$3,"") -> 132 | AA133: 139.297132
C134: 178 | E134: 0.3735955056 | F134: 0.1326 | Q134: 714.7957578 | R134: 29.37294092 | S134: 16791.92212 | U134: 133 | W134: =Q90 -> 548.1603234 | X134: 57.09116186 | Z134: =IF(Z133<INT($V$2), Z133+Eingabe!$B$3,"") -> 133 | AA134: 141.2574088
C135: 179 | E135: 0.3764044944 | F135: 0.13061 | Q135: 718.5829268 | R135: 28.93212529 | S135: 16682.35127 | U135: 134 | W135: =Q91 -> 551.9474924 | X135: 56.31364283 | Z135: =IF(Z134<INT($V$2), Z134+Eingabe!$B$3,"") -> 134 | AA135: 143.2176855
C136: 180 | E136: 0.3792134831 | F136: 0.12865 | Q136: 722.3700958 | R136: 28.49795512 | S136: 16574.4247 | U136: 135 | W136: =Q92 -> 555.7346613 | X136: 55.54719958 | Z136: =IF(Z135<INT($V$2), Z135+Eingabe!$B$3,"") -> 135 | AA136: 145.1558303
C137: 181 | E137: 0.3820224719 | F137: 0.12673 | Q137: 726.1572647 | R137: 28.07264557 | S137: 16468.10885 | U137: 136 | W137: =Q93 -> 559.5218303 | X137: 54.78961694 | Z137: =IF(Z136<INT($V$2), Z136+Eingabe!$B$3,"") -> 136 | AA137: 147.0826842
C138: 182 | E138: 0.3848314607 | F138: 0.12486 | Q138: 729.9444337 | R138: 27.65841178 | S138: 16363.36177 | U138: 137 | W138: =Q94 -> 563.3089993 | X138: 54.04089491 | Z138: =IF(Z137<INT($V$2), Z137+Eingabe!$B$3,"") -> 137 | AA138: 149.0095382
C139: 183 | E139: 0.3876404494 | F139: 0.12302 | Q139: 733.7316027 | R139: 27.25082346 | S139: 16260.1583 | U139: 138 | W139: =Q95 -> 567.0961682 | X139: 53.29881835 | Z139: =IF(Z138<INT($V$2), Z138+Eingabe!$B$3,"") -> 138 | AA139: 150.9363921
C140: 184 | E140: 0.3904494382 | F140: 0.12123 | Q140: 737.5187716 | R140: 26.85431091 | S140: 16158.45648 | U140: 139 | W140: =Q96 -> 570.8833372 | X140: 52.5611721 | Z140: =IF(Z139<INT($V$2), Z139+Eingabe!$B$3,"") -> 139 | AA140: 152.8632461
C141: 185 | E141: 0.393258427 | F141: 0.11948 | Q141: 741.3059406 | R141: 26.46665898 | S141: 16058.22277 | U141: 140 | W141: =Q97 -> 574.6705062 | X141: 51.825741 | Z141: =IF(Z140<INT($V$2), Z140+Eingabe!$B$3,"") -> 140 | AA141: 154.7545956
C142: 186 | E142: 0.3960674157 | F142: 0.11777 | Q142: 745.0931096 | R142: 26.08786766 | S142: 15959.42361 | U142: 141 | W142: =Q98 -> 578.4576751 | X142: 51.0903099 | Z142: =IF(Z141<INT($V$2), Z141+Eingabe!$B$3,"") -> 141 | AA142: 156.6403756
C143: 187 | E143: 0.3988764045 | F143: 0.11608 | Q143: 748.8802785 | R143: 25.71350665 | S143: 15862.04222 | U143: 142 | W143: =Q99 -> 582.2448441 | X143: 50.3548788 | Z143: =IF(Z142<INT($V$2), Z142+Eingabe!$B$3,"") -> 142 | AA143: 158.5261555
C144: 188 | E144: 0.4016853933 | F144: 0.11442 | Q144: 752.6674475 | R144: 25.3457911 | S144: 15766.05342 | U144: 143 | W144: =Q100 -> 586.0320131 | X144: 49.61723255 | Z144: =IF(Z143<INT($V$2), Z143+Eingabe!$B$3,"") -> 143 | AA144: 160.4119355
C145: 189 | E145: 0.404494382 | F145: 0.11278 | Q145: 756.4546165 | R145: 24.98250586 | S145: 15671.44045 | U145: 144 | W145: =Q101 -> 589.819182 | X145: 48.88180145 | Z145: =IF(Z144<INT($V$2), Z144+Eingabe!$B$3,"") -> 144 | AA145: 162.2923229
C146: 190 | E146: 0.4073033708 | F146: 0.11117 | Q146: 760.2417854 | R146: 24.62586608 | S146: 15578.17814 | U146: 145 | W146: =Q102 -> 593.606351 | X146: 48.14637035 | Z146: =IF(Z145<INT($V$2), Z145+Eingabe!$B$3,"") -> 145 | AA146: 164.0971629
C147: 191 | E147: 0.4101123596 | F147: 0.10957 | Q147: 764.0289544 | R147: 24.27144145 | S147: 15486.25809 | U147: 146 | W147: =Q103 -> 597.39352 | X147: 47.41758471 | Z147: =IF(Z146<INT($V$2), Z146+Eingabe!$B$3,"") -> 146 | AA147: 165.902003
C148: 192 | E148: 0.4129213483 | F148: 0.108 | Q148: 767.8161233 | R148: 23.92366228 | S148: 15395.65514 | U148: 147 | W148: =Q104 -> 601.1806889 | X148: 46.69101422 | Z148: =IF(Z147<INT($V$2), Z147+Eingabe!$B$3,"") -> 147 | AA148: 167.706843
C149: 193 | E149: 0.4157303371 | F149: 0.10645 | Q149: 771.6032923 | R149: 23.58031343 | S149: 15306.3525 | U149: 148 | W149: =Q105 -> 604.9678579 | X149: 45.97330436 | Z149: =IF(Z148<INT($V$2), Z148+Eingabe!$B$3,"") -> 148 | AA149: 169.511683
C150: 194 | E150: 0.4185393258 | F150: 0.10492 | Q150: 775.3904613 | R150: 23.24139488 | S150: 15218.33341 | U150: 149 | W150: =Q106 -> 608.7550268 | X150: 45.26223995 | Z150: =IF(Z149<INT($V$2), Z149+Eingabe!$B$3,"") -> 149 | AA150: 171.2857771
C151: 195 | E151: 0.4213483146 | F151: 0.10341 | Q151: 779.1776302 | R151: 22.90690664 | S151: 15131.58109 | U151: 150 | W151: =Q107 -> 612.5421958 | X151: 44.56003616 | Z151: =IF(Z150<INT($V$2), Z150+Eingabe!$B$3,"") -> 150 | AA151: 172.9762538
C152: 196 | E152: 0.4241573034 | F152: 0.10191 | Q152: 782.9647992 | R152: 22.57463355 | S152: 15046.08714 | U152: 151 | W152: =Q108 -> 616.3293648 | X152: 43.86669298 | Z152: =IF(Z151<INT($V$2), Z151+Eingabe!$B$3,"") -> 151 | AA152: 174.6667305
C153: 197 | E153: 0.4269662921 | F153: 0.10042 | Q153: 786.7519682 | R153: 22.24457562 | S153: 14961.84317 | U153: 152 | W153: =Q109 -> 620.1165337 | X153: 43.18221042 | Z153: =IF(Z152<INT($V$2), Z152+Eingabe!$B$3,"") -> 152 | AA153: 176.3572072
C154: 198 | E154: 0.4297752809 | F154: 0.098939 | Q154: 790.5391371 | R154: 21.91651132 | S154: 14878.84164 | U154: 153 | W154: =Q110 -> 623.9037027 | X154: 42.50880363 | Z154: =IF(Z153<INT($V$2), Z153+Eingabe!$B$3,"") -> 153 | AA154: 178.0476839
C155: 199 | E155: 0.4325842697 | F155: 0.097478 | Q155: 794.3263061 | R155: 21.59287733 | S155: 14797.06576 | U155: 154 | W155: =Q111 -> 627.6908717 | X155: 41.84647261 | Z155: =IF(Z154<INT($V$2), Z154+Eingabe!$B$3,"") -> 154 | AA155: 179.670441
C156: 200 | E156: 0.4353932584 | F156: 0.096043 | Q156: 798.1134751 | R156: 21.27500275 | S156: 14716.49373 | U156: 155 | W156: =Q112 -> 631.4780406 | X156: 41.19743251 | Z156: =IF(Z155<INT($V$2), Z155+Eingabe!$B$3,"") -> 155 | AA156: 181.2171593
C157: 201 | E157: 0.4382022472 | F157: 0.094639 | Q157: 801.900644 | R157: 20.96399514 | S157: 14637.09954 | U157: 156 | W157: =Q113 -> 635.2652096 | X157: 40.55946819 | Z157: =IF(Z156<INT($V$2), Z156+Eingabe!$B$3,"") -> 156 | AA157: 182.7638776
C158: 202 | E158: 0.441011236 | F158: 0.093272 | Q158: 805.687813 | R158: 20.6611836 | S158: 14558.85215 | U158: 157 | W158: =Q114 -> 639.0523786 | X158: 39.93479478 | Z158: =IF(Z157<INT($V$2), Z157+Eingabe!$B$3,"") -> 157 | AA158: 184.3105959
C159: 203 | E159: 0.4438202247 | F159: 0.091945 | Q159: 809.474982 | R159: 20.36723267 | S159: 14481.718 | U159: 158 | W159: =Q115 -> 642.8395475 | X159: 39.3234123 | Z159: =IF(Z158<INT($V$2), Z158+Eingabe!$B$3,"") -> 158 | AA159: 185.8573142
C160: 204 | E160: 0.4466292135 | F160: 0.090661 | Q160: 813.2621509 | R160: 20.08280691 | S160: 14405.66102 | U160: 159 | W160: =Q116 -> 646.6267165 | X160: 38.7275359 | Z160: =IF(Z159<INT($V$2), Z159+Eingabe!$B$3,"") -> 159 | AA160: 187.3156461
C161: 205 | E161: 0.4494382022 | F161: 0.089423 | Q161: 817.0493199 | R161: 19.80857086 | S161: 14330.64261 | U161: 160 | W161: =Q117 -> 650.4138855 | X161: 38.14495042 | Z161: =IF(Z160<INT($V$2), Z160+Eingabe!$B$3,"") -> 160 | AA161: 188.7310883
C162: 206 | E162: 0.452247191 | F162: 0.08823 | Q162: 820.8364889 | R162: 19.54430299 | S162: 14256.62503 | U162: 161 | W162: =Q118 -> 654.2010544 | X162: 37.57122556 | Z162: =IF(Z161<INT($V$2), Z161+Eingabe!$B$3,"") -> 161 | AA162: 190.1465304
C163: 207 | E163: 0.4550561798 | F163: 0.087075 | Q163: 824.6236578 | R163: 19.28845272 | S163: 14183.5764 | U163: 162 | W163: =Q119 -> 657.9882234 | X163: 37.00857646 | Z163: =IF(Z162<INT($V$2), Z162+Eingabe!$B$3,"") -> 162 | AA163: 191.5619726
C164: 208 | E164: 0.4578651685 | F164: 0.085952 | Q164: 828.4108268 | R164: 19.03969093 | S164: 14111.46988 | U164: 163 | W164: =Q120 -> 661.7753923 | X164: 36.45257283 | Z164: =IF(Z163<INT($V$2), Z163+Eingabe!$B$3,"") -> 163 | AA164: 192.9774148
C165: 209 | E165: 0.4606741573 | F165: 0.084854 | Q165: 832.1979957 | R165: 18.79646703 | S165: 14040.28448 | U165: 164 | W165: =Q121 -> 665.5625613 | X165: 35.9009995 | Z165: =IF(Z164<INT($V$2), Z164+Eingabe!$B$3,"") -> 164 | AA165: 194.2638225
C166: 210 | E166: 0.4634831461 | F166: 0.083777 | Q166: 835.9851647 | R166: 18.55789496 | S166: 13970.0026 | U166: 165 | W166: =Q122 -> 669.3497303 | X166: 35.35385649 | Z166: =IF(Z165<INT($V$2), Z165+Eingabe!$B$3,"") -> 165 | AA166: 195.5318821
C167: 211 | E167: 0.4662921348 | F167: 0.082717 | Q167: 839.7723337 | R167: 18.32308864 | S167: 13900.60996 | U167: 166 | W167: =Q123 -> 673.1368992 | X167: 34.81335893 | Z167: =IF(Z166<INT($V$2), Z166+Eingabe!$B$3,"") -> 166 | AA167: 196.7999416
C168: 212 | E168: 0.4691011236 | F168: 0.081672 | Q168: 843.5595026 | R168: 18.09160506 | S168: 13832.094 | U168: 167 | W168: =Q124 -> 676.9240682 | X168: 34.27729168 | Z168: =IF(Z167<INT($V$2), Z167+Eingabe!$B$3,"") -> 167 | AA168: 198.0680012
C169: 213 | E169: 0.4719101124 | F169: 0.080637 | Q169: 847.3466716 | R169: 17.86233663 | S169: 13764.44631 | U169: 168 | W169: =Q125 -> 680.7112372 | X169: 33.7478699 | Z169: =IF(Z168<INT($V$2), Z168+Eingabe!$B$3,"") -> 168 | AA169: 199.3238539
C170: 214 | E170: 0.4747191011 | F170: 0.079612 | Q170: 851.1338406 | R170: 17.63528335 | S170: 13697.65851 | U170: 169 | W170: =Q126 -> 684.4984061 | X170: 33.22509357 | Z170: =IF(Z169<INT($V$2), Z169+Eingabe!$B$3,"") -> 169 | AA170: 200.4348658
C171: 215 | E171: 0.4775280899 | F171: 0.078595 | Q171: 854.9210095 | R171: 17.4100022 | S171: 13631.72389 | U171: 170 | W171: =Q127 -> 688.2855751 | X171: 32.71117787 | Z171: =IF(Z170<INT($V$2), Z170+Eingabe!$B$3,"") -> 170 | AA171: 201.5458777
C172: 216 | E172: 0.4803370787 | F172: 0.077585 | Q172: 858.7081785 | R172: 17.18627165 | S172: 13566.63658 | U172: 171 | W172: =Q128 -> 692.0727441 | X172: 32.20612277 | Z172: =IF(Z171<INT($V$2), Z171+Eingabe!$B$3,"") -> 171 | AA172: 202.6568896
C173: 217 | E173: 0.4831460674 | F173: 0.076582 | Q173: 862.4953475 | R173: 16.96409171 | S173: 13502.3907 | U173: 172 | W173: =Q129 -> 695.859913 | X173: 31.71214345 | Z173: =IF(Z172<INT($V$2), Z172+Eingabe!$B$3,"") -> 172 | AA173: 203.7679015
C174: 218 | E174: 0.4859550562 | F174: 0.075582 | Q174: 866.2825164 | R174: 16.74257632 | S174: 13438.98373 | U174: 173 | W174: =Q130 -> 699.647082 | X174: 31.22702474 | Z174: =IF(Z173<INT($V$2), Z173+Eingabe!$B$3,"") -> 173 | AA174: 204.8284096
C175: 219 | E175: 0.4887640449 | F175: 0.074583 | Q175: 870.0696854 | R175: 16.52128245 | S175: 13376.41484 | U175: 174 | W175: =Q131 -> 703.434251 | X175: 30.75076665 | Z175: =IF(Z174<INT($V$2), Z174+Eingabe!$B$3,"") -> 174 | AA175: 205.7590172
C176: 220 | E176: 0.4915730337 | F176: 0.073582 | Q176: 873.8568544 | R176: 16.29954554 | S176: 13314.68571 | U176: 175 | W176: =Q132 -> 707.2214199 | X176: 30.28336917 | Z176: =IF(Z175<INT($V$2), Z175+Eingabe!$B$3,"") -> 175 | AA176: 206.6896249
C177: 221 | E177: 0.4943820225 | F177: 0.07258 | Q177: 877.6440233 | R177: 16.07758712 | S177: 13253.79717 | U177: 176 | W177: =Q133 -> 711.0085889 | X177: 29.82483231 | Z177: =IF(Z176<INT($V$2), Z176+Eingabe!$B$3,"") -> 176 | AA177: 207.6202325
C178: 222 | E178: 0.4971910112 | F178: 0.07158 | Q178: 881.4311923 | R178: 15.85607172 | S178: 13193.74755 | U178: 177 | W178: =Q134 -> 714.7957578 | X178: 29.37294092 | Z178: =IF(Z177<INT($V$2), Z177+Eingabe!$B$3,"") -> 177 | AA178: 208.5508402
C179: 223 | E179: 0.5 | F179: 0.070584 | Q179: 885.2183612 | R179: 15.63544239 | S179: 13134.53349 | U179: 178 | W179: =Q135 -> 718.5829268 | X179: 28.93212529 | Z179: =IF(Z178<INT($V$2), Z178+Eingabe!$B$3,"") -> 178 | AA179: 209.4037829
C180: 224 | E180: 0.5028089888 | F180: 0.069598 | Q180: 889.0055302 | R180: 15.41702822 | S180: 13076.1466 | U180: 179 | W180: =Q136 -> 722.3700958 | X180: 28.49795512 | Z180: =IF(Z179<INT($V$2), Z179+Eingabe!$B$3,"") -> 179 | AA180: 210.1733164
C181: 225 | E181: 0.5056179775 | F181: 0.068626 | Q181: 892.7926992 | R181: 15.20171526 | S181: 13018.57513 | U181: 180 | W181: =Q137 -> 726.1572647 | X181: 28.07264557 | Z181: =IF(Z180<INT($V$2), Z180+Eingabe!$B$3,"") -> 180 | AA181: 210.9428499
C182: 226 | E182: 0.5084269663 | F182: 0.067671 | Q182: 896.5798681 | R182: 14.99016806 | S182: 12961.80483 | U182: 181 | W182: =Q138 -> 729.9444337 | X182: 27.65841178 | Z182: =IF(Z181<INT($V$2), Z181+Eingabe!$B$3,"") -> 181 | AA182: 211.7123835
C183: 227 | E183: 0.5112359551 | F183: 0.066735 | Q183: 900.3670371 | R183: 14.78282965 | S183: 12905.81976 | U183: 182 | W183: =Q139 -> 733.7316027 | X183: 27.25082346 | Z183: =IF(Z182<INT($V$2), Z182+Eingabe!$B$3,"") -> 182 | AA183: 212.481917
C184: 228 | E184: 0.5140449438 | F184: 0.065819 | Q184: 904.1542061 | R184: 14.57992155 | S184: 12850.60313 | U184: 183 | W184: =Q140 -> 737.5187716 | X184: 26.85431091 | Z184: =IF(Z183<INT($V$2), Z183+Eingabe!$B$3,"") -> 183 | AA184: 213.1461733
C185: 229 | E185: 0.5168539326 | F185: 0.064924 | Q185: 907.941375 | R185: 14.38166528 | S185: 12796.13734 | U185: 184 | W185: =Q141 -> 741.3059406 | X185: 26.46665898 | Z185: =IF(Z184<INT($V$2), Z184+Eingabe!$B$3,"") -> 184 | AA185: 213.7618805
C186: 230 | E186: 0.5196629213 | F186: 0.064048 | Q186: 911.728544 | R186: 14.1876178 | S186: 12742.40643 | U186: 185 | W186: =Q142 -> 745.0931096 | X186: 26.08786766 | Z186: =IF(Z185<INT($V$2), Z185+Eingabe!$B$3,"") -> 185 | AA186: 214.3775876
C187: 231 | E187: 0.5224719101 | F187: 0.063192 | Q187: 915.515713 | R187: 13.99800062 | S187: 12689.39364 | U187: 186 | W187: =Q143 -> 748.8802785 | X187: 25.71350665 | Z187: =IF(Z186<INT($V$2), Z186+Eingabe!$B$3,"") -> 186 | AA187: 214.9932948
C188: 232 | E188: 0.5252808989 | F188: 0.062354 | Q188: 919.3028819 | R188: 13.81237072 | S188: 12637.08386 | U188: 187 | W188: =Q144 -> 752.6674475 | X188: 25.3457911 | Z188: =IF(Z187<INT($V$2), Z187+Eingabe!$B$3,"") -> 187 | AA188: 215.609002
C189: 233 | E189: 0.5280898876 | F189: 0.061536 | Q189: 923.0900509 | R189: 13.63117113 | S189: 12585.46031 | U189: 188 | W189: =Q145 -> 756.4546165 | X189: 24.98250586 | Z189: =IF(Z188<INT($V$2), Z188+Eingabe!$B$3,"") -> 188 | AA189: 216.107605
C190: 234 | E190: 0.5308988764 | F190: 0.060739 | Q190: 926.8772199 | R190: 13.45462337 | S190: 12534.50537 | U190: 189 | W190: =Q146 -> 760.2417854 | X190: 24.62586608 | Z190: =IF(Z189<INT($V$2), Z189+Eingabe!$B$3,"") -> 189 | AA190: 216.5912314
C191: 235 | E191: 0.5337078652 | F191: 0.059964 | Q191: 930.6643888 | R191: 13.28294894 | S191: 12484.2006 | U191: 190 | W191: =Q147 -> 764.0289544 | X191: 24.27144145 | Z191: =IF(Z190<INT($V$2), Z190+Eingabe!$B$3,"") -> 190 | AA191: 217.0748579
C192: 236 | E192: 0.5365168539 | F192: 0.059214 | Q192: 934.4515578 | R192: 13.11681239 | S192: 12434.52502 | U192: 191 | W192: =Q148 -> 767.8161233 | X192: 23.92366228 | Z192: =IF(Z191<INT($V$2), Z191+Eingabe!$B$3,"") -> 191 | AA192: 217.5584843
C193: 237 | E193: 0.5393258427 | F193: 0.058495 | Q193: 938.2387267 | R193: 12.95754283 | S193: 12385.45261 | U193: 192 | W193: =Q149 -> 771.6032923 | X193: 23.58031343 | Z193: =IF(Z192<INT($V$2), Z192+Eingabe!$B$3,"") -> 192 | AA193: 218.0298055
C194: 238 | E194: 0.5421348315 | F194: 0.057805 | Q194: 942.0258957 | R194: =F194*$I$1 -> 12.80469721 | S194: 12336.95906 | U194: 193 | W194: =Q150 -> 775.3904613 | X194: 23.24139488 | Z194: =IF(Z193<INT($V$2), Z193+Eingabe!$B$3,"") -> 193 | AA194: 218.3749074
C195: =C194+1 -> 239 | E195: =E194+1/356 -> 0.5449438202 | F195: 0.057143 | Q195: =Q194+($Q$357-$Q$1)/356 -> 945.8130647 | R195: 12.65805402 | S195: =S194-(R195*(Q195-Q194)) -> 12289.02087 | U195: =U194+1 -> 194 | W195: =Q151 -> 779.1776302 | X195: 22.90690664 | Z195: =IF(Z194<INT($V$2), Z194+Eingabe!$B$3,"") -> 194 | AA195: =IF(ISNUMBER(Z195),FORECAST(Z195,OFFSET($X$1:$X$401,MATCH(Z195,$W$1:$W$401,1)-1,0,2),OFFSET($W$1:$W$401,MATCH(Z195,$W$1:$W$401,1)-1,0,2)),"") -> 218.7200094
C196: 240 | E196: 0.547752809 | F196: 0.056501 | Q196: 949.6002336 | R196: 12.51584114 | S196: 12241.62127 | U196: 195 | W196: =Q152 -> 782.9647992 | X196: 22.57463355 | Z196: =IF(Z195<INT($V$2), Z195+Eingabe!$B$3,"") -> 195 | AA196: 219.0651114
C197: 241 | E197: 0.5505617978 | F197: 0.055868 | Q197: 953.3874026 | R197: 12.37562189 | S197: 12194.7527 | U197: 196 | W197: =Q153 -> 786.7519682 | X197: 22.24457562 | Z197: =IF(Z196<INT($V$2), Z196+Eingabe!$B$3,"") -> 196 | AA197: 219.4102133
C198: 242 | E198: 0.5533707865 | F198: 0.055238 | Q198: 957.1745716 | R198: 12.2360672 | S198: 12148.41264 | U198: 197 | W198: =Q154 -> 790.5391371 | X198: 21.91651132 | Z198: =IF(Z197<INT($V$2), Z197+Eingabe!$B$3,"") -> 197 | AA198: 219.7201545
C199: 243 | E199: 0.5561797753 | F199: 0.054604 | Q199: 960.9617405 | R199: 12.09562644 | S199: 12102.60446 | U199: 198 | W199: =Q155 -> 794.3263061 | X199: 21.59287733 | Z199: =IF(Z198<INT($V$2), Z198+Eingabe!$B$3,"") -> 198 | AA199: 219.9444505
C200: 244 | E200: 0.558988764 | F200: 0.053965 | Q200: 964.7489095 | R200: 11.9540781 | S200: 12057.33235 | U200: 199 | W200: =Q156 -> 798.1134751 | X200: 21.27500275 | Z200: =IF(Z199<INT($V$2), Z199+Eingabe!$B$3,"") -> 199 | AA200: 220.1687466
... 2050 more rows

Sheet C3
A1: 0 | B1: 0 | D1: Teil2 | E1: 0 | F1: 1 | H1: Qmax | I1: =IF(Eingabe!B9=1,Eingabe!B10*(1+Eingabe!B6/100),Eingabe!B32) -> 254.7427002 | J1: 0 | K1: 0 | L1: =I2 -> 90000 | Q1: =I4 -> 183.5672049 | R1: =F1*$I$1 -> 254.7427002 | S1: =I3 -> 67500 | U1: 0 | V1: Kurve1+2 | W1: =J1 -> 0 | X1: =K1 -> 0 | Y1: Zeit soll | Z1: 0 | AA1: 0
A2: 0.02272727273 | B2: 0.02093217956 | E2: =E1+1/356 -> 0.002808988764 | F2: 0.9993458563 | H2: V_100 | I2: =Eingabe!B2 -> 90000 | J2: =$J$45/44+J1 -> 4.171981928 | K2: =B2*$I$1 -> 5.332319942 | L2: =L1-(K2*(J2-J1)) -> 89977.75366 | Q2: =Q1+($Q$357-$Q$1)/356 -> 186.8603952 | R2: =F2*$I$1 -> 254.5760619 | S2: =S1-(R2*(Q2-Q1)) -> 66661.63257 | U2: =U1+1 -> 1 | V2: =MAX(W:W) -> 1355.942969 | W2: =J2 -> 4.171981928 | X2: 5.332319942 | Z2: =IF(Z1<INT($V$2), Z1+Eingabe!$B$3,"") -> 1 | AA2: =IF(ISNUMBER(Z2),FORECAST(Z2,OFFSET($X$1:$X$401,MATCH(Z2,$W$1:$W$401,1)-1,0,2),OFFSET($W$1:$W$401,MATCH(Z2,$W$1:$W$401,1)-1,0,2)),"") -> 1.278126328
A3: 0.04545454545 | B3: 0.0371420594 | E3: =E2+1/356 -> 0.005617977528 | F3: 0.9972613645 | H3: V_75 | I3: =I2*0.75 -> 67500 | J3: =$J$45/44+J2 -> 8.343963857 | K3: 9.461668505 | L3: =L2-(K3*(J3-J2)) -> 89938.27975 | Q3: =Q2+($Q$357-$Q$1)/356 -> 190.1535855 | R3: 254.0450528 | S3: =S2-(R3*(Q3-Q2)) -> 65825.01385 | U3: =U2+1 -> 2 | W3: 8.343963857 | X3: 9.461668505 | Z3: =IF(Z2<INT($V$2), Z2+Eingabe!$B$3,"") -> 2 | AA3: =IF(ISNUMBER(Z3),FORECAST(Z3,OFFSET($X$1:$X$401,MATCH(Z3,$W$1:$W$401,1)-1,0,2),OFFSET($W$1:$W$401,MATCH(Z3,$W$1:$W$401,1)-1,0,2)),"") -> 2.556252656
A4: 0.06818181818 | B4: 0.04511451171 | E4: 0.008426966292 | F4: 0.9937552244 | H4: t_Qmax | I4: 183.5672049 | J4: 12.51594579 | K4: 11.49259253 | L4: 89890.33286 | Q4: 193.4467759 | R4: 253.1518892 | S4: 64991.3365 | U4: 3 | W4: 12.51594579 | X4: 11.49259253 | Z4: =IF(Z3<INT($V$2), Z3+Eingabe!$B$3,"") -> 3 | AA4: 3.834378983
A5: 0.09090909091 | B5: 0.04925061881 | E5: 0.01123595506 | F5: 0.989272258 | H5: V_ist75 | I5: =L45 -> 67500 | J5: 16.68792771 | K5: 12.54623563 | L5: 89837.99019 | Q5: 196.7399662 | R5: 252.0098863 | S5: 64161.41997 | U5: 4 | W5: 16.68792771 | X5: 12.54623563 | Z5: =IF(Z4<INT($V$2), Z4+Eingabe!$B$3,"") -> 4 | AA5: 5.112505311
A6: 0.1136363636 | B6: 0.05495962222 | E6: 0.01404494382 | F6: 0.9839083739 | H6: 0Bedingung | I6: =I3-I5 -> 0 | J6: 20.85990964 | K6: 14.00056257 | L6: 89779.5801 | Q6: 200.0331566 | R6: 250.643476 | S6: 63336.0033 | U6: 5 | W6: 20.85990964 | X6: 14.00056257 | Z6: =IF(Z5<INT($V$2), Z5+Eingabe!$B$3,"") -> 5 | AA6: 6.15187652
A7: 0.1363636364 | B7: 0.06216143017 | E7: 0.01685393258 | F7: 0.9777246548 | H7: Teil2 | J7: 25.03189157 | K7: 15.83517057 | L7: 89713.51605 | Q7: 203.3263469 | R7: 249.0682187 | S7: 62515.77424 | U7: 6 | W7: 25.03189157 | X7: 15.83517057 | Z7: =IF(Z6<INT($V$2), Z6+Eingabe!$B$3,"") -> 6 | AA7: 7.141657548
A8: 0.1590909091 | B8: 0.07099410348 | E8: 0.01966292135 | F8: 0.9706774964 | H8: V_10 (Rest) | I8: =I2*0.1 -> 9000 | J8: 29.2038735 | K8: 18.08522962 | L8: 89638.0648 | Q8: 206.6195373 | R8: 247.2730065 | S8: 61701.45716 | U8: 7 | W8: 29.2038735 | X8: 18.08522962 | Z8: =IF(Z7<INT($V$2), Z7+Eingabe!$B$3,"") -> 7 | AA8: 8.131438577
A9: 0.1818181818 | B9: 0.08133023059 | E9: 0.02247191011 | F9: 0.9629674682 | H9: t_Gesamt | I9: 1355.942969 | J9: 33.37585543 | K9: 20.71828255 | L9: 89551.6285 | Q9: 209.9127276 | R9: 245.3089331 | S9: 60893.60815 | U9: 8 | W9: 33.37585543 | X9: 20.71828255 | Z9: =IF(Z8<INT($V$2), Z8+Eingabe!$B$3,"") -> 8 | AA9: 9.121219605
A10: 0.2045454545 | B10: 0.09329647735 | E10: 0.02528089888 | F10: 0.9547167095 | H10: V_ist10 | I10: =S357 -> 9000.001 | J10: 37.54783736 | K10: 23.76659656 | L10: 89452.47469 | Q10: 213.205918 | R10: 243.2071125 | S10: 60092.68084 | U10: 9 | W10: 37.54783736 | X10: 23.76659656 | Z10: =IF(Z9<INT($V$2), Z9+Eingabe!$B$3,"") -> 9 | AA10: 9.781027407
A11: 0.2272727273 | B11: 0.1067663349 | E11: 0.02808988764 | F11: 0.946029855 | H11: 0Bedingung | I11: =I8-I10 -> -0.0009999998638 | J11: 41.71981928 | K11: 27.19794445 | L11: 89339.00536 | Q11: 216.4991083 | R11: 240.9941998 | S11: 59299.04107 | U11: 10 | W11: 41.71981928 | X11: 27.19794445 | Z11: =IF(Z10<INT($V$2), Z10+Eingabe!$B$3,"") -> 10 | AA11: 10.26782818
A12: 0.25 | B12: 0.1218601633 | E12: 0.0308988764 | F12: 0.9368458612 | J12: 45.89180121 | K12: 31.04298704 | L12: 89209.49457 | Q12: 219.7922987 | R12: 238.6546444 | S12: 58513.10589 | U12: 11 | W12: 45.89180121 | X12: 31.04298704 | Z12: =IF(Z11<INT($V$2), Z11+Eingabe!$B$3,"") -> 11 | AA12: 10.75462895
A13: 0.2727272727 | B13: 0.1384192704 | E13: 0.03370786517 | F13: 0.9272083456 | H13: Schrittweite1 | I13: =J2 -> 4.171981928 | J13: 50.06378314 | K13: 35.2612987 | L13: 89062.38507 | Q13: 223.085489 | R13: 236.1995576 | S13: 57735.25579 | U13: 12 | W13: 50.06378314 | X13: 35.2612987 | Z13: =IF(Z12<INT($V$2), Z12+Eingabe!$B$3,"") -> 12 | AA13: 11.24142973
A14: 0.2954545455 | B14: 0.1565282222 | E14: 0.03651685393 | F14: 0.9170300602 | H14: Schrittweite2 | I14: =Q2-Q1 -> 3.293190348 | J14: 54.23576507 | K14: 39.87442199 | L14: 88896.02971 | Q14: 226.3786794 | R14: 233.6067137 | S14: 56965.94442 | U14: 13 | W14: 54.23576507 | X14: 39.87442199 | Z14: =IF(Z13<INT($V$2), Z13+Eingabe!$B$3,"") -> 13 | AA14: 11.61484148
A15: 0.3181818182 | B15: 0.176030917 | E15: 0.0393258427 | F15: 0.9065029139 | H15: Schritt_max | I15: 44 | J15: 58.407747 | K15: 44.84259113 | L15: 88708.94723 | Q15: 229.6718697 | R15: 230.9250001 | S15: 56205.46443 | U15: 14 | W15: 58.407747 | X15: 44.84259113 | Z15: =IF(Z14<INT($V$2), Z14+Eingabe!$B$3,"") -> 14 | AA15: 11.86739365
A16: 0.3409090909 | B16: 0.197018907 | E16: 0.04213483146 | F16: 0.8955745892 | J16: 62.57972893 | K16: 50.18912837 | L16: 88499.55909 | Q16: 232.9650601 | R16: 228.1410891 | S16: 55454.1524 | U16: 15 | W16: 62.57972893 | X16: 50.18912837 | Z16: =IF(Z15<INT($V$2), Z15+Eingabe!$B$3,"") -> 15 | AA16: 12.11994582
A17: 0.3636363636 | B17: 0.2193727217 | E17: 0.04494382022 | F17: 0.8842101427 | J17: 66.75171086 | K17: 55.88359949 | L17: 88266.41372 | Q17: 236.2582504 | R17: 225.2460793 | S17: 54712.37419 | U17: 16 | W17: 66.75171086 | X17: 55.88359949 | Z17: =IF(Z16<INT($V$2), Z16+Eingabe!$B$3,"") -> 16 | AA17: 12.37249799
A18: 0.3863636364 | B18: 0.2432066377 | E18: 0.04775280899 | F18: 0.8725055743 | J18: 70.92369278 | K18: 61.95511562 | L18: 88007.9381 | Q18: 239.5514408 | R18: 222.264426 | S18: 53980.41513 | U18: 17 | W18: 70.92369278 | X18: 61.95511562 | Z18: =IF(Z17<INT($V$2), Z17+Eingabe!$B$3,"") -> 17 | AA18: 12.65502208
A19: 0.4090909091 | B19: 0.2685214793 | E19: 0.05056179775 | F19: 0.8606265624 | J19: 75.09567471 | K19: 68.40388671 | L19: 87722.55832 | Q19: 242.8446311 | R19: 219.2383344 | S19: 53258.42156 | U19: 18 | W19: 75.09567471 | X19: 68.40388671 | Z19: =IF(Z18<INT($V$2), Z18+Eingabe!$B$3,"") -> 18 | AA19: 13.00361586
A20: 0.4318181818 | B20: 0.2958937971 | E20: 0.05337078652 | F20: 0.8486603287 | J20: 79.26765664 | K20: 75.37678487 | L20: 87408.08774 | Q20: 246.1378215 | R20: 216.1900237 | S20: 52546.46666 | U20: 19 | W20: 79.26765664 | X20: 75.37678487 | Z20: =IF(Z19<INT($V$2), Z19+Eingabe!$B$3,"") -> 19 | AA20: 13.35220964
A21: 0.4545454545 | B21: 0.3262646497 | E21: 0.05617977528 | F21: 0.8366940951 | J21: 83.43963857 | K21: 83.11353785 | L21: 87061.33956 | Q21: 249.4310118 | R21: 213.1417131 | S21: 51844.55043 | U21: 20 | W21: 83.43963857 | X21: 83.11353785 | Z21: =IF(Z20<INT($V$2), Z20+Eingabe!$B$3,"") -> 20 | AA21: 13.70080342
A22: 0.4772727273 | B22: 0.3613897104 | E22: 0.05898876404 | F22: 0.8246842701 | J22: 87.6116205 | K22: 92.06139068 | L22: 86677.2611 | Q22: 252.7242022 | R22: 210.0822978 | S22: 51152.70943 | U22: 21 | W22: 87.6116205 | X22: 92.06139068 | Z22: =IF(Z21<INT($V$2), Z21+Eingabe!$B$3,"") -> 21 | AA22: 14.0621666
A23: 0.5 | B23: 0.398939424 | E23: 0.06179775281 | F23: 0.812656993 | J23: 91.78360243 | K23: 101.6269061 | L23: 86253.27548 | Q23: 256.0173925 | R23: 207.0184368 | S23: 50470.95831 | U23: 22 | W23: 91.78360243 | X23: 101.6269061 | Z23: =IF(Z22<INT($V$2), Z22+Eingabe!$B$3,"") -> 22 | AA23: 14.50191155
A24: 0.5227272727 | B24: 0.4380206798 | E24: 0.06460674157 | F24: 0.8006384158 | J24: 95.95558436 | K24: 111.5825707 | L24: 85787.75502 | Q24: 259.3105828 | R24: 203.956792 | S24: 49799.28978 | U24: 23 | W24: 95.95558436 | X24: 111.5825707 | Z24: =IF(Z23<INT($V$2), Z23+Eingabe!$B$3,"") -> 23 | AA24: 14.94165651
A25: 0.5454545455 | B25: 0.4786212716 | E25: 0.06741573034 | F25: 0.7886024125 | J25: 100.1275663 | K25: 121.9252751 | L25: 85279.08497 | Q25: 262.6037732 | R25: 200.890708 | S25: 49137.71843 | U25: 24 | W25: 100.1275663 | X25: 121.9252751 | Z25: =IF(Z24<INT($V$2), Z24+Eingabe!$B$3,"") -> 24 | AA25: 15.38140146
A26: 0.5681818182 | B26: 0.5208458343 | E26: 0.0702247191 | F26: 0.776531531 | J26: 104.2995482 | K26: 132.6816742 | L26: 84725.53942 | Q26: 265.8969635 | R26: 197.815739 | S26: 48486.27355 | U26: 25 | W26: 104.2995482 | X26: 132.6816742 | Z26: =IF(Z25<INT($V$2), Z25+Eingabe!$B$3,"") -> 25 | AA26: 15.82114642
A27: 0.5909090909 | B27: 0.5639582615 | E27: 0.07303370787 | F27: 0.7644083191 | J27: 108.4715301 | K27: 143.6642504 | L27: 84126.17477 | Q27: 269.1901539 | R27: 194.7274393 | S27: 47844.99903 | U27: 26 | W27: 108.4715301 | X27: 143.6642504 | Z27: =IF(Z26<INT($V$2), Z26+Eingabe!$B$3,"") -> 26 | AA27: 16.35729679
A28: 0.6136363636 | B28: 0.6070680984 | E28: 0.07584269663 | F28: 0.7522502028 | J28: 112.6435121 | K28: 154.6461666 | L28: 83480.99376 | Q28: 272.4833442 | R28: 191.6302479 | S28: 47213.92415 | U28: 27 | W28: 112.6435121 | X28: 154.6461666 | Z28: =IF(Z27<INT($V$2), Z27+Eingabe!$B$3,"") -> 27 | AA28: 16.89662296
A29: 0.6363636364 | B29: 0.6495255316 | E29: 0.07865168539 | F29: 0.7400223299 | J29: 116.815494 | K29: 165.4618878 | L29: 82790.68975 | Q29: 275.7765346 | R29: 188.5152866 | S29: 46593.10742 | U29: 28 | W29: 116.815494 | X29: 165.4618878 | Z29: =IF(Z28<INT($V$2), Z28+Eingabe!$B$3,"") -> 28 | AA29: 17.43594914
A30: 0.6590909091 | B30: 0.6912590646 | E30: 0.08146067416 | F30: 0.7278380484 | J30: 120.9874759 | K30: 176.0932007 | L30: 82056.0321 | Q30: 279.0697249 | R30: 185.4114298 | S30: 45982.51229 | U30: 29 | W30: 120.9874759 | X30: 176.0932007 | Z30: =IF(Z29<INT($V$2), Z29+Eingabe!$B$3,"") -> 29 | AA30: 17.97527531
A31: 0.6818181818 | B31: 0.7321029799 | E31: 0.08426966292 | F31: 0.7157060972 | J31: 125.1594579 | K31: 186.49789 | L31: 81277.96627 | Q31: 282.3629153 | R31: 182.3209038 | S31: 45382.09485 | U31: 30 | W31: 125.1594579 | X31: 186.49789 | Z31: =IF(Z30<INT($V$2), Z30+Eingabe!$B$3,"") -> 30 | AA31: 18.58768703
A32: 0.7045454545 | B32: 0.7711938253 | E32: 0.08707865169 | F32: 0.70372 | J32: 129.3314398 | K32: 196.4559975 | L32: 80458.3554 | Q32: 285.6561056 | R32: 179.267533 | S32: 44791.73274 | U32: 31 | W32: 129.3314398 | X32: 196.4559975 | Z32: =IF(Z31<INT($V$2), Z31+Eingabe!$B$3,"") -> 31 | AA32: 19.21881463
A33: 0.7272727273 | B33: 0.8078076873 | E33: 0.08988764045 | F33: 0.69197 | J33: 133.5034217 | K33: 205.7831115 | L33: 79599.83198 | Q33: 288.949296 | R33: 176.2743063 | S33: 44211.2279 | U33: 32 | W33: 133.5034217 | X33: 205.7831115 | Z33: =IF(Z32<INT($V$2), Z32+Eingabe!$B$3,"") -> 32 | AA33: 19.84994222
A34: 0.75 | B34: 0.8413079007 | E34: 0.09269662921 | F34: 0.68046 | J34: 137.6754036 | K34: 214.3170464 | L34: 78705.70513 | Q34: 292.2424863 | R34: 173.3422178 | S34: 43640.37898 | U34: 33 | W34: 137.6754036 | X34: 214.3170464 | Z34: =IF(Z33<INT($V$2), Z33+Eingabe!$B$3,"") -> 33 | AA34: 20.48106982
A35: 0.7727272727 | B35: 0.8719648176 | E35: 0.09550561798 | F35: 0.66914 | J35: 141.8473856 | K35: 222.1266722 | L35: 77778.99667 | Q35: 295.5356767 | R35: 170.4585304 | S35: 43079.02659 | U35: 34 | W35: 141.8473856 | X35: 222.1266722 | Z35: =IF(Z34<INT($V$2), Z34+Eingabe!$B$3,"") -> 34 | AA35: 21.17432207
A36: 0.7954545455 | B36: 0.8994295903 | E36: 0.09831460674 | F36: 0.65795 | J36: 146.0193675 | K36: 229.1231225 | L36: 76823.09915 | Q36: 298.828867 | R36: 167.6079596 | S36: 42527.06168 | U36: 35 | W36: 146.0193675 | X36: 229.1231225 | Z36: =IF(Z35<INT($V$2), Z35+Eingabe!$B$3,"") -> 35 | AA36: 21.90498536
A37: 0.8181818182 | B37: 0.9234928837 | E37: 0.1011235955 | F37: 0.64688 | J37: 150.1913494 | K37: 235.2530709 | L37: 75841.62758 | Q37: 302.1220574 | R37: 164.7879579 | S37: 41984.38357 | U37: 36 | W37: 150.1913494 | X37: 235.2530709 | Z37: =IF(Z36<INT($V$2), Z36+Eingabe!$B$3,"") -> 36 | AA37: 22.63564864
A38: 0.8409090909 | B38: 0.9436488196 | E38: 0.1039325843 | F38: 0.63593 | J38: 154.3633314 | K38: 240.3876484 | L38: 74838.73466 | Q38: 305.4152477 | R38: 161.9985254 | S38: 41450.89159 | U38: 37 | W38: 154.3633314 | X38: 240.3876484 | Z38: =IF(Z37<INT($V$2), Z37+Eingabe!$B$3,"") -> 37 | AA38: 23.36631192
A39: 0.8636363636 | B39: 0.9603160675 | E39: 0.106741573 | F39: 0.62506 | J39: 158.5353133 | K39: 244.6335081 | L39: 73818.12809 | Q39: 308.7084381 | R39: 159.2294722 | S39: 40926.51863 | U39: 38 | W39: 158.5353133 | X39: 244.6335081 | Z39: =IF(Z38<INT($V$2), Z38+Eingabe!$B$3,"") -> 38 | AA39: 24.13848871
A40: 0.8863636364 | B40: 0.9736516059 | E40: 0.1095505618 | F40: 0.61419 | J40: 162.7072952 | K40: 248.0306392 | L40: 72783.34874 | Q40: 312.0016284 | R40: 156.4604191 | S40: 40411.26468 | U40: 39 | W40: 162.7072952 | X40: 248.0306392 | Z40: =IF(Z39<INT($V$2), Z39+Eingabe!$B$3,"") -> 39 | AA40: 24.960963
A41: 0.9090909091 | B41: 0.9841264218 | E41: 0.1123595506 | F41: 0.60325 | J41: 166.8792771 | K41: 250.6990221 | L41: 71737.43695 | Q41: 315.2948188 | R41: 153.6735339 | S41: 39905.18849 | U41: 40 | W41: 166.8792771 | X41: 250.6990221 | Z41: =IF(Z40<INT($V$2), Z40+Eingabe!$B$3,"") -> 40 | AA41: 25.7834373
A42: 0.9318181818 | B42: 0.9916009499 | E42: 0.1151685393 | F42: 0.59226 | J42: 171.0512591 | K42: 252.6031035 | L42: 70683.58137 | Q42: 318.5880091 | R42: 150.8739116 | S42: 39408.33198 | U42: 41 | W42: 171.0512591 | X42: 252.6031035 | Z42: =IF(Z41<INT($V$2), Z41+Eingabe!$B$3,"") -> 41 | AA42: 26.60591159
A43: 0.9545454545 | B43: 0.9964589555 | E43: 0.1179775281 | F43: 0.58121 | J43: 175.223241 | K43: 253.840645 | L43: 69624.56278 | Q43: 321.8811994 | R43: 148.0590048 | S43: 38920.74549 | U43: 42 | W43: 175.223241 | X43: 253.840645 | Z43: =IF(Z42<INT($V$2), Z42+Eingabe!$B$3,"") -> 42 | AA43: 27.45616867
A44: 0.9772727273 | B44: 0.9990580388 | E44: 0.1207865169 | F44: 0.57014 | J44: 179.3952229 | K44: 254.5027425 | L44: 68562.78194 | Q44: 325.1743898 | R44: 145.2390031 | S44: 38442.44581 | U44: 43 | W44: 179.3952229 | X44: 254.5027425 | Z44: =IF(Z43<INT($V$2), Z43+Eingabe!$B$3,"") -> 43 | AA44: 28.37780319
A45: 1 | B45: 1 | E45: 0.1235955056 | F45: 0.55909 | J45: =I4 -> 183.5672049 | K45: 254.7427002 | L45: 67500 | Q45: 328.4675801 | R45: 142.4240963 | S45: 37973.41615 | U45: 44 | W45: 183.5672049 | X45: 254.7427002 | Z45: =IF(Z44<INT($V$2), Z44+Eingabe!$B$3,"") -> 44 | AA45: 29.29943772
E46: 0.1264044944 | F46: 0.54815 | Q46: 331.7607705 | R46: 139.6372111 | S46: 37513.56423 | U46: 45 | W46: =Q2 -> 186.8603952 | X46: =R2 -> 254.5760619 | Z46: =IF(Z45<INT($V$2), Z45+Eingabe!$B$3,"") -> 45 | AA46: 30.22107225
E47: 0.1292134831 | F47: 0.53744 | Q47: 335.0539608 | R47: 136.9089168 | S47: 37062.69711 | U47: 46 | W47: =Q3 -> 190.1535855 | X47: 254.0450528 | Z47: =IF(Z46<INT($V$2), Z46+Eingabe!$B$3,"") -> 46 | AA47: 31.15238737
E48: 0.1320224719 | F48: 0.52709 | Q48: 338.3471512 | R48: 134.2723299 | S48: 36620.51277 | U48: 47 | W48: 193.4467759 | X48: 253.1518892 | Z48: =IF(Z47<INT($V$2), Z47+Eingabe!$B$3,"") -> 47 | AA48: 32.16349234
E49: 0.1348314607 | F49: 0.5172 | Q49: 341.6403415 | R49: 131.7529246 | S49: 36186.62531 | U49: 48 | W49: 196.7399662 | X49: 252.0098863 | Z49: =IF(Z48<INT($V$2), Z48+Eingabe!$B$3,"") -> 48 | AA49: 33.17459731
E50: 0.1376404494 | F50: 0.5078 | Q50: 344.9335319 | R50: 129.3583432 | S50: 35760.62366 | U50: 49 | W50: 200.0331566 | X50: 250.643476 | Z50: =IF(Z49<INT($V$2), Z49+Eingabe!$B$3,"") -> 49 | AA50: 34.18570228
E51: 0.1404494382 | F51: 0.49888 | Q51: 348.2267222 | R51: 127.0860383 | S51: 35342.10515 | U51: 50 | W51: 203.3263469 | X51: 249.0682187 | Z51: =IF(Z50<INT($V$2), Z50+Eingabe!$B$3,"") -> 50 | AA51: 35.19680724
E52: 0.143258427 | F52: 0.49041 | Q52: 351.5199126 | R52: 124.9283676 | S52: 34930.69225 | U52: 51 | W52: 206.6195373 | X52: 247.2730065 | Z52: =IF(Z51<INT($V$2), Z51+Eingabe!$B$3,"") -> 51 | AA52: 36.29651023
E53: 0.1460674157 | F53: 0.48103 | Q53: 354.8131029 | R53: 122.5388811 | S53: 34527.14839 | U53: 52 | W53: 209.9127276 | X53: 245.3089331 | Z53: =IF(Z52<INT($V$2), Z52+Eingabe!$B$3,"") -> 52 | AA53: 37.40224926
E54: 0.1488764045 | F54: 0.47184 | Q54: 358.1062933 | R54: 120.1977957 | S54: 34131.31417 | U54: 53 | W54: 213.205918 | X54: 243.2071125 | Z54: =IF(Z53<INT($V$2), Z53+Eingabe!$B$3,"") -> 53 | AA54: 38.5079883
E55: 0.1516853933 | F55: 0.46286 | Q55: 361.3994836 | R55: 117.9102062 | S55: 33743.01342 | U55: 54 | W55: 216.4991083 | X55: 240.9941998 | Z55: =IF(Z54<INT($V$2), Z54+Eingabe!$B$3,"") -> 54 | AA55: 39.61372734
E56: 0.154494382 | F56: 0.45408 | Q56: 364.692674 | R56: 115.6735653 | S56: 33362.07835 | U56: 55 | W56: 219.7922987 | X56: 238.6546444 | Z56: =IF(Z55<INT($V$2), Z55+Eingabe!$B$3,"") -> 55 | AA56: 40.78450464
E57: 0.1573033708 | F57: 0.44549 | Q57: 367.9858643 | R57: 113.4853255 | S57: 32988.34957 | U57: 56 | W57: 223.085489 | X57: 236.1995576 | Z57: =IF(Z56<INT($V$2), Z56+Eingabe!$B$3,"") -> 56 | AA57: 41.97534613
E58: 0.1601123596 | F58: 0.4371 | Q58: 371.2790547 | R58: 111.3480343 | S58: 32621.6593 | U58: 57 | W58: 226.3786794 | X58: 233.6067137 | Z58: =IF(Z57<INT($V$2), Z57+Eingabe!$B$3,"") -> 57 | AA58: 43.16618761
E59: 0.1629213483 | F59: 0.42891 | Q59: 374.572245 | R59: 109.2616916 | S59: 32261.83975 | U59: 58 | W59: 229.6718697 | X59: 230.9250001 | Z59: =IF(Z58<INT($V$2), Z58+Eingabe!$B$3,"") -> 58 | AA59: 44.35702909
E60: 0.1657303371 | F60: 0.4209 | Q60: 377.8654354 | R60: 107.2212025 | S60: 31908.73992 | U60: 59 | W60: 232.9650601 | X60: 228.1410891 | Z60: =IF(Z59<INT($V$2), Z59+Eingabe!$B$3,"") -> 59 | AA60: 45.60158357
E61: 0.1685393258 | F61: 0.41308 | Q61: 381.1586257 | R61: 105.2291146 | S61: 31562.20042 | U61: 60 | W61: 236.2582504 | X61: 225.2460793 | Z61: =IF(Z60<INT($V$2), Z60+Eingabe!$B$3,"") -> 60 | AA61: 46.8831177
E62: 0.1713483146 | F62: 0.40544 | Q62: 384.4518161 | R62: 103.2828804 | S62: 31222.07023 | U62: 61 | W62: 239.5514408 | X62: 222.264426 | Z62: =IF(Z61<INT($V$2), Z61+Eingabe!$B$3,"") -> 61 | AA62: 48.16465183
E63: 0.1741573034 | F63: 0.39797 | Q63: 387.7450064 | R63: 101.3799524 | S63: 30888.20675 | U63: 62 | W63: =Q19 -> 242.8446311 | X63: 219.2383344 | Z63: =IF(Z62<INT($V$2), Z62+Eingabe!$B$3,"") -> 62 | AA63: 49.44618597
E64: 0.1769662921 | F64: 0.39067 | Q64: 391.0381967 | R64: 99.52033071 | S64: 30560.46736 | U64: 63 | W64: 246.1378215 | X64: 216.1900237 | Z64: =IF(Z63<INT($V$2), Z63+Eingabe!$B$3,"") -> 63 | AA64: 50.76276976
E65: 0.1797752809 | F65: 0.38354 | Q65: 394.3313871 | R65: 97.70401525 | S65: 30238.70944 | U65: 64 | W65: 249.4310118 | X65: 213.1417131 | Z65: =IF(Z64<INT($V$2), Z64+Eingabe!$B$3,"") -> 64 | AA65: 52.12770163
E66: 0.1825842697 | F66: 0.37658 | Q66: 397.6245774 | R66: =F66*$I$1 -> 95.93100606 | S66: 29922.79038 | U66: 65 | W66: 252.7242022 | X66: 210.0822978 | Z66: =IF(Z65<INT($V$2), Z65+Eingabe!$B$3,"") -> 65 | AA66: 53.49263351
E67: =E66+1/356 -> 0.1853932584 | F67: 0.36979 | Q67: =Q66+($Q$357-$Q$1)/356 -> 400.9177678 | R67: 94.20130312 | S67: =S66-(R67*(Q67-Q66)) -> 29612.56755 | U67: =U66+1 -> 66 | W67: 256.0173925 | X67: 207.0184368 | Z67: =IF(Z66<INT($V$2), Z66+Eingabe!$B$3,"") -> 66 | AA67: =IF(ISNUMBER(Z67),FORECAST(Z67,OFFSET($X$1:$X$401,MATCH(Z67,$W$1:$W$401,1)-1,0,2),OFFSET($W$1:$W$401,MATCH(Z67,$W$1:$W$401,1)-1,0,2)),"") -> 54.85756538
E68: 0.1882022472 | F68: 0.36317 | Q68: 404.2109581 | R68: 92.51490645 | S68: 29307.89836 | U68: 67 | W68: 259.3105828 | X68: 203.956792 | Z68: =IF(Z67<INT($V$2), Z67+Eingabe!$B$3,"") -> 67 | AA68: 56.24493652
E69: 0.191011236 | F69: 0.35672 | Q69: 407.5041485 | R69: 90.87181603 | S69: 29008.64017 | U69: 68 | W69: 262.6037732 | X69: 200.890708 | Z69: =IF(Z68<INT($V$2), Z68+Eingabe!$B$3,"") -> 68 | AA69: 57.7002439
E70: 0.1938202247 | F70: 0.35044 | Q70: 410.7973388 | R70: 89.27203187 | S70: 28714.65038 | U70: 69 | W70: 265.8969635 | X70: 197.815739 | Z70: =IF(Z69<INT($V$2), Z69+Eingabe!$B$3,"") -> 69 | AA70: 59.15555129
E71: 0.1966292135 | F71: 0.34434 | Q71: 414.0905292 | R71: 87.7181014 | S71: 28425.77797 | U71: 70 | W71: 269.1901539 | X71: 194.7274393 | Z71: =IF(Z70<INT($V$2), Z70+Eingabe!$B$3,"") -> 70 | AA71: 60.61085868
E72: 0.1994382022 | F72: 0.33841 | Q72: 417.3837195 | R72: 86.20747719 | S72: 28141.88034 | U72: 71 | W72: 272.4833442 | X72: 191.6302479 | Z72: =IF(Z71<INT($V$2), Z71+Eingabe!$B$3,"") -> 71 | AA72: 62.07306621
E73: 0.202247191 | F73: 0.33264 | Q73: 420.6769099 | R73: 84.73761181 | S73: 27862.82325 | U73: 72 | W73: 275.7765346 | X73: 188.5152866 | Z73: =IF(Z72<INT($V$2), Z72+Eingabe!$B$3,"") -> 72 | AA73: 63.61879944
E74: 0.2050561798 | F74: 0.32703 | Q74: 423.9701002 | R74: 83.30850526 | S74: 27588.47249 | U74: 73 | W74: 279.0697249 | X74: 185.4114298 | Z74: =IF(Z73<INT($V$2), Z73+Eingabe!$B$3,"") -> 73 | AA74: 65.16453267
E75: 0.2078651685 | F75: 0.32159 | Q75: 427.2632906 | R75: 81.92270497 | S75: 27318.68543 | U75: 74 | W75: 282.3629153 | X75: 182.3209038 | Z75: =IF(Z74<INT($V$2), Z74+Eingabe!$B$3,"") -> 74 | AA75: 66.7102659
E76: 0.2106741573 | F76: 0.3163 | Q76: 430.5564809 | R76: 80.57511609 | S76: 27053.33623 | U76: 75 | W76: 285.6561056 | X76: 179.267533 | Z76: =IF(Z75<INT($V$2), Z75+Eingabe!$B$3,"") -> 75 | AA76: 68.25599913
E77: 0.2134831461 | F77: 0.31118 | Q77: 433.8496713 | R77: 79.27083346 | S77: 26792.28229 | U77: 76 | W77: 288.949296 | X77: 176.2743063 | Z77: =IF(Z76<INT($V$2), Z76+Eingabe!$B$3,"") -> 76 | AA77: 69.91534295
E78: 0.2162921348 | F78: 0.30624 | Q78: 437.1428616 | R78: 78.01240452 | S78: 26535.37259 | U78: 77 | W78: 292.2424863 | X78: 173.3422178 | Z78: =IF(Z77<INT($V$2), Z77+Eingabe!$B$3,"") -> 77 | AA78: 71.58670642
E79: 0.2191011236 | F79: 0.30146 | Q79: 440.436052 | R79: 76.79473442 | S79: 26282.47291 | U79: 78 | W79: =Q35 -> 295.5356767 | X79: 170.4585304 | Z79: =IF(Z78<INT($V$2), Z78+Eingabe!$B$3,"") -> 78 | AA79: 73.25806988
E80: 0.2219101124 | F80: 0.29685 | Q80: 443.7292423 | R80: 75.62037057 | S80: 26033.44064 | U80: 79 | W80: 298.828867 | X80: 167.6079596 | Z80: =IF(Z79<INT($V$2), Z79+Eingabe!$B$3,"") -> 79 | AA80: 74.92943334
E81: 0.2247191011 | F81: 0.29241 | Q81: 447.0224327 | R81: 74.48931298 | S81: 25788.13315 | U81: 80 | W81: 302.1220574 | X81: 164.7879579 | Z81: =IF(Z80<INT($V$2), Z80+Eingabe!$B$3,"") -> 80 | AA81: 76.73488271
E82: 0.2275280899 | F82: 0.28812 | Q82: 450.315623 | R82: 73.39646679 | S82: 25546.42462 | U82: 81 | W82: 305.4152477 | X82: 161.9985254 | Z82: =IF(Z81<INT($V$2), Z81+Eingabe!$B$3,"") -> 81 | AA82: 78.58933777
E83: 0.2303370787 | F83: 0.28398 | Q83: 453.6088134 | R83: 72.34183202 | S83: 25308.18919 | U83: 82 | W83: 308.7084381 | X83: 159.2294722 | Z83: =IF(Z82<INT($V$2), Z82+Eingabe!$B$3,"") -> 82 | AA83: 80.44379283
E84: 0.2331460674 | F84: 0.27997 | Q84: 456.9020037 | R84: 71.32031379 | S84: 25073.31782 | U84: 83 | W84: 312.0016284 | X84: 156.4604191 | Z84: =IF(Z83<INT($V$2), Z83+Eingabe!$B$3,"") -> 83 | AA84: 82.29824789
E85: 0.2359550562 | F85: 0.27607 | Q85: 460.195194 | R85: 70.32681726 | S85: 24841.71823 | U85: 84 | W85: 315.2948188 | X85: 153.6735339 | Z85: =IF(Z84<INT($V$2), Z84+Eingabe!$B$3,"") -> 84 | AA85: 84.3153723
E86: 0.2387640449 | F86: 0.27227 | Q86: 463.4883844 | R86: 69.358795 | S86: 24613.30651 | U86: 85 | W86: 318.5880091 | X86: 150.8739116 | Z86: =IF(Z85<INT($V$2), Z85+Eingabe!$B$3,"") -> 85 | AA86: 86.460121
E87: 0.2415730337 | F87: 0.26854 | Q87: 466.7815747 | R87: 68.40860472 | S87: 24388.02396 | U87: 86 | W87: 321.8811994 | X87: 148.0590048 | Z87: =IF(Z86<INT($V$2), Z86+Eingabe!$B$3,"") -> 86 | AA87: 88.60486971
E88: 0.2443820225 | F88: 0.26488 | Q88: 470.0747651 | R88: 67.47624644 | S88: 24165.81183 | U88: 87 | W88: 325.1743898 | X88: 145.2390031 | Z88: =IF(Z87<INT($V$2), Z87+Eingabe!$B$3,"") -> 87 | AA88: 90.74961841
E89: 0.2471910112 | F89: 0.26128 | Q89: 473.3679554 | R89: 66.55917272 | S89: 23946.61981 | U89: 88 | W89: 328.4675801 | X89: 142.4240963 | Z89: =IF(Z88<INT($V$2), Z88+Eingabe!$B$3,"") -> 88 | AA89: 92.95186676
E90: 0.25 | F90: 0.25773 | Q90: 476.6611458 | R90: 65.65483613 | S90: 23730.40594 | U90: 89 | W90: 331.7607705 | X90: 139.6372111 | Z90: =IF(Z89<INT($V$2), Z89+Eingabe!$B$3,"") -> 89 | AA90: 95.24466562
E91: 0.2528089888 | F91: 0.25422 | Q91: 479.9543361 | R91: 64.76068926 | S91: 23517.13666 | U91: 90 | W91: 335.0539608 | X91: 136.9089168 | Z91: =IF(Z90<INT($V$2), Z90+Eingabe!$B$3,"") -> 90 | AA91: 97.53746449
E92: 0.2556179775 | F92: 0.25076 | Q92: 483.2475265 | R92: 63.87927951 | S92: 23306.77003 | U92: 91 | W92: 338.3471512 | X92: 134.2723299 | Z92: =IF(Z91<INT($V$2), Z91+Eingabe!$B$3,"") -> 91 | AA92: 99.83026336
E93: 0.2584269663 | F93: 0.24734 | Q93: 486.5407168 | R93: 63.00805948 | S93: 23099.2725 | U93: 92 | W93: 341.6403415 | X93: 131.7529246 | Z93: =IF(Z92<INT($V$2), Z92+Eingabe!$B$3,"") -> 92 | AA93: 102.143299
E94: 0.2612359551 | F94: 0.24396 | Q94: 489.8339072 | R94: 62.14702915 | S94: 22894.6105 | U94: 93 | W94: 344.9335319 | X94: 129.3583432 | Z94: =IF(Z93<INT($V$2), Z93+Eingabe!$B$3,"") -> 93 | AA94: 104.5296143
E95: 0.2640449438 | F95: 0.24061 | Q95: 493.1270975 | R95: 61.29364111 | S95: 22692.75888 | U95: 94 | W95: =Q51 -> 348.2267222 | X95: 127.0860383 | Z95: =IF(Z94<INT($V$2), Z94+Eingabe!$B$3,"") -> 94 | AA95: 106.9159297
E96: 0.2668539326 | F96: 0.23728 | Q96: 496.4202879 | R96: 60.44534791 | S96: 22493.70084 | U96: 95 | W96: 351.5199126 | X96: 124.9283676 | Z96: =IF(Z95<INT($V$2), Z95+Eingabe!$B$3,"") -> 95 | AA96: 109.3022451
E97: 0.2696629213 | F97: 0.23396 | Q97: 499.7134782 | R97: 59.59960215 | S97: 22297.42801 | U97: 96 | W97: 354.8131029 | X97: 122.5388811 | Z97: =IF(Z96<INT($V$2), Z96+Eingabe!$B$3,"") -> 96 | AA97: 111.692681
E98: 0.2724719101 | F98: 0.23064 | Q98: 503.0066686 | R98: 58.75385638 | S98: 22103.94037 | U98: 97 | W98: 358.1062933 | X98: 120.1977957 | Z98: =IF(Z97<INT($V$2), Z97+Eingabe!$B$3,"") -> 97 | AA98: 114.1717675
E99: 0.2752808989 | F99: 0.22732 | Q99: 506.2998589 | R99: 57.90811062 | S99: 21913.23794 | U99: 98 | W99: 361.3994836 | X99: 117.9102062 | Z99: =IF(Z98<INT($V$2), Z98+Eingabe!$B$3,"") -> 98 | AA99: 116.6508541
E100: 0.2780898876 | F100: 0.22399 | Q100: 509.5930493 | R100: 57.05981743 | S100: 21725.3291 | U100: 99 | W100: 364.692674 | X100: 115.6735653 | Z100: =IF(Z99<INT($V$2), Z99+Eingabe!$B$3,"") -> 99 | AA100: 119.1299407
E101: 0.2808988764 | F101: 0.22067 | Q101: 512.8862396 | R101: 56.21407166 | S101: 21540.20546 | U101: 100 | W101: 367.9858643 | X101: 113.4853255 | Z101: =IF(Z100<INT($V$2), Z100+Eingabe!$B$3,"") -> 100 | AA101: 121.6090273
E102: 0.2837078652 | F102: 0.21735 | Q102: 516.17943 | R102: 55.3683259 | S102: 21357.86703 | U102: 101 | W102: 371.2790547 | X102: 111.3480343 | Z102: =IF(Z101<INT($V$2), Z101+Eingabe!$B$3,"") -> 101 | AA102: 124.1746246
E103: 0.2865168539 | F103: 0.21406 | Q103: 519.4726203 | R103: 54.53022241 | S103: 21178.28863 | U103: 102 | W103: 374.572245 | X103: 109.2616916 | Z103: =IF(Z102<INT($V$2), Z102+Eingabe!$B$3,"") -> 102 | AA103: 126.7528714
E104: 0.2893258427 | F104: 0.21078 | Q104: 522.7658106 | R104: 53.69466636 | S104: 21001.46187 | U104: 103 | W104: 377.8654354 | X104: 107.2212025 | Z104: =IF(Z103<INT($V$2), Z103+Eingabe!$B$3,"") -> 103 | AA104: 129.3311182
E105: 0.2921348315 | F105: 0.20754 | Q105: 526.059001 | R105: 52.86930001 | S105: 20827.3532 | U105: 104 | W105: 381.1586257 | X105: 105.2291146 | Z105: =IF(Z104<INT($V$2), Z104+Eingabe!$B$3,"") -> 104 | AA105: 131.909365
E106: 0.2949438202 | F106: 0.20433 | Q106: 529.3521913 | R106: 52.05157594 | S106: 20655.93745 | U106: 105 | W106: 384.4518161 | X106: 103.2828804 | Z106: =IF(Z105<INT($V$2), Z105+Eingabe!$B$3,"") -> 105 | AA106: 134.5255857
E107: 0.297752809 | F107: 0.20116 | Q107: 532.6453817 | R107: 51.24404158 | S107: 20487.18107 | U107: 106 | W107: 387.7450064 | X107: 101.3799524 | Z107: =IF(Z106<INT($V$2), Z106+Eingabe!$B$3,"") -> 106 | AA107: 137.1580458
E108: 0.3005617978 | F108: 0.19803 | Q108: 535.938572 | R108: 50.44669693 | S108: 20321.05049 | U108: 107 | W108: 391.0381967 | X108: 99.52033071 | Z108: =IF(Z107<INT($V$2), Z107+Eingabe!$B$3,"") -> 107 | AA108: 139.7905059
E109: 0.3033707865 | F109: 0.19494 | Q109: 539.2317624 | R109: 49.65954199 | S109: 20157.51217 | U109: 108 | W109: 394.3313871 | X109: 97.70401525 | Z109: =IF(Z108<INT($V$2), Z108+Eingabe!$B$3,"") -> 108 | AA109: 142.4229661
E110: 0.3061797753 | F110: 0.1919 | Q110: 542.5249527 | R110: 48.88512418 | S110: 19996.52415 | U110: 109 | W110: 397.6245774 | X110: 95.93100606 | Z110: =IF(Z109<INT($V$2), Z109+Eingabe!$B$3,"") -> 109 | AA110: 145.0553426
E111: 0.308988764 | F111: 0.18891 | Q111: 545.8181431 | R111: 48.1234435 | S111: 19838.04449 | U111: 110 | W111: =Q67 -> 400.9177678 | X111: 94.20130312 | Z111: =IF(Z110<INT($V$2), Z110+Eingabe!$B$3,"") -> 110 | AA111: 147.6876446
E112: 0.3117977528 | F112: 0.18598 | Q112: 549.1113334 | R112: 47.37704739 | S112: 19682.02286 | U112: 111 | W112: 404.2109581 | X112: 92.51490645 | Z112: =IF(Z111<INT($V$2), Z111+Eingabe!$B$3,"") -> 111 | AA112: 150.3199466
E113: 0.3146067416 | F113: 0.1831 | Q113: 552.4045238 | R113: 46.64338842 | S113: 19528.4173 | U113: 112 | W113: 407.5041485 | X113: 90.87181603 | Z113: =IF(Z112<INT($V$2), Z112+Eingabe!$B$3,"") -> 112 | AA113: 152.9522485
E114: 0.3174157303 | F114: 0.18028 | Q114: 555.6977141 | R114: 45.925014 | S114: 19377.17749 | U114: 113 | W114: 410.7973388 | X114: 89.27203187 | Z114: =IF(Z113<INT($V$2), Z113+Eingabe!$B$3,"") -> 113 | AA114: 155.5703495
E115: 0.3202247191 | F115: 0.17752 | Q115: 558.9909045 | R115: 45.22192415 | S115: 19228.25308 | U115: 114 | W115: 414.0905292 | X115: 87.7181014 | Z115: =IF(Z114<INT($V$2), Z114+Eingabe!$B$3,"") -> 114 | AA115: 158.1628154
E116: 0.3230337079 | F116: 0.17483 | Q116: 562.2840948 | R116: 44.53666628 | S116: 19081.58536 | U116: 115 | W116: 417.3837195 | X116: 86.20747719 | Z116: =IF(Z115<INT($V$2), Z115+Eingabe!$B$3,"") -> 115 | AA116: 160.7552814
E117: 0.3258426966 | F117: 0.1722 | Q117: 565.5772852 | R117: 43.86669298 | S117: 18937.12399 | U117: 116 | W117: 420.6769099 | X117: 84.73761181 | Z117: =IF(Z116<INT($V$2), Z116+Eingabe!$B$3,"") -> 116 | AA117: 163.3477474
E118: 0.3286516854 | F118: 0.16961 | Q118: 568.8704755 | R118: 43.20690939 | S118: 18794.83542 | U118: 117 | W118: 423.9701002 | X118: 83.30850526 | Z118: =IF(Z117<INT($V$2), Z117+Eingabe!$B$3,"") -> 117 | AA118: 165.9320579
E119: 0.3314606742 | F119: 0.16707 | Q119: 572.1636659 | R119: 42.55986293 | S119: 18654.67769 | U119: 118 | W119: 427.2632906 | X119: 81.92270497 | Z119: =IF(Z118<INT($V$2), Z118+Eingabe!$B$3,"") -> 118 | AA119: 168.4803222
E120: 0.3342696629 | F120: 0.16456 | Q120: 575.4568562 | R120: 41.92045875 | S120: 18516.62564 | U120: 119 | W120: 430.5564809 | X120: 80.57511609 | Z120: =IF(Z119<INT($V$2), Z119+Eingabe!$B$3,"") -> 119 | AA120: 171.0285866
E121: 0.3370786517 | F121: 0.16207 | Q121: 578.7500466 | R121: 41.28614943 | S121: 18380.66249 | U121: 120 | W121: 433.8496713 | X121: 79.27083346 | Z121: =IF(Z120<INT($V$2), Z120+Eingabe!$B$3,"") -> 120 | AA121: 173.576851
E122: 0.3398876404 | F122: 0.1596 | Q122: 582.0432369 | R122: 40.65693496 | S122: 18246.77146 | U122: 121 | W122: 437.1428616 | X122: 78.01240452 | Z122: =IF(Z121<INT($V$2), Z121+Eingabe!$B$3,"") -> 121 | AA122: 176.124435
E123: 0.3426966292 | F123: 0.15716 | Q123: 585.3364273 | R123: 40.03536277 | S123: 18114.92739 | U123: 122 | W123: 440.436052 | X123: 76.79473442 | Z123: =IF(Z122<INT($V$2), Z122+Eingabe!$B$3,"") -> 122 | AA123: 178.618379
E124: 0.345505618 | F124: 0.15474 | Q124: 588.6296176 | R124: 39.41888544 | S124: 17985.1135 | U124: 123 | W124: 443.7292423 | X124: 75.62037057 | Z124: =IF(Z123<INT($V$2), Z123+Eingabe!$B$3,"") -> 123 | AA124: 181.112323
E125: 0.3483146067 | F125: 0.15235 | Q125: 591.9228079 | R125: 38.81005038 | S125: 17857.30461 | U125: 124 | W125: 447.0224327 | X125: 74.48931298 | Z125: =IF(Z124<INT($V$2), Z124+Eingabe!$B$3,"") -> 124 | AA125: 183.606267
E126: 0.3511235955 | F126: 0.14999 | Q126: 595.2159983 | R126: 38.20885761 | S126: 17731.47557 | U126: 125 | W126: 450.315623 | X126: 73.39646679 | Z126: =IF(Z125<INT($V$2), Z125+Eingabe!$B$3,"") -> 125 | AA126: 186.100211
E127: 0.3539325843 | F127: 0.14767 | Q127: 598.5091886 | R127: 37.61785455 | S127: 17607.59282 | U127: 126 | W127: =Q83 -> 453.6088134 | X127: 72.34183202 | Z127: =IF(Z126<INT($V$2), Z126+Eingabe!$B$3,"") -> 126 | AA127: 188.5041808
E128: 0.356741573 | F128: 0.14539 | Q128: 601.802379 | R128: 37.03704119 | S128: 17485.62279 | U128: 127 | W128: 456.9020037 | X128: 71.32031379 | Z128: =IF(Z127<INT($V$2), Z127+Eingabe!$B$3,"") -> 127 | AA128: 190.8910817
E129: 0.3595505618 | F129: 0.14316 | Q129: 605.0955693 | R129: 36.46896497 | S129: 17365.52355 | U129: 128 | W129: 460.195194 | X129: 70.32681726 | Z129: =IF(Z128<INT($V$2), Z128+Eingabe!$B$3,"") -> 128 | AA129: 193.2779826
E130: 0.3623595506 | F130: 0.14097 | Q130: 608.3887597 | R130: =F130*$I$1 -> 35.91107845 | S130: 17247.26153 | U130: 129 | W130: 463.4883844 | X130: 69.358795 | Z130: =IF(Z129<INT($V$2), Z129+Eingabe!$B$3,"") -> 129 | AA130: 195.6648835
E131: =E130+1/356 -> 0.3651685393 | F131: 0.13882 | Q131: =Q130+($Q$357-$Q$1)/356 -> 611.68195 | R131: 35.36338165 | S131: =S130-(R131*(Q131-Q130)) -> 17130.80318 | U131: =U130+1 -> 130 | W131: 466.7815747 | X131: 68.40860472 | Z131: =IF(Z130<INT($V$2), Z130+Eingabe!$B$3,"") -> 130 | AA131: =IF(ISNUMBER(Z131),FORECAST(Z131,OFFSET($X$1:$X$401,MATCH(Z131,$W$1:$W$401,1)-1,0,2),OFFSET($W$1:$W$401,MATCH(Z131,$W$1:$W$401,1)-1,0,2)),"") -> 197.9506677
E132: 0.3679775281 | F132: 0.13671 | Q132: 614.9751404 | R132: 34.82587455 | S132: 17016.11495 | U132: 131 | W132: 470.0747651 | X132: 67.47624644 | Z132: =IF(Z131<INT($V$2), Z131+Eingabe!$B$3,"") -> 131 | AA132: 200.1863232
E133: 0.3707865169 | F133: 0.13464 | Q133: 618.2683307 | R133: 34.29855716 | S133: 16903.16327 | U133: 132 | W133: 473.3679554 | X133: 66.55917272 | Z133: =IF(Z132<INT($V$2), Z132+Eingabe!$B$3,"") -> 132 | AA133: 202.4219786
E134: 0.3735955056 | F134: 0.1326 | Q134: 621.5615211 | R134: 33.77888205 | S134: 16791.92298 | U134: 133 | W134: 476.6611458 | X134: 65.65483613 | Z134: =IF(Z133<INT($V$2), Z133+Eingabe!$B$3,"") -> 133 | AA134: 204.657634
E135: 0.3764044944 | F135: 0.13061 | Q135: 624.8547114 | R135: 33.27194408 | S135: 16682.35214 | U135: 134 | W135: 479.9543361 | X135: 64.76068926 | Z135: =IF(Z134<INT($V$2), Z134+Eingabe!$B$3,"") -> 134 | AA135: 206.7988798
E136: 0.3792134831 | F136: 0.12865 | Q136: 628.1479018 | R136: 32.77264839 | S136: 16574.42557 | U136: 135 | W136: 483.2475265 | X136: 63.87927951 | Z136: =IF(Z135<INT($V$2), Z135+Eingabe!$B$3,"") -> 135 | AA136: 208.8444147
E137: 0.3820224719 | F137: 0.12673 | Q137: 631.4410921 | R137: 32.2835424 | S137: 16468.10972 | U137: 136 | W137: 486.5407168 | X137: 63.00805948 | Z137: =IF(Z136<INT($V$2), Z136+Eingabe!$B$3,"") -> 136 | AA137: 210.8899497
E138: 0.3848314607 | F138: 0.12486 | Q138: 634.7342825 | R138: 31.80717355 | S138: 16363.36264 | U138: 137 | W138: 489.8339072 | X138: 62.14702915 | Z138: =IF(Z137<INT($V$2), Z137+Eingabe!$B$3,"") -> 137 | AA138: 212.9354846
E139: 0.3876404494 | F139: 0.12302 | Q139: 638.0274728 | R139: 31.33844698 | S139: 16260.15917 | U139: 138 | W139: 493.1270975 | X139: 61.29364111 | Z139: =IF(Z138<INT($V$2), Z138+Eingabe!$B$3,"") -> 138 | AA139: 214.9246655
E140: 0.3904494382 | F140: 0.12123 | Q140: 641.3206632 | R140: 30.88245755 | S140: 16158.45736 | U140: 139 | W140: 496.4202879 | X140: 60.44534791 | Z140: =IF(Z139<INT($V$2), Z139+Eingabe!$B$3,"") -> 139 | AA140: 216.7965878
E141: 0.393258427 | F141: 0.11948 | Q141: 644.6138535 | R141: 30.43665783 | S141: 16058.22365 | U141: 140 | W141: 499.7134782 | X141: 59.59960215 | Z141: =IF(Z140<INT($V$2), Z140+Eingabe!$B$3,"") -> 140 | AA141: 218.66851
E142: 0.3960674157 | F142: 0.11777 | Q142: 647.9070439 | R142: 30.00104781 | S142: 15959.42449 | U142: 141 | W142: 503.0066686 | X142: 58.75385638 | Z142: =IF(Z141<INT($V$2), Z141+Eingabe!$B$3,"") -> 141 | AA142: 220.5404323
E143: 0.3988764045 | F143: 0.11608 | Q143: 651.2002342 | R143: 29.57053264 | S143: 15862.0431 | U143: 142 | W143: =Q99 -> 506.2998589 | X143: 57.90811062 | Z143: =IF(Z142<INT($V$2), Z142+Eingabe!$B$3,"") -> 142 | AA143: 222.3826079
E144: 0.4016853933 | F144: 0.11442 | Q144: 654.4934246 | R144: 29.14765976 | S144: 15766.05431 | U144: 143 | W144: 509.5930493 | X144: 57.05981743 | Z144: =IF(Z143<INT($V$2), Z143+Eingabe!$B$3,"") -> 143 | AA144: 224.0596167
E145: 0.404494382 | F145: 0.11278 | Q145: 657.7866149 | R145: 28.72988173 | S145: 15671.44134 | U145: 144 | W145: 512.8862396 | X145: 56.21407166 | Z145: =IF(Z144<INT($V$2), Z144+Eingabe!$B$3,"") -> 144 | AA145: 225.7366255
E146: 0.4073033708 | F146: 0.11117 | Q146: 661.0798052 | R146: 28.31974599 | S146: 15578.17902 | U146: 145 | W146: 516.17943 | X146: 55.3683259 | Z146: =IF(Z145<INT($V$2), Z145+Eingabe!$B$3,"") -> 145 | AA146: 227.4136343
E147: 0.4101123596 | F147: 0.10957 | Q147: 664.3729956 | R147: 27.91215767 | S147: 15486.25898 | U147: 146 | W147: 519.4726203 | X147: 54.53022241 | Z147: =IF(Z146<INT($V$2), Z146+Eingabe!$B$3,"") -> 146 | AA147: 229.090643
E148: 0.4129213483 | F148: 0.108 | Q148: 667.6661859 | R148: 27.51221163 | S148: 15395.65603 | U148: 147 | W148: 522.7658106 | X148: 53.69466636 | Z148: =IF(Z147<INT($V$2), Z147+Eingabe!$B$3,"") -> 147 | AA148: 230.5639788
E149: 0.4157303371 | F149: 0.10645 | Q149: 670.9593763 | R149: 27.11736044 | S149: 15306.3534 | U149: 148 | W149: 526.059001 | X149: 52.86930001 | Z149: =IF(Z148<INT($V$2), Z148+Eingabe!$B$3,"") -> 148 | AA149: 232.0332921
E150: 0.4185393258 | F150: 0.10492 | Q150: 674.2525666 | R150: 26.72760411 | S150: 15218.33431 | U150: 149 | W150: 529.3521913 | X150: 52.05157594 | Z150: =IF(Z149<INT($V$2), Z149+Eingabe!$B$3,"") -> 149 | AA150: 233.5026054
E151: 0.4213483146 | F151: 0.10341 | Q151: 677.545757 | R151: 26.34294263 | S151: 15131.58198 | U151: 150 | W151: 532.6453817 | X151: 51.24404158 | Z151: =IF(Z150<INT($V$2), Z150+Eingabe!$B$3,"") -> 150 | AA151: 234.9719186
E152: 0.4241573034 | F152: 0.10191 | Q152: 680.8389473 | R152: 25.96082858 | S152: 15046.08803 | U152: 151 | W152: 535.938572 | X152: 50.44669693 | Z152: =IF(Z151<INT($V$2), Z151+Eingabe!$B$3,"") -> 151 | AA152: 236.2483003
E153: 0.4269662921 | F153: 0.10042 | Q153: 684.1321377 | R153: 25.58126196 | S153: 14961.84407 | U153: 152 | W153: 539.2317624 | X153: 49.65954199 | Z153: =IF(Z152<INT($V$2), Z152+Eingabe!$B$3,"") -> 152 | AA153: 237.4790289
E154: 0.4297752809 | F154: 0.098939 | Q154: 687.425328 | R154: 25.20398802 | S154: 14878.84254 | U154: 153 | W154: 542.5249527 | X154: 48.88512418 | Z154: =IF(Z153<INT($V$2), Z153+Eingabe!$B$3,"") -> 153 | AA154: 238.7097575
E155: 0.4325842697 | F155: 0.097478 | Q155: 690.7185184 | R155: 24.83180893 | S155: 14797.06667 | U155: 154 | W155: 545.8181431 | X155: 48.1234435 | Z155: =IF(Z154<INT($V$2), Z154+Eingabe!$B$3,"") -> 154 | AA155: 239.9404861
E156: 0.4353932584 | F156: 0.096043 | Q156: 694.0117087 | R156: 24.46625316 | S156: 14716.49464 | U156: 155 | W156: 549.1113334 | X156: 47.37704739 | Z156: =IF(Z155<INT($V$2), Z155+Eingabe!$B$3,"") -> 155 | AA156: 241.0355912
E157: 0.4382022472 | F157: 0.094639 | Q157: 697.3048991 | R157: 24.10859441 | S157: 14637.10045 | U157: 156 | W157: 552.4045238 | X157: 46.64338842 | Z157: =IF(Z156<INT($V$2), Z156+Eingabe!$B$3,"") -> 156 | AA157: 242.0532993
E158: 0.441011236 | F158: 0.093272 | Q158: 700.5980894 | R158: 23.76036114 | S158: 14558.85305 | U158: 157 | W158: 555.6977141 | X158: 45.925014 | Z158: =IF(Z157<INT($V$2), Z157+Eingabe!$B$3,"") -> 157 | AA158: 243.0710074
E159: 0.4438202247 | F159: 0.091945 | Q159: 703.8912798 | R159: 23.42231757 | S159: 14481.7189 | U159: 158 | W159: =Q115 -> 558.9909045 | X159: 45.22192415 | Z159: =IF(Z158<INT($V$2), Z158+Eingabe!$B$3,"") -> 158 | AA159: 244.0887155
E160: 0.4466292135 | F160: 0.090661 | Q160: 707.1844701 | R160: 23.09522795 | S160: 14405.66192 | U160: 159 | W160: 562.2840948 | X160: 44.53666628 | Z160: =IF(Z159<INT($V$2), Z159+Eingabe!$B$3,"") -> 159 | AA160: 245.0118898
E161: 0.4494382022 | F161: 0.089423 | Q161: 710.4776605 | R161: 22.77985648 | S161: 14330.64352 | U161: 160 | W161: 565.5772852 | X161: 43.86669298 | Z161: =IF(Z160<INT($V$2), Z160+Eingabe!$B$3,"") -> 160 | AA161: 245.8261626
E162: 0.452247191 | F162: 0.08823 | Q162: 713.7708508 | R162: 22.47594844 | S162: 14256.62594 | U162: 161 | W162: 568.8704755 | X162: 43.20690939 | Z162: =IF(Z161<INT($V$2), Z161+Eingabe!$B$3,"") -> 161 | AA162: 246.6404353
E163: 0.4550561798 | F163: 0.087075 | Q163: 717.0640412 | R163: 22.18172062 | S163: 14183.57731 | U163: 162 | W163: 572.1636659 | X163: 42.55986293 | Z163: =IF(Z162<INT($V$2), Z162+Eingabe!$B$3,"") -> 162 | AA163: 247.454708
E164: 0.4578651685 | F164: 0.085952 | Q164: 720.3572315 | R164: 21.89564457 | S164: 14111.47079 | U164: 163 | W164: 575.4568562 | X164: 41.92045875 | Z164: =IF(Z163<INT($V$2), Z163+Eingabe!$B$3,"") -> 163 | AA164: 248.217852
E165: 0.4606741573 | F165: 0.084854 | Q165: 723.6504218 | R165: 21.61593709 | S165: 14040.28539 | U165: 164 | W165: 578.7500466 | X165: 41.28614943 | Z165: =IF(Z164<INT($V$2), Z164+Eingabe!$B$3,"") -> 164 | AA165: 248.857448
E166: 0.4634831461 | F166: 0.083777 | Q166: 726.9436122 | R166: 21.3415792 | S166: 13970.00351 | U166: 165 | W166: 582.0432369 | X166: 40.65693496 | Z166: =IF(Z165<INT($V$2), Z165+Eingabe!$B$3,"") -> 165 | AA166: 249.497044
E167: 0.4662921348 | F167: 0.082717 | Q167: 730.2368025 | R167: 21.07155194 | S167: 13900.61088 | U167: 166 | W167: 585.3364273 | X167: 40.03536277 | Z167: =IF(Z166<INT($V$2), Z166+Eingabe!$B$3,"") -> 166 | AA167: 250.1366399
E168: 0.4691011236 | F168: 0.081672 | Q168: 733.5299929 | R168: 20.80534581 | S168: 13832.09492 | U168: 167 | W168: 588.6296176 | X168: 39.41888544 | Z168: =IF(Z167<INT($V$2), Z167+Eingabe!$B$3,"") -> 167 | AA168: 250.7541197
E169: 0.4719101124 | F169: 0.080637 | Q169: 736.8231832 | R169: 20.54168712 | S169: 13764.44723 | U169: 168 | W169: 591.9228079 | X169: 38.81005038 | Z169: =IF(Z168<INT($V$2), Z168+Eingabe!$B$3,"") -> 168 | AA169: 251.210517
E170: 0.4747191011 | F170: 0.079612 | Q170: 740.1163736 | R170: 20.28057585 | S170: 13697.65943 | U170: 169 | W170: 595.2159983 | X170: 38.20885761 | Z170: =IF(Z169<INT($V$2), Z169+Eingabe!$B$3,"") -> 169 | AA170: 251.6669143
E171: 0.4775280899 | F171: 0.078595 | Q171: 743.4095639 | R171: 20.02150253 | S171: 13631.72481 | U171: 170 | W171: 598.5091886 | X171: 37.61785455 | Z171: =IF(Z170<INT($V$2), Z170+Eingabe!$B$3,"") -> 170 | AA171: 252.1233117
E172: 0.4803370787 | F172: 0.077585 | Q172: 746.7027543 | R172: 19.7642124 | S172: 13566.6375 | U172: 171 | W172: 601.802379 | X172: 37.03704119 | Z172: =IF(Z171<INT($V$2), Z171+Eingabe!$B$3,"") -> 171 | AA172: 252.579709
E173: 0.4831460674 | F173: 0.076582 | Q173: 749.9959446 | R173: 19.50870547 | S173: 13502.39162 | U173: 172 | W173: 605.0955693 | X173: 36.46896497 | Z173: =IF(Z172<INT($V$2), Z172+Eingabe!$B$3,"") -> 172 | AA173: 252.88453
E174: 0.4859550562 | F174: 0.075582 | Q174: 753.289135 | R174: 19.25396277 | S174: 13438.98466 | U174: 173 | W174: 608.3887597 | X174: 35.91107845 | Z174: =IF(Z173<INT($V$2), Z173+Eingabe!$B$3,"") -> 173 | AA174: 253.1811616
E175: 0.4887640449 | F175: 0.074583 | Q175: 756.5823253 | R175: 18.99947481 | S175: 13376.41577 | U175: 174 | W175: =Q131 -> 611.68195 | X175: 35.36338165 | Z175: =IF(Z174<INT($V$2), Z174+Eingabe!$B$3,"") -> 174 | AA175: 253.4777931
E176: 0.4915730337 | F176: 0.073582 | Q176: 759.8755157 | R176: 18.74447737 | S176: 13314.68664 | U176: 175 | W176: 614.9751404 | X176: 34.82587455 | Z176: =IF(Z175<INT($V$2), Z175+Eingabe!$B$3,"") -> 175 | AA176: 253.7744247
E177: 0.4943820225 | F177: 0.07258 | Q177: 763.168706 | R177: 18.48922518 | S177: 13253.7981 | U177: 176 | W177: 618.2683307 | X177: 34.29855716 | Z177: =IF(Z176<INT($V$2), Z176+Eingabe!$B$3,"") -> 176 | AA177: 253.9639174
E178: 0.4971910112 | F178: 0.07158 | Q178: 766.4618964 | R178: 18.23448248 | S178: 13193.74848 | U178: 177 | W178: 621.5615211 | X178: 33.77888205 | Z178: =IF(Z177<INT($V$2), Z177+Eingabe!$B$3,"") -> 177 | AA178: 254.1226184
E179: 0.5 | F179: 0.070584 | Q179: 769.7550867 | R179: 17.98075875 | S179: 13134.53442 | U179: 178 | W179: 624.8547114 | X179: 33.27194408 | Z179: =IF(Z178<INT($V$2), Z178+Eingabe!$B$3,"") -> 178 | AA179: 254.2813193
E180: 0.5028089888 | F180: 0.069598 | Q180: 773.0482771 | R180: 17.72958245 | S180: 13076.14753 | U180: 179 | W180: 628.1479018 | X180: 32.77264839 | Z180: =IF(Z179<INT($V$2), Z179+Eingabe!$B$3,"") -> 179 | AA180: 254.4400203
E181: 0.5056179775 | F181: 0.068626 | Q181: 776.3414674 | R181: 17.48197255 | S181: 13018.57606 | U181: 180 | W181: 631.4410921 | X181: 32.2835424 | Z181: =IF(Z180<INT($V$2), Z180+Eingabe!$B$3,"") -> 180 | AA181: 254.5375272
E182: 0.5084269663 | F182: 0.067671 | Q182: 779.6346578 | R182: 17.23869327 | S182: 12961.80576 | U182: 181 | W182: 634.7342825 | X182: 31.80717355 | Z182: =IF(Z181<INT($V$2), Z181+Eingabe!$B$3,"") -> 181 | AA182: 254.5950437
E183: 0.5112359551 | F183: 0.066735 | Q183: 782.9278481 | R183: 17.0002541 | S183: 12905.82069 | U183: 182 | W183: 638.0274728 | X183: 31.33844698 | Z183: =IF(Z182<INT($V$2), Z182+Eingabe!$B$3,"") -> 182 | AA183: 254.6525601
E184: 0.5140449438 | F184: 0.065819 | Q184: 786.2210385 | R184: 16.76690979 | S184: 12850.60407 | U184: 183 | W184: 641.3206632 | X184: 30.88245755 | Z184: =IF(Z183<INT($V$2), Z183+Eingabe!$B$3,"") -> 183 | AA184: 254.7100766
E185: 0.5168539326 | F185: 0.064924 | Q185: 789.5142288 | R185: 16.53891507 | S185: 12796.13827 | U185: 184 | W185: 644.6138535 | X185: 30.43665783 | Z185: =IF(Z184<INT($V$2), Z184+Eingabe!$B$3,"") -> 184 | AA185: 254.7208004
E186: 0.5196629213 | F186: 0.064048 | Q186: 792.8074191 | R186: 16.31576047 | S186: 12742.40737 | U186: 185 | W186: 647.9070439 | X186: 30.00104781 | Z186: =IF(Z185<INT($V$2), Z185+Eingabe!$B$3,"") -> 185 | AA186: 254.6701996
E187: 0.5224719101 | F187: 0.063192 | Q187: 796.1006095 | R187: 16.09770071 | S187: 12689.39457 | U187: 186 | W187: 651.2002342 | X187: 29.57053264 | Z187: =IF(Z186<INT($V$2), Z186+Eingabe!$B$3,"") -> 186 | AA187: 254.6195987
E188: 0.5252808989 | F188: 0.062354 | Q188: 799.3937998 | R188: 15.88422633 | S188: 12637.08479 | U188: 187 | W188: 654.4934246 | X188: 29.14765976 | Z188: =IF(Z187<INT($V$2), Z187+Eingabe!$B$3,"") -> 187 | AA188: 254.5535514
E189: 0.5280898876 | F189: 0.061536 | Q189: 802.6869902 | R189: 15.6758468 | S189: 12585.46125 | U189: 188 | W189: 657.7866149 | X189: 28.72988173 | Z189: =IF(Z188<INT($V$2), Z188+Eingabe!$B$3,"") -> 188 | AA189: 254.3923068
E190: 0.5308988764 | F190: 0.060739 | Q190: 805.9801805 | R190: 15.47281687 | S190: 12534.50631 | U190: 189 | W190: 661.0798052 | X190: 28.31974599 | Z190: =IF(Z189<INT($V$2), Z189+Eingabe!$B$3,"") -> 189 | AA190: 254.2310622
E191: 0.5337078652 | F191: 0.059964 | Q191: 809.2733709 | R191: 15.27539128 | S191: 12484.20154 | U191: 190 | W191: =Q147 -> 664.3729956 | X191: 27.91215767 | Z191: =IF(Z190<INT($V$2), Z190+Eingabe!$B$3,"") -> 190 | AA191: 254.0698177
E192: 0.5365168539 | F192: 0.059214 | Q192: 812.5665612 | R192: 15.08433425 | S192: 12434.52596 | U192: 191 | W192: 667.6661859 | X192: 27.51221163 | Z192: =IF(Z191<INT($V$2), Z191+Eingabe!$B$3,"") -> 191 | AA192: 253.8154923
E193: 0.5393258427 | F193: 0.058495 | Q193: 815.8597516 | R193: 14.90117425 | S193: 12385.45356 | U193: 192 | W193: 670.9593763 | X193: 27.11736044 | Z193: =IF(Z192<INT($V$2), Z192+Eingabe!$B$3,"") -> 192 | AA193: 253.544277
E194: 0.5421348315 | F194: 0.057805 | Q194: 819.1529419 | R194: =F194*$I$1 -> 14.72540179 | S194: 12336.96001 | U194: 193 | W194: 674.2525666 | X194: 26.72760411 | Z194: =IF(Z193<INT($V$2), Z193+Eingabe!$B$3,"") -> 193 | AA194: 253.2730617
E195: =E194+1/356 -> 0.5449438202 | F195: 0.057143 | Q195: =Q194+($Q$357-$Q$1)/356 -> 822.4461323 | R195: 14.55676212 | S195: =S194-(R195*(Q195-Q194)) -> 12289.02182 | U195: =U194+1 -> 194 | W195: 677.545757 | X195: 26.34294263 | Z195: =IF(Z194<INT($V$2), Z194+Eingabe!$B$3,"") -> 194 | AA195: =IF(ISNUMBER(Z195),FORECAST(Z195,OFFSET($X$1:$X$401,MATCH(Z195,$W$1:$W$401,1)-1,0,2),OFFSET($W$1:$W$401,MATCH(Z195,$W$1:$W$401,1)-1,0,2)),"") -> 252.9600438
E196: 0.547752809 | F196: 0.056501 | Q196: 825.7393226 | R196: 14.39321731 | S196: 12241.62221 | U196: 195 | W196: 680.8389473 | X196: 25.96082858 | Z196: =IF(Z195<INT($V$2), Z195+Eingabe!$B$3,"") -> 195 | AA196: 252.6132667
E197: 0.5505617978 | F197: 0.055868 | Q197: 829.032513 | R197: 14.23196518 | S197: 12194.75364 | U197: 196 | W197: 684.1321377 | X197: 25.58126196 | Z197: =IF(Z196<INT($V$2), Z196+Eingabe!$B$3,"") -> 196 | AA197: 252.2664896
E198: 0.5533707865 | F198: 0.055238 | Q198: 832.3257033 | R198: 14.07147728 | S198: 12148.41359 | U198: 197 | W198: 687.425328 | X198: 25.20398802 | Z198: =IF(Z197<INT($V$2), Z197+Eingabe!$B$3,"") -> 197 | AA198: 251.9019931
E199: 0.5561797753 | F199: 0.054604 | Q199: 835.6188937 | R199: 13.9099704 | S199: 12102.60541 | U199: 198 | W199: 690.7185184 | X199: 24.83180893 | Z199: =IF(Z198<INT($V$2), Z198+Eingabe!$B$3,"") -> 198 | AA199: 251.4870732
E200: 0.558988764 | F200: 0.053965 | Q200: 838.912084 | R200: 13.74718982 | S200: 12057.3333 | U200: 199 | W200: 694.0117087 | X200: 24.46625316 | Z200: =IF(Z199<INT($V$2), Z199+Eingabe!$B$3,"") -> 199 | AA200: 251.0721532
... 2050 more rows
